Workbook

Sheet Sayfa1
A1: Time step (sec) | B1: 30 | D1: Time (sec) | E1: Time (hour) | F1: S_S | G1: S_NH | H1: S_ALK | I1: X_S | J1: X_STO | K1: X_H | L1: X_A | M1: k1 | N1: k2 | O1: k3 | P1: k4 | Q1: k1 | R1: k2 | S1: k3 | T1: k4 | U1: k1 | V1: k2 | W1: k3 | X1: k4 | Y1: k1 | Z1: k2 | AA1: k3 | AB1: k4 | AC1: k1 | AD1: k2 | AE1: k3 | AF1: k4 | AG1: k1 | AH1: k2 | AI1: k3 | AJ1: k4 | AK1: k1 | AL1: k2 | AM1: k3 | AN1: k4
A2: Initial concentrations | D2: 0 | E2: =D2/3600 -> 0 | F2: =B3 -> 50 | G2: =B4 -> 20 | H2: =B5 -> 5 | I2: =B6 -> 180 | J2: =B7 -> 25 | K2: =B8 -> 250 | L2: =B9 -> 25 | M2: =dS_Sdt(F2,I2,K2)*$B$1 -> -0.2706473004 | N2: =dS_Sdt(F2+0.5*M2,I2,K2)*$B$1 -> -0.2706076839 | O2: =dS_Sdt(F2+0.5*N2,I2,K2)*$B$1 -> -0.2706076897 | P2: =dS_Sdt(F2+O2,I2,K2)*$B$1 -> -0.2705678718 | Q2: =dS_NHdt(G2,F2,H2,I2,J2,K2,L2)*$B$1 -> -0.03563484877 | R2: =dS_NHdt(G2+0.5*Q2,F2,H2,I2,J2,K2,L2)*$B$1 -> -0.03563376436 | S2: =dS_NHdt(G2+0.5*R2,F2,H2,I2,J2,K2,L2)*$B$1 -> -0.0356337644 | T2: =dS_NHdt(G2+S2,F2,H2,I2,J2,K2,L2)*$B$1 -> -0.03563267818 | U2: =dS_ALKdt(H2,F2,G2,I2,J2,K2,L2)*$B$1 -> -0.00254534634 | V2: =dS_ALKdt(H2+0.5*U2,F2,G2,I2,J2,K2,L2)*$B$1 -> -0.002545303784 | W2: =dS_ALKdt(H2+0.5*V2,F2,G2,I2,J2,K2,L2)*$B$1 -> -0.002545303785 | X2: =dS_ALKdt(H2+W2,F2,G2,I2,J2,K2,L2)*$B$1 -> -0.002545261209 | Y2: =dX_Sdt(I2,K2)*$B$1 -> -0.1089418605 | Z2: =dX_Sdt(I2+0.5*Y2,K2)*$B$1 -> -0.1089226908 | AA2: =dX_Sdt(I2+0.5*Z2,K2)*$B$1 -> -0.1089226942 | AB2: =dX_Sdt(I2+AA2,K2)*$B$1 -> -0.1089035231 | AC2: =dX_STOdt(J2,F2,G2,H2,K2)*$B$1 -> 0.298805282 | AD2: =dX_STOdt(J2+0.5*AC2,F2,G2,H2,K2)*$B$1 -> 0.2986749437 | AE2: =dX_STOdt(J2+0.5*AD2,F2,G2,H2,K2)*$B$1 -> 0.2986750005 | AF2: =dX_STOdt(J2+AE2,F2,G2,H2,K2)*$B$1 -> 0.29854485 | AG2: =dX_Hdt(K2,G2,H2,J2)*$B$1 -> -0.001719582054 | AH2: =dX_Hdt(K2+0.5*AG2,G2,H2,J2)*$B$1 -> -0.001719532274 | AI2: =dX_Hdt(K2+0.5*AH2,G2,H2,J2)*$B$1 -> -0.001719532275 | AJ2: =dX_Hdt(K2+AI2,G2,H2,J2)*$B$1 -> -0.001719482496 | AK2: =dX_Adt(L2,G2,H2)*$B$1 -> 0.004981974026 | AL2: =dX_Adt(L2+0.5*AK2,G2,H2)*$B$1 -> 0.004982470427 | AM2: =dX_Adt(L2+0.5*AL2,G2,H2)*$B$1 -> 0.004982470477 | AN2: =dX_Adt(L2+AM2,G2,H2)*$B$1 -> 0.004982966928
A3: Readily biodegradable substrates (g COD/m³) | B3: 50 | D3: =D2+$B$1 -> 30 | E3: =D3/3600 -> 0.008333333333 | F3: =F2+(M2+2*N2+2*O2+P2)/6 -> 49.72939235 | G3: =G2+(Q2+2*R2+2*S2+T2)/6 -> 19.96436624 | H3: =H2+(U2+2*V2+2*W2+X2)/6 -> 4.997454696 | I3: =I2+(Y2+2*Z2+2*AA2+AB2)/6 -> 179.8910773 | J3: =J2+(AC2+2*AD2+2*AE2+AF2)/6 -> 25.298675 | K3: =K2+(AG2+2*AH2+2*AI2+AJ2)/6 -> 249.9982805 | L3: =L2+(AK2+2*AL2+2*AM2+AN2) -> 25.02989482 | M3: =dS_Sdt(F3,I3,K3)*$B$1 -> -0.2706039123 | N3: =dS_Sdt(F3+0.5*M3,I3,K3)*$B$1 -> -0.2705638865 | O3: =dS_Sdt(F3+0.5*N3,I3,K3)*$B$1 -> -0.2705638924 | P3: =dS_Sdt(F3+O3,I3,K3)*$B$1 -> -0.270523662 | Q3: =dS_NHdt(G3,F3,H3,I3,J3,K3,L3)*$B$1 -> -0.03567051112 | R3: =dS_NHdt(G3+0.5*Q3,F3,H3,I3,J3,K3,L3)*$B$1 -> -0.03566942068 | S3: =dS_NHdt(G3+0.5*R3,F3,H3,I3,J3,K3,L3)*$B$1 -> -0.03566942071 | T3: =dS_NHdt(G3+S3,F3,H3,I3,J3,K3,L3)*$B$1 -> -0.03566832844 | U3: =dS_ALKdt(H3,F3,G3,I3,J3,K3,L3)*$B$1 -> -0.002547893651 | V3: =dS_ALKdt(H3+0.5*U3,F3,G3,I3,J3,K3,L3)*$B$1 -> -0.002547850962 | W3: =dS_ALKdt(H3+0.5*V3,F3,G3,I3,J3,K3,L3)*$B$1 -> -0.002547850962 | X3: =dS_ALKdt(H3+W3,F3,G3,I3,J3,K3,L3)*$B$1 -> -0.002547808254 | Y3: =dX_Sdt(I3,K3)*$B$1 -> -0.1089032097 | Z3: =dX_Sdt(I3+0.5*Y3,K3)*$B$1 -> -0.1088840372 | AA3: =dX_Sdt(I3+0.5*Z3,K3)*$B$1 -> -0.1088840406 | AB3: =dX_Sdt(I3+AA3,K3)*$B$1 -> -0.1088648667 | AC3: =dX_STOdt(J3,F3,G3,H3,K3)*$B$1 -> 0.2984753761 | AD3: =dX_STOdt(J3+0.5*AC3,F3,G3,H3,K3)*$B$1 -> 0.2983454449 | AE3: =dX_STOdt(J3+0.5*AD3,F3,G3,H3,K3)*$B$1 -> 0.2983455014 | AF3: =dX_STOdt(J3+AE3,F3,G3,H3,K3)*$B$1 -> 0.2982157571 | AG3: =dX_Hdt(K3,G3,H3,J3)*$B$1 -> -0.001567419201 | AH3: =dX_Hdt(K3+0.5*AG3,G3,H3,J3)*$B$1 -> -0.001567373913 | AI3: =dX_Hdt(K3+0.5*AH3,G3,H3,J3)*$B$1 -> -0.001567373914 | AJ3: =dX_Hdt(K3+AI3,G3,H3,J3)*$B$1 -> -0.001567328628 | AK3: =dX_Adt(L3,G3,H3)*$B$1 -> 0.004987139386 | AL3: =dX_Adt(L3+0.5*AK3,G3,H3)*$B$1 -> 0.004987636223 | AM3: =dX_Adt(L3+0.5*AL3,G3,H3)*$B$1 -> 0.004987636272 | AN3: =dX_Adt(L3+AM3,G3,H3)*$B$1 -> 0.004988133159
A4: Ammonia+ammonium nitrogen (g N/m³) | B4: 20 | D4: =D3+$B$1 -> 60 | E4: =D4/3600 -> 0.01666666667 | F4: =F3+(M3+2*N3+2*O3+P3)/6 -> 49.45882849 | G4: =G3+(Q3+2*R3+2*S3+T3)/6 -> 19.92869682 | H4: =H3+(U3+2*V3+2*W3+X3)/6 -> 4.994906845 | I4: =I3+(Y3+2*Z3+2*AA3+AB3)/6 -> 179.7821933 | J4: =J3+(AC3+2*AD3+2*AE3+AF3)/6 -> 25.59702051 | K4: =K3+(AG3+2*AH3+2*AI3+AJ3)/6 -> 249.9967131 | L4: =L3+(AK3+2*AL3+2*AM3+AN3) -> 25.05982064 | M4: =dS_Sdt(F4,I4,K4)*$B$1 -> -0.2705599117 | N4: =dS_Sdt(F4+0.5*M4,I4,K4)*$B$1 -> -0.2705194701 | O4: =dS_Sdt(F4+0.5*N4,I4,K4)*$B$1 -> -0.2705194761 | P4: =dS_Sdt(F4+O4,I4,K4)*$B$1 -> -0.2704788269 | Q4: =dS_NHdt(G4,F4,H4,I4,J4,K4,L4)*$B$1 -> -0.03570613169 | R4: =dS_NHdt(G4+0.5*Q4,F4,H4,I4,J4,K4,L4)*$B$1 -> -0.03570503517 | S4: =dS_NHdt(G4+0.5*R4,F4,H4,I4,J4,K4,L4)*$B$1 -> -0.0357050352 | T4: =dS_NHdt(G4+S4,F4,H4,I4,J4,K4,L4)*$B$1 -> -0.03570393684 | U4: =dS_ALKdt(H4,F4,G4,I4,J4,K4,L4)*$B$1 -> -0.002550437978 | V4: =dS_ALKdt(H4+0.5*U4,F4,G4,I4,J4,K4,L4)*$B$1 -> -0.002550395155 | W4: =dS_ALKdt(H4+0.5*V4,F4,G4,I4,J4,K4,L4)*$B$1 -> -0.002550395156 | X4: =dS_ALKdt(H4+W4,F4,G4,I4,J4,K4,L4)*$B$1 -> -0.002550352314 | Y4: =dX_Sdt(I4,K4)*$B$1 -> -0.1088645812 | Z4: =dX_Sdt(I4+0.5*Y4,K4)*$B$1 -> -0.1088454059 | AA4: =dX_Sdt(I4+0.5*Z4,K4)*$B$1 -> -0.1088454093 | AB4: =dX_Sdt(I4+AA4,K4)*$B$1 -> -0.1088262326 | AC4: =dX_STOdt(J4,F4,G4,H4,K4)*$B$1 -> 0.2981457837 | AD4: =dX_STOdt(J4+0.5*AC4,F4,G4,H4,K4)*$B$1 -> 0.2980162578 | AE4: =dX_STOdt(J4+0.5*AD4,F4,G4,H4,K4)*$B$1 -> 0.298016314 | AF4: =dX_STOdt(J4+AE4,F4,G4,H4,K4)*$B$1 -> 0.2978869741 | AG4: =dX_Hdt(K4,G4,H4,J4)*$B$1 -> -0.001415766465 | AH4: =dX_Hdt(K4+0.5*AG4,G4,H4,J4)*$B$1 -> -0.001415725638 | AI4: =dX_Hdt(K4+0.5*AH4,G4,H4,J4)*$B$1 -> -0.001415725639 | AJ4: =dX_Hdt(K4+AI4,G4,H4,J4)*$B$1 -> -0.001415684813 | AK4: =dX_Adt(L4,G4,H4)*$B$1 -> 0.004992306272 | AL4: =dX_Adt(L4+0.5*AK4,G4,H4)*$B$1 -> 0.004992803545 | AM4: =dX_Adt(L4+0.5*AL4,G4,H4)*$B$1 -> 0.004992803594 | AN4: =dX_Adt(L4+AM4,G4,H4)*$B$1 -> 0.004993300917
A5: Alkalinity (mol HCO₃/m³) | B5: 5 | D5: 90 | E5: 0.025 | F5: 49.18830905 | G5: 19.89299178 | H5: 4.99235645 | I5: 179.6733479 | J5: 25.89503682 | K5: 249.9952974 | L5: 25.08977746 | M5: -0.270515285 | N5: -0.2704744212 | O5: -0.2704744274 | P5: -0.2704333528 | Q5: -0.03574171014 | R5: -0.0357406075 | S5: -0.03574060753 | T5: -0.03573950304 | U5: -0.002552979296 | V5: -0.002552936339 | W5: -0.00255293634 | X5: -0.002552893365 | Y5: -0.1088259749 | Z5: -0.1088067968 | AA5: -0.1088068002 | AB5: -0.1087876207 | AC5: 0.2978164895 | AD5: 0.2976873671 | AE5: 0.297687423 | AF5: 0.2975584855 | AG5: -0.001264621449 | AH5: -0.001264585052 | AI5: -0.001264585054 | AJ5: -0.001264548658 | AK5: 0.004997474661 | AL5: 0.004997972368 | AM5: 0.004997972418 | AN5: 0.004998470175
A6: Slowly biodegradable substrates (g COD/m³) | B6: 180 | D6: 120 | E6: 0.03333333333 | F6: 48.91783466 | G6: 19.85725117 | H6: 4.989803514 | I6: 179.5645411 | J6: 26.19272425 | K6: 249.9940328 | L6: 25.1197653 | M6: -0.2704700186 | N6: -0.2704287261 | O6: -0.2704287325 | P6: -0.2703872258 | Q6: -0.03577724611 | R6: -0.03577613731 | S6: -0.03577613735 | T6: -0.03577502668 | U6: -0.00255551758 | V6: -0.00255547449 | W6: -0.00255547449 | X6: -0.002555431381 | Y6: -0.1087873906 | Z6: -0.1087682098 | AA6: -0.1087682131 | AB6: -0.1087490308 | AC6: 0.297487478 | AD6: 0.2973587572 | AE6: 0.2973588129 | AF6: 0.297230276 | AG6: -0.00111398178 | AH6: -0.001113949782 | AI6: -0.001113949783 | AJ6: -0.001113917786 | AK6: 0.005002644525 | AL6: 0.005003142668 | AM6: 0.005003142718 | AN6: 0.00500364091
A7: Stored organics (g COD/m³) | B7: 25 | D7: 150 | E7: 0.04166666667 | F7: 48.64740597 | G7: 19.82147504 | H7: 4.987248039 | I7: 179.4557729 | J7: 26.49008307 | K7: 249.9929188 | L7: 25.14978415 | M7: -0.2704240987 | N7: -0.2703823707 | O7: -0.2703823772 | P7: -0.2703404318 | Q7: -0.03581273926 | R7: -0.03581162425 | S7: -0.03581162429 | T7: -0.0358105074 | U7: -0.002558052804 | V7: -0.00255800958 | W7: -0.002558009581 | X7: -0.002557966337 | Y7: -0.1087488283 | Z7: -0.1087296445 | AA7: -0.1087296479 | AB7: -0.1087104627 | AC7: 0.2971587336 | AD7: 0.2970304127 | AE7: 0.297030468 | AF7: 0.29690233 | AG7: -0.0009638451045 | AH7: -0.0009638174743 | AI7: -0.0009638174751 | AJ7: -0.0009637898457 | AK7: 0.005007815841 | AL7: 0.005008314419 | AM7: 0.005008314468 | AN7: 0.005008813095
A8: Heterotrophic biomass (g COD/m³) | B8: 250 | D8: 180 | E8: 0.05 | F8: 48.37702363 | G8: 19.78566341 | H8: 4.98469003 | I8: 179.3470432 | J8: 26.78711354 | K8: 249.991955 | L8: 25.17983404 | M8: -0.2703775109 | N8: -0.2703353407 | O8: -0.2703353473 | P8: -0.2702929562 | Q8: -0.03584818919 | R8: -0.03584706795 | S8: -0.03584706798 | T8: -0.03584594483 | U8: -0.002560584942 | V8: -0.002560541584 | W8: -0.002560541584 | X8: -0.002560498206 | Y8: -0.1087102876 | Z8: -0.1086911011 | AA8: -0.1086911044 | AB8: -0.1086719164 | AC8: 0.2968302405 | AD8: 0.2967023175 | AE8: 0.2967023726 | AF8: 0.2965746316 | AG8: -0.0008142090908 | AH8: -0.0008141857971 | AI8: -0.0008141857978 | AJ8: -0.0008141625048 | AK8: 0.005012988583 | AL8: 0.005013487594 | AM8: 0.005013487644 | AN8: 0.005013986705
A9: Autotrophic biomass (g COD/m³) | B9: 25 | D9: 210 | E9: 0.05833333333 | F9: 48.10668833 | G9: 19.74981634 | H9: 4.982129488 | I9: 179.2383521 | J9: 27.08381591 | K9: 249.9911408 | L9: 25.20991496 | M9: -0.2703302409 | N9: -0.2702876214 | O9: -0.2702876282 | P9: -0.2702447843 | Q9: -0.03588359554 | R9: -0.035882468 | S9: -0.03588246804 | T9: -0.03588133858 | U9: -0.002563113967 | V9: -0.002563070474 | W9: -0.002563070474 | X9: -0.002563026961 | Y9: -0.1086717686 | Z9: -0.1086525791 | AA9: -0.1086525825 | AB9: -0.1086333916 | AC9: 0.2965019825 | AD9: 0.2963744558 | AE9: 0.2963745106 | AF9: 0.2962471649 | AG9: -0.0006650714289 | AH9: -0.0006650524405 | AI9: -0.000665052441 | AJ9: -0.0006650334532 | AK9: 0.005018162723 | AL9: 0.005018662169 | AM9: 0.005018662218 | AN9: 0.005019161714
D10: 240 | E10: 0.06666666667 | F10: 47.83640074 | G10: 19.71393388 | H10: 4.979566418 | I10: 179.1296995 | J10: 27.38019043 | K10: 249.9904758 | L10: 25.24002694 | M10: -0.2702822739 | N10: -0.2702391981 | O10: -0.2702392049 | P10: -0.2701959011 | Q10: -0.0359189579 | R10: -0.03591782403 | S10: -0.03591782407 | T10: -0.03591668827 | U10: -0.00256563985 | V10: -0.002565596221 | W10: -0.002565596222 | X10: -0.002565552573 | Y10: -0.108633271 | Z10: -0.1086140786 | AA10: -0.108614082 | AB10: -0.1085948882 | AC10: 0.2961739435 | AD10: 0.2960468112 | AE10: 0.2960468658 | AF10: 0.2959199135 | AG10: -0.0005164298298 | AH10: -0.0005164151154 | AI10: -0.0005164151159 | AJ10: -0.0005164004019 | AK10: 0.005023338237 | AL10: 0.005023838117 | AM10: 0.005023838166 | AN10: 0.005024338095
D11: 270 | E11: 0.075 | F11: 47.56616157 | G11: 19.67801605 | H11: 4.977000821 | I11: 179.0210854 | J11: 27.67623729 | K11: 249.9899594 | L11: 25.27016997 | M11: -0.2702335949 | N11: -0.2701900554 | O11: -0.2701900624 | P11: -0.2701462913 | Q11: -0.03595427587 | R11: -0.03595313563 | S11: -0.03595313567 | T11: -0.03595199347 | U11: -0.002568162562 | V11: -0.002568118798 | W11: -0.002568118799 | X11: -0.002568075014 | Y11: -0.1085947946 | Z11: -0.1085755994 | AA11: -0.1085756028 | AB11: -0.1085564061 | AC11: 0.2958461069 | AD11: 0.2957193673 | AE11: 0.2957194216 | AF11: 0.2955928612 | AG11: -0.0003682820259 | AH11: -0.0003682715543 | AI11: -0.0003682715546 | AJ11: -0.0003682610833 | AK11: 0.005028515098 | AL11: 0.005029015411 | AM11: 0.005029015461 | AN11: 0.005029515823
D12: 300 | E12: 0.08333333333 | F12: 47.29597155 | G12: 19.64206292 | H12: 4.974432703 | I12: 178.9125098 | J12: 27.97195672 | K12: 249.9895911 | L12: 25.30034406 | M12: -0.2701841886 | N12: -0.2701401779 | O12: -0.2701401851 | P12: -0.2700959391 | Q12: -0.03598954904 | R12: -0.03598840237 | S12: -0.03598840241 | T12: -0.03598725378 | U12: -0.002570682074 | V12: -0.002570638174 | W12: -0.002570638174 | X12: -0.002570594254 | Y12: -0.1085563394 | Z12: -0.1085371413 | AA12: -0.1085371447 | AB12: -0.1085179451 | AC12: 0.295518456 | AD12: 0.2953921075 | AE12: 0.2953921615 | AF12: 0.2952659911 | AG12: -0.0002206257705 | AH12: -0.0002206195104 | AI12: -0.0002206195106 | AJ12: -0.0002206132506 | AK12: 0.00503369328 | AL12: 0.005034194025 | AM12: 0.005034194075 | AN12: 0.005034694871
D13: 330 | E13: 0.09166666667 | F13: 47.02583141 | G13: 19.60607452 | H13: 4.971862064 | I13: 178.8039727 | J13: 28.26734888 | K13: 249.9893705 | L13: 25.33054922 | M13: -0.2701340392 | N13: -0.2700895498 | O13: -0.2700895572 | P13: -0.2700448288 | Q13: -0.03602477696 | R13: -0.03602362384 | S13: -0.03602362388 | T13: -0.03602246877 | U13: -0.002573198355 | V13: -0.002573154318 | W13: -0.002573154319 | X13: -0.002573110262 | Y13: -0.1085179052 | Z13: -0.1084987042 | AA13: -0.1084987076 | AB13: -0.1084795051 | AC13: 0.2951909741 | AD13: 0.2950650148 | AE13: 0.2950650685 | AF13: 0.2949392865 | AG13: -7.345883823e-05 | AH13: -7.345675825e-05 | AI13: -7.345675831e-05 | AJ13: -7.345467839e-05 | AK13: 0.005038872755 | AL13: 0.005039373933 | AM13: 0.005039373983 | AN13: 0.005039875211
D14: 360 | E14: 0.1 | F14: 46.7557419 | G14: 19.57005089 | H14: 4.96928891 | I14: 178.695474 | J14: 28.56241395 | K14: 249.989297 | L14: 25.36078547 | M14: -0.2700831309 | N14: -0.2700381551 | O14: -0.2700381626 | P14: -0.2699929438 | Q14: -0.03605995922 | R14: -0.03605879958 | S14: -0.03605879962 | T14: -0.03605763799 | U14: -0.002575711373 | V14: -0.002575667199 | W14: -0.0025756672 | X14: -0.002575623007 | Y14: -0.1084794918 | Z14: -0.1084602879 | AA14: -0.1084602913 | AB14: -0.1084410859 | AC14: 0.2948636438 | AD14: 0.2947380721 | AE14: 0.2947381256 | AF14: 0.2946127302 | AG14: 7.322097558e-05 | AH14: 7.321890672e-05 | AI14: 7.321890678e-05 | AJ14: 7.321683798e-05 | AK14: 0.005044053496 | AL14: 0.005044555107 | AM14: 0.005044555157 | AN14: 0.005045056817
D15: 390 | E15: 0.1083333333 | F15: 46.48570378 | G15: 19.53399209 | H15: 4.966713243 | I15: 178.5870137 | J15: 28.85715208 | K15: 249.9893702 | L15: 25.3910528 | M15: -0.2700314474 | N15: -0.2699859772 | O15: -0.2699859849 | P15: -0.2699402678 | Q15: -0.03609509534 | R15: -0.03609392915 | S15: -0.03609392919 | T15: -0.03609276099 | U15: -0.002578221096 | V15: -0.002578176786 | W15: -0.002578176786 | X15: -0.002578132456 | Y15: -0.1084410992 | Z15: -0.1084218923 | AA15: -0.1084218957 | AB15: -0.1084026874 | AC15: 0.2945364478 | AD15: 0.2944112621 | AE15: 0.2944113153 | AF15: 0.2942863048 | AG15: 0.0002194158545 | AH15: 0.0002194096681 | AI15: 0.0002194096683 | AJ15: 0.0002194034821 | AK15: 0.005049235477 | AL15: 0.00504973752 | AM15: 0.00504973757 | AN15: 0.005050239662
D16: 420 | E16: 0.1166666667 | F16: 46.21571784 | G16: 19.49789816 | H16: 4.964135066 | I16: 178.4785918 | J16: 29.1515634 | K16: 249.9895896 | L16: 25.42135122 | M16: -0.2699789721 | N16: -0.2699329994 | O16: -0.2699330073 | P16: -0.2698867837 | Q16: -0.03613018487 | R16: -0.03612901209 | S16: -0.03612901212 | T16: -0.03612783731 | U16: -0.002580727491 | V16: -0.002580683043 | W16: -0.002580683044 | X16: -0.002580638577 | Y16: -0.108402727 | Z16: -0.1083835172 | AA16: -0.1083835206 | AB16: -0.1083643094 | AC16: 0.2942093686 | AD16: 0.2940845671 | AE16: 0.29408462 | AF16: 0.2939599929 | AG16: 0.0003651279611 | AH16: 0.0003651176886 | AI16: 0.0003651176889 | AJ16: 0.0003651074166 | AK16: 0.005054418669 | AL16: 0.005054921144 | AM16: 0.005054921194 | AN16: 0.005055423718
D17: 450 | E17: 0.125 | F17: 45.94578488 | G17: 19.46176915 | H17: 4.961554383 | I17: 178.3702083 | J17: 29.44564802 | K17: 249.9899548 | L17: 25.45168075 | M17: -0.269925688 | N17: -0.2698792046 | O17: -0.2698792127 | P17: -0.2698324743 | Q17: -0.03616522733 | R17: -0.0361640479 | S17: -0.03616404794 | T17: -0.03616286646 | U17: -0.002583230523 | V17: -0.002583185938 | W17: -0.002583185939 | X17: -0.002583141334 | Y17: -0.1083643753 | Z17: -0.1083451626 | AA17: -0.108345166 | AB17: -0.1083259518 | AC17: 0.2938823881 | AD17: 0.2937579693 | AE17: 0.2937580219 | AF17: 0.2936337765 | AG17: 0.0005103594374 | AH17: 0.0005103451101 | AI17: 0.0005103451105 | AJ17: 0.0005103307835 | AK17: 0.005059603046 | AL17: 0.005060105951 | AM17: 0.005060106001 | AN17: 0.005060608957
D18: 480 | E18: 0.1333333333 | F18: 45.67590571 | G18: 19.42560511 | H18: 4.958971197 | I18: 178.2618631 | J18: 29.73940605 | K18: 249.9904651 | L18: 25.48204139 | M18: -0.2698715778 | N18: -0.2698245753 | O18: -0.2698245836 | P18: -0.2697773218 | Q18: -0.03620022222 | R18: -0.03619903611 | S18: -0.03619903615 | T18: -0.03619784796 | U18: -0.002585730159 | V18: -0.002585685436 | W18: -0.002585685437 | X18: -0.002585640693 | Y18: -0.1083260438 | Z18: -0.1083068282 | AA18: -0.1083068316 | AB18: -0.1082876144 | AC18: 0.2935554884 | AD18: 0.2934314505 | AE18: 0.2934315029 | AF18: 0.2933076375 | AG18: 0.0006551124044 | AH18: 0.0006550940535 | AI18: 0.000655094054 | AJ18: 0.0006550757037 | AK18: 0.005064788578 | AL18: 0.005065291914 | AM18: 0.005065291964 | AN18: 0.005065795351
D19: 510 | E19: 0.1416666667 | F19: 45.40608118 | G19: 19.38940607 | H19: 4.956385512 | I19: 178.1535563 | J19: 30.03283755 | K19: 249.9911202 | L19: 25.51243314 | M19: -0.269816624 | N19: -0.2697690937 | O19: -0.2697691021 | P19: -0.2697213083 | Q19: -0.03623516905 | R19: -0.0362339762 | S19: -0.03623397624 | T19: -0.0362327813 | U19: -0.002588226361 | V19: -0.0025881815 | W19: -0.0025881815 | X19: -0.002588136619 | Y19: -0.1082877325 | Z19: -0.1082685138 | AA19: -0.1082685173 | AB19: -0.1082492971 | AC19: 0.2932286508 | AD19: 0.2931049923 | AE19: 0.2931050445 | AF19: 0.2929815576 | AG19: 0.0007993889623 | AH19: 0.0007993666193 | AI19: 0.0007993666199 | AJ19: 0.0007993442775 | AK19: 0.005069975237 | AL19: 0.005070479004 | AM19: 0.005070479054 | AN19: 0.005070982871
D20: 540 | E20: 0.15 | F20: 45.13631212 | G20: 19.35317209 | H20: 4.95379733 | I20: 178.0452878 | J20: 30.3259426 | K20: 249.9919196 | L20: 25.54285601 | M20: -0.2697608084 | N20: -0.2697127416 | O20: -0.2697127502 | P20: -0.2696644154 | Q20: -0.0362700673 | R20: -0.03626886766 | S20: -0.0362688677 | T20: -0.03626766597 | U20: -0.002590719093 | V20: -0.002590674093 | W20: -0.002590674094 | X20: -0.002590629073 | Y20: -0.1082494411 | Z20: -0.1082302195 | AA20: -0.1082302229 | AB20: -0.1082109998 | AC20: 0.2929018569 | AD20: 0.2927785762 | AE20: 0.292778628 | AF20: 0.2926555181 | AG20: 0.0009431911908 | AH20: 0.000943164887 | AI20: 0.0009431648877 | AJ20: 0.0009431385846 | AK20: 0.005075162996 | AL20: 0.005075667193 | AM20: 0.005075667243 | AN20: 0.00507617149
D21: 570 | E21: 0.1583333333 | F21: 44.86659942 | G21: 19.31690323 | H21: 4.951206656 | I21: 177.9370576 | J21: 30.61872123 | K21: 249.9928627 | L21: 25.57331002 | M21: -0.2697041128 | N21: -0.2696555004 | O21: -0.2696555092 | P21: -0.2696066243 | Q21: -0.03630491643 | R21: -0.03630370996 | S21: -0.03630371 | T21: -0.03630250142 | U21: -0.002593208316 | V21: -0.002593163178 | W21: -0.002593163178 | X21: -0.002593118019 | Y21: -0.1082111696 | Z21: -0.108191945 | AA21: -0.1081919484 | AB21: -0.1081727223 | AC21: 0.2925750875 | AD21: 0.292452183 | AE21: 0.2924522346 | AF21: 0.2923295 | AG21: 0.001086521149 | AH21: 0.001086490915 | AI21: 0.001086490916 | AJ21: 0.001086460684 | AK21: 0.005080351824 | AL21: 0.005080856451 | AM21: 0.005080856502 | AN21: 0.005081361179
D22: 600 | E22: 0.1666666667 | F22: 44.59694396 | G22: 19.28059952 | H22: 4.948613493 | I22: 177.8288656 | J22: 30.91117347 | K22: 249.9939492 | L22: 25.60379516 | M22: -0.2696465182 | N22: -0.2695973511 | O22: -0.26959736 | P22: -0.2695479158 | Q22: -0.0363397159 | R22: -0.03633850256 | S22: -0.0363385026 | T22: -0.03633728712 | U22: -0.002595693993 | V22: -0.002595648715 | W22: -0.002595648715 | X22: -0.002595603417 | Y22: -0.1081729177 | Z22: -0.1081536901 | AA22: -0.1081536935 | AB22: -0.1081344645 | AC22: 0.2922483235 | AD22: 0.2921257936 | AE22: 0.292125845 | AF22: 0.2920034841 | AG22: 0.001229380874 | AH22: 0.001229346743 | AI22: 0.001229346744 | AJ22: 0.001229312613 | AK22: 0.005085541694 | AL22: 0.005086046751 | AM22: 0.005086046801 | AN22: 0.005086551908
D23: 630 | E23: 0.175 | F23: 44.32734665 | G23: 19.24426101 | H23: 4.946017844 | I23: 177.7207119 | J23: 31.20329931 | K23: 249.9951786 | L23: 25.63431144 | M23: -0.2695880056 | N23: -0.2695382743 | O23: -0.2695382835 | P23: -0.2694882704 | Q23: -0.03637446515 | R23: -0.03637324488 | S23: -0.03637324492 | T23: -0.0363720225 | U23: -0.002598176082 | V23: -0.002598130664 | W23: -0.002598130665 | X23: -0.002598085227 | Y23: -0.1081346854 | Z23: -0.1081154548 | AA23: -0.1081154583 | AB23: -0.1080962262 | AC23: 0.2919215452 | AD23: 0.2917993884 | AE23: 0.2917994395 | AF23: 0.2916774509 | AG23: 0.001371772385 | AH23: 0.001371734386 | AI23: 0.001371734387 | AJ23: 0.00137169639 | AK23: 0.005090732576 | AL23: 0.005091238062 | AM23: 0.005091238112 | AN23: 0.005091743648
D24: 660 | E24: 0.1833333333 | F24: 44.05780842 | G24: 19.20788777 | H24: 4.943419714 | I24: 177.6125965 | J24: 31.49509876 | K24: 249.9965503 | L24: 25.66485886 | M24: -0.2695285553 | N24: -0.2694782502 | O24: -0.2694782596 | P24: -0.2694276679 | Q24: -0.0364091636 | R24: -0.03640793636 | S24: -0.0364079364 | T24: -0.03640670699 | U24: -0.002600654543 | V24: -0.002600608985 | W24: -0.002600608986 | X24: -0.002600563408 | Y24: -0.1080964726 | Z24: -0.1080772389 | AA24: -0.1080772424 | AB24: -0.1080580073 | AC24: 0.2915947327 | AD24: 0.2914729475 | AE24: 0.2914729984 | AF24: 0.2913513804 | AG24: 0.001513697677 | AH24: 0.001513655844 | AI24: 0.001513655845 | AJ24: 0.001513614012 | AK24: 0.00509592444 | AL24: 0.005096430354 | AM24: 0.005096430405 | AN24: 0.005096936369
D25: 690 | E25: 0.1916666667 | F25: 43.78833021 | G25: 19.17147983 | H25: 4.940819105 | I25: 177.5045192 | J25: 31.78657176 | K25: 249.998064 | L25: 25.69543745 | M25: -0.2694681474 | N25: -0.2694172587 | O25: -0.2694172683 | P25: -0.2693660881 | Q25: -0.03644381067 | R25: -0.03644257641 | S25: -0.03644257645 | T25: -0.03644133999 | U25: -0.002603129334 | V25: -0.002603083636 | W25: -0.002603083637 | X25: -0.002603037918 | Y25: -0.1080582789 | Z25: -0.1080390423 | AA25: -0.1080390457 | AB25: -0.1080198076 | AC25: 0.2912678659 | AD25: 0.2911464508 | AE25: 0.2911465014 | AF25: 0.2910252526 | AG25: 0.001655158729 | AH25: 0.00165511309 | AI25: 0.001655113092 | AJ25: 0.001655067455 | AK25: 0.005101117257 | AL25: 0.005101623599 | AM25: 0.00510162365 | AN25: 0.005102130043
D26: 720 | E26: 0.2 | F26: 43.518913 | G26: 19.13503726 | H26: 4.938216021 | I26: 177.3964802 | J26: 32.07771826 | K26: 249.9997191 | L26: 25.72604719 | M26: -0.2694067613 | N26: -0.269355279 | O26: -0.2693552888 | P26: -0.2693035099 | Q26: -0.03647840575 | R26: -0.03647716441 | S26: -0.03647716446 | T26: -0.03647592091 | U26: -0.002605600411 | V26: -0.002605554572 | W26: -0.002605554573 | X26: -0.002605508713 | Y26: -0.1080201045 | Z26: -0.1080008648 | AA26: -0.1080008682 | AB26: -0.1079816271 | AC26: 0.2909409241 | AD26: 0.2908198776 | AE26: 0.290819928 | AF26: 0.290699047 | AG26: 0.001796157494 | AH26: 0.001796108083 | AI26: 0.001796108084 | AJ26: 0.001796058674 | AK26: 0.005106310996 | AL26: 0.005106817766 | AM26: 0.005106817817 | AN26: 0.005107324638
D27: 750 | E27: 0.2083333333 | F27: 43.24955776 | G27: 19.09856009 | H27: 4.935610466 | I27: 177.2884793 | J27: 32.36853819 | K27: 250.0015152 | L27: 25.7566881 | M27: -0.2693443763 | N27: -0.26929229 | O27: -0.2692923001 | P27: -0.2692399121 | Q27: -0.03651294822 | R27: -0.03651169976 | S27: -0.0365116998 | T27: -0.03651044912 | U27: -0.00260806773 | V27: -0.00260802175 | W27: -0.002608021751 | X27: -0.00260797575 | Y27: -0.107981949 | Z27: -0.1079627062 | AA27: -0.1079627097 | AB27: -0.1079434655 | AC27: 0.2906138866 | AD27: 0.2904932072 | AE27: 0.2904932573 | AF27: 0.2903727425 | AG27: 0.001936695909 | AH27: 0.001936642756 | AI27: 0.001936642757 | AJ27: 0.001936589606 | AK27: 0.005111505627 | AL27: 0.005112012825 | AM27: 0.005112012875 | AN27: 0.005112520124
D28: 780 | E28: 0.2166666667 | F28: 42.98026552 | G28: 19.06204839 | H28: 4.933002445 | I28: 177.1805166 | J28: 32.65903145 | K28: 250.0034518 | L28: 25.78736017 | M28: -0.2692809709 | N28: -0.2692282702 | O28: -0.2692282806 | P28: -0.2691752729 | Q28: -0.03654743743 | R28: -0.03654618181 | S28: -0.03654618185 | T28: -0.03654492397 | U28: -0.002610531245 | V28: -0.002610485125 | W28: -0.002610485125 | X28: -0.002610438983 | Y28: -0.1079438123 | Z28: -0.1079245666 | AA28: -0.10792457 | AB28: -0.1079053228 | AC28: 0.290286732 | AD28: 0.2901664183 | AE28: 0.2901664681 | AF28: 0.2900463181 | AG28: 0.002076775887 | AH28: 0.002076719024 | AI28: 0.002076719025 | AJ28: 0.002076662164 | AK28: 0.00511670112 | AL28: 0.005117208745 | AM28: 0.005117208795 | AN28: 0.005117716471
D29: 810 | E29: 0.225 | F29: 42.71103729 | G29: 19.02550221 | H29: 4.93039196 | I29: 177.072592 | J29: 32.94919792 | K29: 250.0055285 | L29: 25.81806343 | M29: -0.2692165235 | N29: -0.2691631975 | O29: -0.2691632081 | P29: -0.2691095699 | Q29: -0.03658187275 | R29: -0.0365806099 | S29: -0.03658060994 | T29: -0.03657934482 | U29: -0.002612990911 | V29: -0.002612944648 | W29: -0.002612944649 | X29: -0.002612898365 | Y29: -0.1079056944 | Z29: -0.1078864456 | AA29: -0.107886449 | AB29: -0.1078671987 | AC29: 0.2899594387 | AD29: 0.2898394892 | AE29: 0.2898395388 | AF29: 0.2897197522 | AG29: 0.002216399324 | AH29: 0.002216338781 | AI29: 0.002216338783 | AJ29: 0.002216278242 | AK29: 0.005121897443 | AL29: 0.005122405495 | AM29: 0.005122405546 | AN29: 0.005122913648
D30: 840 | E30: 0.2333333333 | F30: 42.44187414 | G30: 18.9889216 | H30: 4.927779015 | I30: 176.9647056 | J30: 33.23903746 | K30: 250.0077449 | L30: 25.84879786 | M30: -0.2691510115 | N30: -0.2690970494 | O30: -0.2690970603 | P30: -0.2690427803 | Q30: -0.03661625349 | R30: -0.03661498336 | S30: -0.03661498341 | T30: -0.036613711 | U30: -0.002615446678 | V30: -0.002615400273 | W30: -0.002615400274 | X30: -0.002615353848 | Y30: -0.1078675951 | Z30: -0.1078483432 | AA30: -0.1078483466 | AB30: -0.1078290933 | AC30: 0.2896319848 | AD30: 0.2895123981 | AE30: 0.2895124475 | AF30: 0.2893930229 | AG30: 0.002355568091 | AH30: 0.002355503901 | AI30: 0.002355503902 | AJ30: 0.002355439713 | AK30: 0.005127094566 | AL30: 0.005127603044 | AM30: 0.005127603095 | AN30: 0.005128111623
D31: 870 | E31: 0.2416666667 | F31: 42.17277714 | G31: 18.95230662 | H31: 4.925163615 | I31: 176.8568572 | J31: 33.52854991 | K31: 250.0101004 | L31: 25.87956348 | M31: -0.2690844124 | N31: -0.2690298028 | O31: -0.269029814 | P31: -0.268974881 | Q31: -0.03665057896 | R31: -0.03664930151 | S31: -0.03664930156 | T31: -0.0366480218 | U31: -0.002617898497 | V31: -0.00261785195 | W31: -0.002617851951 | X31: -0.002617805383 | Y31: -0.1078295142 | Z31: -0.1078102592 | AA31: -0.1078102626 | AB31: -0.1077910062 | AC31: 0.2893043479 | AD31: 0.2891851226 | AE31: 0.2891851717 | AF31: 0.2890661077 | AG31: 0.002494284043 | AH31: 0.002494216235 | AI31: 0.002494216237 | AJ31: 0.002494148431 | AK31: 0.005132292457 | AL31: 0.005132801361 | AM31: 0.005132801412 | AN31: 0.005133310366
D32: 900 | E32: 0.25 | F32: 41.90374739 | G32: 18.91565732 | H32: 4.922545763 | I32: 176.749047 | J32: 33.81773509 | K32: 250.0125946 | L32: 25.91036029 | M32: -0.2690167027 | N32: -0.2689614342 | O32: -0.2689614456 | P32: -0.2689058479 | Q32: -0.03668484846 | R32: -0.03668356364 | S32: -0.03668356368 | T32: -0.03668227653 | U32: -0.002620346319 | V32: -0.002620299629 | W32: -0.00262029963 | X32: -0.002620252919 | Y32: -0.1077914516 | Z32: -0.1077721935 | AA32: -0.107772197 | AB32: -0.1077529375 | AC32: 0.2889765052 | AD32: 0.2888576399 | AE32: 0.2888576888 | AF32: 0.2887389839 | AG32: 0.002632549011 | AH32: 0.002632477617 | AI32: 0.002632477619 | AJ32: 0.002632406228 | AK32: 0.005137491085 | AL32: 0.005138000414 | AM32: 0.005138000465 | AN32: 0.005138509845
D33: 930 | E33: 0.2583333333 | F33: 41.634786 | G33: 18.87897376 | H33: 4.919925463 | I33: 176.6412748 | J33: 34.10659278 | K33: 250.0152271 | L33: 25.94118829 | M33: -0.2689478587 | N33: -0.2688919195 | O33: -0.2688919312 | P33: -0.2688356568 | Q33: -0.03671906127 | R33: -0.03671776902 | S33: -0.03671776906 | T33: -0.03671647446 | U33: -0.002622790091 | V33: -0.002622743258 | W33: -0.002622743259 | X33: -0.002622696405 | Y33: -0.1077534072 | Z33: -0.107734146 | AA33: -0.1077341495 | AB33: -0.1077148869 | AC33: 0.2886484335 | AD33: 0.2885299269 | AE33: 0.2885299755 | AF33: 0.2884116285 | AG33: 0.002770364806 | AH33: 0.002770289858 | AI33: 0.00277028986 | AJ33: 0.002770214914 | AK33: 0.005142690417 | AL33: 0.005143200171 | AM33: 0.005143200222 | AN33: 0.005143710027
D34: 960 | E34: 0.2666666667 | F34: 41.36589413 | G34: 18.84225599 | H34: 4.91730272 | I34: 176.5335406 | J34: 34.39512276 | K34: 250.0179974 | L34: 25.97204749 | M34: -0.268877856 | N34: -0.268821234 | O34: -0.268821246 | P34: -0.2687642828 | Q34: -0.03675321664 | R34: -0.0367519169 | S34: -0.03675191695 | T34: -0.03675061485 | U34: -0.00262522976 | V34: -0.002625182784 | W34: -0.002625182785 | X34: -0.002625135787 | Y34: -0.1077153808 | Z34: -0.1076961165 | AA34: -0.10769612 | AB34: -0.1076768543 | AC34: 0.2883201093 | AD34: 0.28820196 | AE34: 0.2882020084 | AF34: 0.2880840177 | AG34: 0.00290773322 | AH34: 0.002907654748 | AI34: 0.00290765475 | AJ34: 0.00290757628 | AK34: 0.005147890422 | AL34: 0.0051484006 | AM34: 0.005148400651 | AN34: 0.00514891088
D35: 990 | E35: 0.275 | F35: 41.09707295 | G35: 18.80550407 | H35: 4.914677537 | I35: 176.4258445 | J35: 34.68332477 | K35: 250.020905 | L35: 26.00293789 | M35: -0.2688066697 | N35: -0.2687493525 | O35: -0.2687493648 | P35: -0.2686917003 | Q35: -0.0367873138 | R35: -0.03678600653 | S35: -0.03678600658 | T35: -0.03678469692 | U35: -0.002627665271 | V35: -0.002627618152 | W35: -0.002627618153 | X35: -0.002627571011 | Y35: -0.1076773724 | Z35: -0.107658105 | AA35: -0.1076581084 | AB35: -0.1076388396 | AC35: 0.2879915084 | AD35: 0.287873715 | AE35: 0.2878737632 | AF35: 0.2877561277 | AG35: 0.003044656023 | AH35: 0.003044574058 | AI35: 0.00304457406 | AJ35: 0.003044492097 | AK35: 0.005153091066 | AL35: 0.005153601669 | AM35: 0.005153601719 | AN35: 0.005154112373
D36: 1020 | E36: 0.2833333333 | F36: 40.82832365 | G36: 18.76871806 | H36: 4.912049919 | I36: 176.3181864 | J36: 34.97119853 | K36: 250.0239496 | L36: 26.0338595 | M36: -0.2687342742 | N36: -0.2686762493 | O36: -0.2686762619 | P36: -0.2686178833 | Q36: -0.03682135198 | R36: -0.03682003712 | S36: -0.03682003716 | T36: -0.0368187199 | U36: -0.00263009657 | V36: -0.002630049306 | W36: -0.002630049307 | X36: -0.002630002021 | Y36: -0.1076393817 | Z36: -0.1076201111 | AA36: -0.1076201146 | AB36: -0.1076008427 | AC36: 0.2876626064 | AD36: 0.2875451677 | AE36: 0.2875452156 | AF36: 0.2874279339 | AG36: 0.003181134963 | AH36: 0.003181049536 | AI36: 0.003181049538 | AJ36: 0.003180964114 | AK36: 0.005158292317 | AL36: 0.005158803343 | AM36: 0.005158803394 | AN36: 0.005159314471
D37: 1050 | E37: 0.2916666667 | F37: 40.55964745 | G37: 18.73189803 | H37: 4.90941987 | I37: 176.2105663 | J37: 35.25874375 | K37: 250.0271306 | L37: 26.06481232 | M37: -0.2686606435 | N37: -0.2686018979 | O37: -0.2686019108 | P37: -0.2685428051 | Q37: -0.03685533036 | R37: -0.03685400786 | S37: -0.03685400791 | T37: -0.03685268298 | U37: -0.002632523597 | V37: -0.002632476189 | W37: -0.00263247619 | X37: -0.00263242876 | Y37: -0.1076014086 | Z37: -0.107582135 | AA37: -0.1075821384 | AB37: -0.1075628633 | AC37: 0.2873333784 | AD37: 0.287216293 | AE37: 0.2872163407 | AF37: 0.2870994115 | AG37: 0.003317171769 | AH37: 0.003317082912 | AI37: 0.003317082914 | AJ37: 0.003316994059 | AK37: 0.005163494142 | AL37: 0.005164005591 | AM37: 0.005164005642 | AN37: 0.005164517142
D38: 1080 | E38: 0.3 | F38: 40.29104561 | G38: 18.69504402 | H38: 4.906787393 | I38: 176.1029842 | J38: 35.54596009 | K38: 250.0304477 | L38: 26.09579636 | M38: -0.2685857509 | N38: -0.2685262714 | O38: -0.2685262846 | P38: -0.2684664383 | Q38: -0.03688924813 | R38: -0.03688791793 | S38: -0.03688791798 | T38: -0.03688658533 | U38: -0.002634946295 | V38: -0.002634898742 | W38: -0.002634898743 | X38: -0.002634851168 | Y38: -0.1075634531 | Z38: -0.1075441763 | AA38: -0.1075441797 | AB38: -0.1075249015 | AC38: 0.2870037988 | AD38: 0.2868870654 | AE38: 0.2868871129 | AF38: 0.286770535 | AG38: 0.003452768149 | AH38: 0.003452675892 | AI38: 0.003452675894 | AJ38: 0.00345258364 | AK38: 0.005168696507 | AL38: 0.00516920838 | AM38: 0.00516920843 | AN38: 0.005169720353
D39: 1110 | E39: 0.3083333333 | F39: 40.02251939 | G39: 18.6581561 | H39: 4.904152495 | I39: 175.99544 | J39: 35.83284721 | K39: 250.0339004 | L39: 26.12681161 | M39: -0.2685095691 | N39: -0.2684493421 | O39: -0.2684493557 | P39: -0.2683887551 | Q39: -0.03692310444 | R39: -0.03692176649 | S39: -0.03692176653 | T39: -0.03692042611 | U39: -0.002637364603 | V39: -0.002637316905 | W39: -0.002637316906 | X39: -0.002637269186 | Y39: -0.1075255149 | Z39: -0.107506235 | AA39: -0.1075062384 | AB39: -0.1074869571 | AC39: 0.2866738417 | AD39: 0.2865574591 | AE39: 0.2865575064 | AF39: 0.2864412784 | AG39: 0.00358792579 | AH39: 0.003587830164 | AI39: 0.003587830166 | AJ39: 0.003587734542 | AK39: 0.00517389938 | AL39: 0.005174411674 | AM39: 0.005174411725 | AN39: 0.00517492407
D40: 1140 | E40: 0.3166666667 | F40: 39.7540701 | G40: 18.62123434 | H40: 4.901515178 | I40: 175.8879338 | J40: 36.11940472 | K40: 250.0374882 | L40: 26.15785808 | M40: -0.2684320701 | N40: -0.2683710817 | O40: -0.2683710956 | P40: -0.2683097267 | Q40: -0.03695689841 | R40: -0.03695555266 | S40: -0.0369555527 | T40: -0.03695420446 | U40: -0.002639778458 | V40: -0.002639730615 | W40: -0.002639730616 | X40: -0.00263968275 | Y40: -0.107487594 | Z40: -0.1074683109 | AA40: -0.1074683143 | AB40: -0.1074490298 | AC40: 0.2863434807 | AD40: 0.2862274477 | AE40: 0.2862274947 | AF40: 0.2861116155 | AG40: 0.003722646357 | AH40: 0.003722547393 | AI40: 0.003722547395 | AJ40: 0.003722448433 | AK40: 0.005179102725 | AL40: 0.005179615441 | AM40: 0.005179615492 | AN40: 0.005180128259
D41: 1170 | E41: 0.325 | F41: 39.48569908 | G41: 18.58427878 | H41: 4.898875447 | I41: 175.7804654 | J41: 36.40563221 | K41: 250.0412108 | L41: 26.18893577 | M41: -0.2683532254 | N41: -0.2682914613 | O41: -0.2682914756 | P41: -0.2682293239 | Q41: -0.03699062917 | R41: -0.03698927555 | S41: -0.0369892756 | T41: -0.03698791947 | U41: -0.002642187798 | V41: -0.002642139809 | W41: -0.00264213981 | X41: -0.002642091799 | Y41: -0.1074496902 | Z41: -0.1074304039 | AA41: -0.1074304074 | AB41: -0.1074111197 | AC41: 0.2860126888 | AD41: 0.2858970041 | AE41: 0.2858970509 | AF41: 0.2857815192 | AG41: 0.003856931495 | AH41: 0.003856829224 | AI41: 0.003856829226 | AJ41: 0.003856726957 | AK41: 0.005184306509 | AL41: 0.005184819646 | AM41: 0.005184819697 | AN41: 0.005185332885
D42: 1200 | E42: 0.3333333333 | F42: 39.21740768 | G42: 18.54728951 | H42: 4.896233307 | I42: 175.673035 | J42: 36.69152927 | K42: 250.0450676 | L42: 26.22004469 | M42: -0.2682730055 | N42: -0.2682104513 | O42: -0.2682104659 | P42: -0.2681475167 | Q42: -0.03702429579 | R42: -0.03702293425 | S42: -0.0370229343 | T42: -0.03702157023 | U42: -0.002644592557 | V42: -0.002644544422 | W42: -0.002644544423 | X42: -0.002644496265 | Y42: -0.1074118034 | Z42: -0.1073925139 | AA42: -0.1073925174 | AB42: -0.1073732265 | AC42: 0.2856814385 | AD42: 0.2855661009 | AE42: 0.2855661474 | AF42: 0.285450962 | AG42: 0.003990782828 | AH42: 0.00399067728 | AI42: 0.003990677283 | AJ42: 0.003990571737 | AK42: 0.005189510697 | AL42: 0.005190024255 | AM42: 0.005190024306 | AN42: 0.005190537915
D43: 1230 | E43: 0.3416666667 | F43: 38.94919728 | G43: 18.51026658 | H43: 4.893588763 | I43: 175.5656425 | J43: 36.97709542 | K43: 250.0490583 | L43: 26.25118483 | M43: -0.2681913805 | N43: -0.2681280211 | O43: -0.2681280362 | P43: -0.2680642743 | Q43: -0.03705789735 | R43: -0.03705652783 | S43: -0.03705652788 | T43: -0.0370551558 | U43: -0.002646992668 | V43: -0.002646944386 | W43: -0.002646944387 | X43: -0.002646896083 | Y43: -0.1073739334 | Z43: -0.1073546408 | AA43: -0.1073546443 | AB43: -0.1073353502 | AC43: 0.2853497017 | AD43: 0.2852347099 | AE43: 0.2852347562 | AF43: 0.2851199159 | AG43: 0.004124201958 | AH43: 0.004124093164 | AI43: 0.004124093167 | AJ43: 0.004123984375 | AK43: 0.005194715255 | AL43: 0.005195229233 | AM43: 0.005195229284 | AN43: 0.005195743313
D44: 1260 | E44: 0.35 | F44: 38.68106932 | G44: 18.47321005 | H44: 4.890941819 | I44: 175.4582879 | J44: 37.26233017 | K44: 250.0531824 | L44: 26.28235621 | M44: -0.2681083197 | N44: -0.2680441399 | O44: -0.2680441553 | P44: -0.2679795653 | Q44: -0.03709143286 | R44: -0.03709005531 | S44: -0.03709005536 | T44: -0.03708867523 | U44: -0.002649388062 | V44: -0.002649339634 | W44: -0.002649339635 | X44: -0.002649291184 | Y44: -0.1073360802 | Z44: -0.1073167844 | AA44: -0.1073167878 | AB44: -0.1072974906 | AC44: 0.2850174497 | AD44: 0.2849028026 | AE44: 0.2849028487 | AF44: 0.2847883523 | AG44: 0.004257190467 | AH44: 0.004257078457 | AI44: 0.00425707846 | AJ44: 0.004256966452 | AK44: 0.005199920147 | AL44: 0.005200434544 | AM44: 0.005200434595 | AN44: 0.005200949044
D45: 1290 | E45: 0.3583333333 | F45: 38.41302524 | G45: 18.43611999 | H45: 4.888292479 | I45: 175.3509711 | J45: 37.54723302 | K45: 250.0574395 | L45: 26.31355882 | M45: -0.2680237916 | N45: -0.2679587756 | O45: -0.2679587915 | P45: -0.2678933574 | Q45: -0.03712490136 | R45: -0.03712351571 | S45: -0.03712351577 | T45: -0.03712212752 | U45: -0.002651778669 | V45: -0.002651730094 | W45: -0.002651730094 | X45: -0.002651681496 | Y45: -0.1072982436 | Z45: -0.1072789445 | AA45: -0.107278948 | AB45: -0.1072596476 | AC45: 0.2846846533 | AD45: 0.2845703497 | AE45: 0.2845703956 | AF45: 0.284456242 | AG45: 0.004389749913 | AH45: 0.004389634718 | AI45: 0.004389634721 | AJ45: 0.004389519529 | AK45: 0.005205125337 | AL45: 0.005205640154 | AM45: 0.005205640205 | AN45: 0.005206155073
D46: 1320 | E46: 0.3666666667 | F46: 38.14506653 | G46: 18.39899648 | H46: 4.885640749 | I46: 175.2436922 | J46: 37.83180342 | K46: 250.0618291 | L46: 26.34479266 | M46: -0.2679377639 | N46: -0.2678718957 | O46: -0.267871912 | P46: -0.2678056177 | Q46: -0.03715830182 | R46: -0.03715690803 | S46: -0.03715690808 | T46: -0.03715551166 | U46: -0.002654164416 | V46: -0.002654115693 | W46: -0.002654115694 | X46: -0.002654066949 | Y46: -0.1072604234 | Z46: -0.1072411212 | AA46: -0.1072411246 | AB46: -0.107221821 | AC46: 0.2843512825 | AD46: 0.2842373214 | AE46: 0.284237367 | AF46: 0.2841235551 | AG46: 0.004521881834 | AH46: 0.004521763485 | AI46: 0.004521763488 | AJ46: 0.004521645142 | AK46: 0.005210330791 | AL46: 0.005210846026 | AM46: 0.005210846077 | AN46: 0.005211361364
D47: 1350 | E47: 0.375 | F47: 37.87719469 | G47: 18.36183957 | H47: 4.882986633 | I47: 175.136451 | J47: 38.11604079 | K47: 250.0663509 | L47: 26.37605774 | M47: -0.2678502037 | N47: -0.2677834668 | O47: -0.2677834834 | P47: -0.2677163121 | Q47: -0.03719163321 | R47: -0.0371902312 | S47: -0.03719023126 | T47: -0.03718882661 | U47: -0.002656545229 | V47: -0.002656496359 | W47: -0.00265649636 | X47: -0.002656447467 | Y47: -0.1072226196 | Z47: -0.1072033141 | AA47: -0.1072033176 | AB47: -0.1071840107 | AC47: 0.2840173069 | AD47: 0.2839036871 | AE47: 0.2839037325 | AF47: 0.283790261 | AG47: 0.004653587749 | AH47: 0.004653466276 | AI47: 0.004653466279 | AJ47: 0.004653344809 | AK47: 0.005215536471 | AL47: 0.005216052125 | AM47: 0.005216052176 | AN47: 0.00521656788
D48: 1380 | E48: 0.3833333333 | F48: 37.60941129 | G48: 18.32464934 | H48: 4.880330137 | I48: 175.0292477 | J48: 38.39994453 | K48: 250.0710043 | L48: 26.40735405 | M48: -0.267761077 | N48: -0.2676934544 | O48: -0.2676934716 | P48: -0.2676254061 | Q48: -0.03722489445 | R48: -0.03722348418 | S48: -0.03722348423 | T48: -0.03722207129 | U48: -0.002658921032 | V48: -0.002658872014 | W48: -0.002658872015 | X48: -0.002658822974 | Y48: -0.107184832 | Z48: -0.1071655233 | AA48: -0.1071655268 | AB48: -0.1071462167 | AC48: 0.2836826953 | AD48: 0.2835694156 | AE48: 0.2835694608 | AF48: 0.2834563288 | AG48: 0.004784869151 | AH48: 0.004784744584 | AI48: 0.004784744588 | AJ48: 0.004784620024 | AK48: 0.005220742342 | AL48: 0.005221258413 | AM48: 0.005221258464 | AN48: 0.005221774587
D49: 1410 | E49: 0.3916666667 | F49: 37.3417179 | G49: 18.28742586 | H49: 4.877671265 | I49: 174.9220822 | J49: 38.68351399 | K49: 250.0757891 | L49: 26.4386816 | M49: -0.2676703491 | N49: -0.2676018236 | O49: -0.2676018412 | P49: -0.2675328641 | Q49: -0.03725808446 | R49: -0.03725666586 | S49: -0.03725666591 | T49: -0.03725524462 | U49: -0.002661291747 | V49: -0.00266124258 | W49: -0.002661242581 | X49: -0.002661193391 | Y49: -0.1071470605 | Z49: -0.1071277486 | AA49: -0.107127752 | AB49: -0.1071084387 | AC49: 0.2833474158 | AD49: 0.2832344752 | AE49: 0.2832345202 | AF49: 0.2831217265 | AG49: 0.004915727513 | AH49: 0.004915599883 | AI49: 0.004915599887 | AJ49: 0.00491547226 | AK49: 0.005225948367 | AL49: 0.005226464856 | AM49: 0.005226464907 | AN49: 0.005226981446
D50: 1440 | E50: 0.4 | F50: 37.07411615 | G50: 18.25016919 | H50: 4.875010022 | I50: 174.8149544 | J50: 38.96674851 | K50: 250.0807047 | L50: 26.47004039 | M50: -0.2675779845 | N50: -0.2675085383 | O50: -0.2675085564 | P50: -0.2674386496 | Q50: -0.0372912021 | R50: -0.03728977511 | S50: -0.03728977517 | T50: -0.03728834546 | U50: -0.002663657293 | V50: -0.002663607978 | W50: -0.002663607979 | X50: -0.00266355864 | Y50: -0.1071093049 | Z50: -0.1070899898 | AA50: -0.1070899933 | AB50: -0.1070706767 | AC50: 0.2830114359 | AD50: 0.2828988333 | AE50: 0.2828988781 | AF50: 0.2827864217 | AG50: 0.005046164286 | AH50: 0.005046033624 | AI50: 0.005046033628 | AJ50: 0.005045902968 | AK50: 0.005231154509 | AL50: 0.005231671414 | AM50: 0.005231671465 | AN50: 0.005232188421
D51: 1470 | E51: 0.4083333333 | F51: 36.80660768 | G51: 18.21287942 | H51: 4.872346414 | I51: 174.7078644 | J51: 39.24964739 | K51: 250.0857507 | L51: 26.50143042 | M51: -0.2674839468 | N51: -0.2674135615 | O51: -0.2674135801 | P51: -0.2673427252 | Q51: -0.03732424623 | R51: -0.03732281079 | S51: -0.03732281084 | T51: -0.03732137267 | U51: -0.002666017588 | V51: -0.002665968124 | W51: -0.002665968124 | X51: -0.002665918637 | Y51: -0.1070715652 | Z51: -0.1070522468 | AA51: -0.1070522503 | AB51: -0.1070329305 | AC51: 0.2826747222 | AD51: 0.2825624567 | AE51: 0.2825625012 | AF51: 0.282450381 | AG51: 0.0051761809 | AH51: 0.005176047235 | AI51: 0.005176047239 | AJ51: 0.005175913577 | AK51: 0.005236360731 | AL51: 0.005236878052 | AM51: 0.005236878103 | AN51: 0.005237395475
D52: 1500 | E52: 0.4166666667 | F52: 36.53919418 | G52: 18.1755566 | H52: 4.869680446 | I52: 174.6008122 | J52: 39.53220989 | K52: 250.0909268 | L52: 26.53285169 | M52: -0.2673881985 | N52: -0.2673168555 | O52: -0.2673168746 | P52: -0.2672450525 | Q52: -0.03735721565 | R52: -0.0373557717 | S52: -0.03735577176 | T52: -0.03735432505 | U52: -0.002668372547 | V52: -0.002668322933 | W52: -0.002668322934 | X52: -0.002668273297 | Y52: -0.1070338413 | Z52: -0.1070145196 | AA52: -0.1070145231 | AB52: -0.1069952 | AC52: 0.2823372408 | AD52: 0.2822253112 | AE52: 0.2822253556 | AF52: 0.2821135705 | AG52: 0.005305778761 | AH52: 0.005305642123 | AI52: 0.005305642127 | AJ52: 0.005305505492 | AK52: 0.005241566995 | AL52: 0.005242084731 | AM52: 0.005242084782 | AN52: 0.005242602569
D53: 1530 | E53: 0.425 | F53: 36.2718774 | G53: 18.13820083 | H53: 4.867012123 | I53: 174.4937977 | J53: 39.81443525 | K53: 250.0962324 | L53: 26.56430419 | M53: -0.2672907013 | N53: -0.2672183814 | O53: -0.267218401 | P53: -0.2671455924 | Q53: -0.03739010916 | R53: -0.03738865664 | S53: -0.0373886567 | T53: -0.03738720139 | U53: -0.002670722083 | V53: -0.00267067232 | W53: -0.002670672321 | X53: -0.002670622534 | Y53: -0.1069961329 | Z53: -0.1069768079 | AA53: -0.1069768114 | AB53: -0.1069574851 | AC53: 0.2819989569 | AD53: 0.2818873622 | AE53: 0.2818874063 | AF53: 0.2817759555 | AG53: 0.005434959252 | AH53: 0.005434819672 | AI53: 0.005434819676 | AJ53: 0.005434680099 | AK53: 0.005246773263 | AL53: 0.005247291414 | AM53: 0.005247291465 | AN53: 0.005247809667
D54: 1560 | E54: 0.4333333333 | F54: 36.00465909 | G54: 18.10081218 | H54: 4.864341451 | I54: 174.3868209 | J54: 40.09632266 | K54: 250.1016672 | L54: 26.59578794 | M54: -0.2671914158 | N54: -0.2671180993 | O54: -0.2671181194 | P54: -0.2670443043 | Q54: -0.0374229255 | R54: -0.03742146434 | S54: -0.0374214644 | T54: -0.03742000043 | U54: -0.002673066107 | V54: -0.002673016194 | W54: -0.002673016195 | X54: -0.002672966258 | Y54: -0.1069584399 | Z54: -0.1069391117 | AA54: -0.1069391152 | AB54: -0.1069197856 | AC54: 0.2816598348 | AD54: 0.281548574 | AE54: 0.281548618 | AF54: 0.2814375003 | AG54: 0.005563723735 | AH54: 0.005563581243 | AI54: 0.005563581247 | AJ54: 0.005563438758 | AK54: 0.005251979497 | AL54: 0.005252498062 | AM54: 0.005252498113 | AN54: 0.005253016729
D55: 1590 | E55: 0.4416666667 | F55: 35.73754106 | G55: 18.06339071 | H55: 4.861668435 | I55: 174.2798818 | J55: 40.37787128 | K55: 250.1072308 | L55: 26.62730293 | M55: -0.2670903017 | N55: -0.2670159683 | O55: -0.2670159891 | P55: -0.2669411469 | Q55: -0.03745566339 | R55: -0.03745419354 | S55: -0.03745419359 | T55: -0.0374527209 | U55: -0.002675404528 | V55: -0.002675354465 | W55: -0.002675354466 | X55: -0.002675304378 | Y55: -0.1069207624 | Z55: -0.1069014309 | AA55: -0.1069014344 | AB55: -0.1068821015 | AC55: 0.2813198381 | AD55: 0.2812089103 | AE55: 0.281208954 | AF55: 0.2810981686 | AG55: 0.00569207355 | AH55: 0.005691928175 | AI55: 0.005691928179 | AJ55: 0.005691782808 | AK55: 0.005257185658 | AL55: 0.005257704636 | AM55: 0.005257704688 | AN55: 0.005258223717
D56: 1620 | E56: 0.45 | F56: 35.47052517 | G56: 18.02593652 | H56: 4.85899308 | I56: 174.1729803 | J56: 40.65908024 | K56: 250.1129227 | L56: 26.65884916 | M56: -0.2669873176 | N56: -0.2669119466 | O56: -0.266911968 | P56: -0.2668360777 | Q56: -0.03748832152 | R56: -0.0374868429 | S56: -0.03748684296 | T56: -0.03748536148 | U56: -0.002677737251 | V56: -0.002677687037 | W56: -0.002677687038 | X56: -0.0026776368 | Y56: -0.1068831 | Z56: -0.1068637652 | AA56: -0.1068637687 | AB56: -0.1068444325 | AC56: 0.2809789295 | AD56: 0.2808683337 | AE56: 0.2808683772 | AF56: 0.280757923 | AG56: 0.00582001001 | AH56: 0.005819861784 | AI56: 0.005819861788 | AJ56: 0.005819713564 | AK56: 0.005262391707 | AL56: 0.005262911099 | AM56: 0.00526291115 | AN56: 0.005263430593
D57: 1650 | E57: 0.4583333333 | F57: 35.2036133 | G57: 17.98844968 | H57: 4.856315393 | I57: 174.0661166 | J57: 40.93994861 | K57: 250.1187426 | L57: 26.69042663 | M57: -0.2668824211 | N57: -0.2668059911 | O57: -0.2668060131 | P57: -0.2667290532 | Q57: -0.03752089852 | R57: -0.03751941108 | S57: -0.03751941114 | T57: -0.03751792081 | U57: -0.00268006418 | V57: -0.002680013815 | W57: -0.002680013816 | X57: -0.002679963426 | Y57: -0.1068454528 | Z57: -0.1068261147 | AA57: -0.1068261182 | AB57: -0.1068067787 | AC57: 0.2806370709 | AD57: 0.2805268062 | AE57: 0.2805268495 | AF57: 0.2804167256 | AG57: 0.00594753441 | AH57: 0.005947383361 | AI57: 0.005947383365 | AJ57: 0.005947232319 | AK57: 0.005267597606 | AL57: 0.00526811741 | AM57: 0.005268117462 | AN57: 0.005268637317
D58: 1680 | E58: 0.4666666667 | F58: 34.93680738 | G58: 17.95093027 | H58: 4.853635379 | I58: 173.9592904 | J58: 41.22047547 | K58: 250.12469 | L58: 26.72203533 | M58: -0.2667755685 | N58: -0.2666980576 | O58: -0.2666980803 | P58: -0.2666200285 | Q58: -0.03755339301 | R58: -0.03755189668 | S58: -0.03755189674 | T58: -0.03755039749 | U58: -0.002682385215 | V58: -0.002682334699 | W58: -0.0026823347 | X58: -0.002682284159 | Y58: -0.1068078205 | Z58: -0.1067884791 | AA58: -0.1067884826 | AB58: -0.1067691398 | AC58: 0.2802942232 | AD58: 0.2801842886 | AE58: 0.2801843317 | AF58: 0.2800745373 | AG58: 0.006074648018 | AH58: 0.006074494176 | AI58: 0.00607449418 | AJ58: 0.006074340341 | AK58: 0.005272803315 | AL58: 0.00527332353 | AM58: 0.005273323582 | AN58: 0.005273843849
D59: 1710 | E59: 0.475 | F59: 34.6701094 | G59: 17.91337837 | H59: 4.850953045 | I59: 173.852502 | J59: 41.5006598 | K59: 250.1307645 | L59: 26.75367527 | M59: -0.266666715 | N59: -0.2665881008 | O59: -0.2665881241 | P59: -0.2665089577 | Q59: -0.03758580357 | R59: -0.03758429828 | S59: -0.03758429834 | T59: -0.03758279012 | U59: -0.002684700255 | V59: -0.002684649587 | W59: -0.002684649588 | X59: -0.002684598896 | Y59: -0.1067702031 | Z59: -0.1067508583 | AA59: -0.1067508618 | AB59: -0.1067315158 | AC59: 0.2799503463 | AD59: 0.279840741 | AE59: 0.2798407839 | AF59: 0.279731318 | AG59: 0.00620135208 | AH59: 0.006201195474 | AI59: 0.006201195478 | AJ59: 0.006201038876 | AK59: 0.005278008793 | AL59: 0.00527852942 | AM59: 0.005278529471 | AN59: 0.00527905015
D60: 1740 | E60: 0.4833333333 | F60: 34.40352138 | G60: 17.87579407 | H60: 4.848268395 | I60: 173.7457511 | J60: 41.78050059 | K60: 250.1369657 | L60: 26.78534645 | M60: -0.2665558147 | N60: -0.2664760741 | O60: -0.2664760981 | P60: -0.2663957936 | Q60: -0.03761812873 | R60: -0.03761661441 | S60: -0.03761661448 | T60: -0.0376150972 | U60: -0.002687009195 | V60: -0.002686958375 | W60: -0.002686958376 | X60: -0.002686907531 | Y60: -0.1067326004 | Z60: -0.1067132523 | AA60: -0.1067132558 | AB60: -0.1066939064 | AC60: 0.2796053993 | AD60: 0.2794961223 | AE60: 0.279496165 | AF60: 0.2793870268 | AG60: 0.006327647816 | AH60: 0.006327488477 | AI60: 0.006327488481 | AJ60: 0.006327329145 | AK60: 0.005283214 | AL60: 0.005283735038 | AM60: 0.00528373509 | AN60: 0.005284256179
D61: 1770 | E61: 0.4916666667 | F61: 34.13704539 | G61: 17.83817746 | H61: 4.845581437 | I61: 173.6390378 | J61: 42.05999675 | K61: 250.1432931 | L61: 26.81704886 | M61: -0.2664428204 | N61: -0.2663619297 | O61: -0.2663619544 | P61: -0.2662804878 | Q61: -0.03765036697 | R61: -0.03764884357 | S61: -0.03764884363 | T61: -0.03764731725 | U61: -0.002689311927 | V61: -0.002689260954 | W61: -0.002689260955 | X61: -0.002689209959 | Y61: -0.1066950123 | Z61: -0.1066756609 | AA61: -0.1066756644 | AB61: -0.1066563117 | AC61: 0.2792593401 | AD61: 0.2791503907 | AE61: 0.2791504332 | AF61: 0.2790416217 | AG61: 0.006453536424 | AH61: 0.006453374382 | AI61: 0.006453374386 | AJ61: 0.006453212346 | AK61: 0.005288418897 | AL61: 0.005288940345 | AM61: 0.005288940396 | AN61: 0.005289461895
D62: 1800 | E62: 0.5 | F62: 33.87068355 | G62: 17.80052862 | H62: 4.842892176 | I62: 173.5323622 | J62: 42.33914719 | K62: 250.1497465 | L62: 26.8487825 | M62: -0.2663276837 | N62: -0.2662456184 | O62: -0.2662456438 | P62: -0.2661629904 | Q62: -0.03768251676 | R62: -0.03768098421 | S62: -0.03768098427 | T62: -0.0376794487 | U62: -0.00269160834 | V62: -0.002691557215 | W62: -0.002691557216 | X62: -0.002691506067 | Y62: -0.1066574387 | Z62: -0.106638084 | AA62: -0.1066380875 | AB62: -0.1066187315 | AC62: 0.2789121257 | AD62: 0.278803503 | AE62: 0.2788035453 | AF62: 0.2786950598 | AG62: 0.006579019078 | AH62: 0.006578854361 | AI62: 0.006578854365 | AJ62: 0.006578689651 | AK62: 0.005293623442 | AL62: 0.005294145299 | AM62: 0.00529414535 | AN62: 0.005294667259
D63: 1830 | E63: 0.5083333333 | F63: 33.60443801 | G63: 17.76284763 | H63: 4.840200619 | I63: 173.4257241 | J63: 42.61795073 | K63: 250.1563254 | L63: 26.88054737 | M63: -0.2662103547 | N63: -0.2661270898 | O63: -0.266127116 | P63: -0.2660432504 | Q63: -0.0377145765 | R63: -0.03771303472 | S63: -0.03771303479 | T63: -0.03771148997 | U63: -0.002693898321 | V63: -0.002693847044 | W63: -0.002693847045 | X63: -0.002693795742 | Y63: -0.1066198795 | Z63: -0.1066005215 | AA63: -0.106600525 | AB63: -0.1065811656 | AC63: 0.278563712 | AD63: 0.2784554151 | AE63: 0.2784554572 | AF63: 0.278347297 | AG63: 0.006704096926 | AH63: 0.006703929563 | AI63: 0.006703929567 | AJ63: 0.006703762208 | AK63: 0.005298827594 | AL63: 0.005299349859 | AM63: 0.005299349911 | AN63: 0.005299872228
D64: 1860 | E64: 0.5166666667 | F64: 33.33831101 | G64: 17.7251346 | H64: 4.837506772 | I64: 173.3191236 | J64: 42.89640619 | K64: 250.1630293 | L64: 26.91234347 | M64: -0.2660907824 | N64: -0.2660062921 | O64: -0.266006319 | P64: -0.2659212151 | Q64: -0.03774654455 | R64: -0.03774499349 | S64: -0.03774499355 | T64: -0.03774343942 | U64: -0.002696181754 | V64: -0.002696130323 | W64: -0.002696130324 | X64: -0.002696078869 | Y64: -0.1065823346 | Z64: -0.1065629732 | AA64: -0.1065629767 | AB64: -0.106543614 | AC64: 0.2782140537 | AD64: 0.2781060819 | AE64: 0.2781061238 | AF64: 0.2779982879 | AG64: 0.00682877109 | AH64: 0.006828601112 | AI64: 0.006828601116 | AJ64: 0.006828431141 | AK64: 0.00530403131 | AL64: 0.005304553984 | AM64: 0.005304554036 | AN64: 0.005305076761
D65: 1890 | E65: 0.525 | F65: 33.07230481 | G65: 17.68738961 | H65: 4.834810641 | I65: 173.2125606 | J65: 43.17451232 | K65: 250.1698579 | L65: 26.9441708 | M65: -0.265968914 | N65: -0.2658831719 | O65: -0.2658831996 | P65: -0.2657968305 | Q65: -0.03777841925 | R65: -0.03777685883 | S65: -0.03777685889 | T65: -0.03777529537 | U65: -0.002698458518 | V65: -0.002698406934 | W65: -0.002698406935 | X65: -0.002698355325 | Y65: -0.1065448038 | Z65: -0.106525439 | AA65: -0.1065254425 | AB65: -0.1065060764 | AC65: 0.2778631044 | AD65: 0.277755457 | AE65: 0.2777554986 | AF65: 0.2776479864 | AG65: 0.00695304267 | AH65: 0.006952870106 | AI65: 0.00695287011 | AJ65: 0.006952697548 | AK65: 0.005309234551 | AL65: 0.005309757632 | AM65: 0.005309757683 | AN65: 0.005310280816
D66: 1920 | E66: 0.5333333333 | F66: 32.80642173 | G66: 17.64961275 | H66: 4.832112234 | I66: 173.1060352 | J66: 43.45226782 | K66: 250.1768108 | L66: 26.97602934 | M66: -0.2658446957 | N66: -0.2657576745 | O66: -0.2657577031 | P66: -0.2656700411 | Q66: -0.03781019885 | R66: -0.037808629 | S66: -0.03780862907 | T66: -0.03780705609 | U66: -0.002700728489 | V66: -0.002700676751 | W66: -0.002700676752 | X66: -0.002700624989 | Y66: -0.106507287 | Z66: -0.1064879189 | AA66: -0.1064879224 | AB66: -0.1064685529 | AC66: 0.2775108165 | AD66: 0.2774034926 | AE66: 0.2774035341 | AF66: 0.2772963447 | AG66: 0.007076912738 | AH66: 0.007076737616 | AI66: 0.00707673762 | AJ66: 0.007076562502 | AK66: 0.005314437272 | AL66: 0.00531496076 | AM66: 0.005314960811 | AN66: 0.00531548435
D67: 1950 | E67: 0.5416666667 | F67: 32.54066414 | G67: 17.61180412 | H67: 4.829411558 | I67: 172.9995472 | J67: 43.72967135 | K67: 250.1838875 | L67: 27.00791911 | M67: -0.2657180718 | N67: -0.2656297435 | O67: -0.265629773 | P67: -0.2655407898 | Q67: -0.03784188158 | R67: -0.03784030224 | S67: -0.0378403023 | T67: -0.03783871981 | U67: -0.002702991542 | V67: -0.00270293965 | W67: -0.002702939651 | X67: -0.002702887734 | Y67: -0.1064697841 | Z67: -0.1064504126 | AA67: -0.1064504161 | AB67: -0.1064310433 | AC67: 0.2771571412 | AD67: 0.2770501402 | AE67: 0.2770501815 | AF67: 0.2769433142 | AG67: 0.007200382341 | AH67: 0.00720020469 | AI67: 0.007200204695 | AJ67: 0.007200027048 | AK67: 0.005319639431 | AL67: 0.005320163325 | AM67: 0.005320163377 | AN67: 0.005320687322
D68: =D67+$B$1 -> 1980 | E68: =D68/3600 -> 0.55 | F68: =F67+(M67+2*N67+2*O67+P67)/6 -> 32.27503449 | G68: =G67+(Q67+2*R67+2*S67+T67)/6 -> 17.57396382 | H68: =H67+(U67+2*V67+2*W67+X67)/6 -> 4.826708618 | I68: =I67+(Y67+2*Z67+2*AA67+AB67)/6 -> 172.8930968 | J68: =J67+(AC67+2*AD67+2*AE67+AF67)/6 -> 44.00672154 | K68: =K67+(AG67+2*AH67+2*AI67+AJ67)/6 -> 250.1910877 | L68: =L67+(AK67+2*AL67+2*AM67+AN67) -> 27.03984009 | M68: =dS_Sdt(F68,I68,K68)*$B$1 -> -0.2655889853 | N68: =dS_Sdt(F68+0.5*M68,I68,K68)*$B$1 -> -0.2654993211 | O68: =dS_Sdt(F68+0.5*N68,I68,K68)*$B$1 -> -0.2654993515 | P68: =dS_Sdt(F68+O68,I68,K68)*$B$1 -> -0.2654090179 | Q68: =dS_NHdt(G68,F68,H68,I68,J68,K68,L68)*$B$1 -> -0.03787346562 | R68: =dS_NHdt(G68+0.5*Q68,F68,H68,I68,J68,K68,L68)*$B$1 -> -0.03787187671 | S68: =dS_NHdt(G68+0.5*R68,F68,H68,I68,J68,K68,L68)*$B$1 -> -0.03787187678 | T68: =dS_NHdt(G68+S68,F68,H68,I68,J68,K68,L68)*$B$1 -> -0.03787028469 | U68: =dS_ALKdt(H68,F68,G68,I68,J68,K68,L68)*$B$1 -> -0.002705247545 | V68: =dS_ALKdt(H68+0.5*U68,F68,G68,I68,J68,K68,L68)*$B$1 -> -0.002705195498 | W68: =dS_ALKdt(H68+0.5*V68,F68,G68,I68,J68,K68,L68)*$B$1 -> -0.002705195499 | X68: =dS_ALKdt(H68+W68,F68,G68,I68,J68,K68,L68)*$B$1 -> -0.002705143428 | Y68: =dX_Sdt(I68,K68)*$B$1 -> -0.106432295 | Z68: =dX_Sdt(I68+0.5*Y68,K68)*$B$1 -> -0.1064129201 | AA68: =dX_Sdt(I68+0.5*Z68,K68)*$B$1 -> -0.1064129237 | AB68: =dX_Sdt(I68+AA68,K68)*$B$1 -> -0.1063935474 | AC68: =dX_STOdt(J68,F68,G68,H68,K68)*$B$1 -> 0.2768020283 | AD68: =dX_STOdt(J68+0.5*AC68,F68,G68,H68,K68)*$B$1 -> 0.2766953494 | AE68: =dX_STOdt(J68+0.5*AD68,F68,G68,H68,K68)*$B$1 -> 0.2766953905 | AF68: =dX_STOdt(J68+AE68,F68,G68,H68,K68)*$B$1 -> 0.2765888447 | AG68: =dX_Hdt(K68,G68,H68,J68)*$B$1 -> 0.007323452499 | AH68: =dX_Hdt(K68+0.5*AG68,G68,H68,J68)*$B$1 -> 0.007323272349 | AI68: =dX_Hdt(K68+0.5*AH68,G68,H68,J68)*$B$1 -> 0.007323272354 | AJ68: =dX_Hdt(K68+AI68,G68,H68,J68)*$B$1 -> 0.007323092207 | AK68: =dX_Adt(L68,G68,H68)*$B$1 -> 0.005324840987 | AL68: =dX_Adt(L68+0.5*AK68,G68,H68)*$B$1 -> 0.005325365286 | AM68: =dX_Adt(L68+0.5*AL68,G68,H68)*$B$1 -> 0.005325365337 | AN68: =dX_Adt(L68+AM68,G68,H68)*$B$1 -> 0.005325889688
D69: 2010 | E69: 0.5583333333 | F69: 32.00953527 | G69: 17.53609194 | H69: 4.824003422 | I69: 172.7866839 | J69: 44.28341693 | K69: 250.198411 | L69: 27.07179228 | M69: -0.2654573775 | N69: -0.2653663478 | O69: -0.2653663791 | P69: -0.2652746651 | Q69: -0.03790494909 | R69: -0.03790335054 | S69: -0.03790335061 | T69: -0.03790174885 | U69: -0.002707496364 | V69: -0.002707444163 | W69: -0.002707444164 | X69: -0.002707391937 | Y69: -0.1063948196 | Z69: -0.1063754413 | AA69: -0.1063754448 | AB69: -0.1063560652 | AC69: 0.2764454264 | AD69: 0.276339069 | AE69: 0.2763391099 | AF69: 0.2762328849 | AG69: 0.007446124206 | AH69: 0.007445941586 | AI69: 0.00744594159 | AJ69: 0.007445758974 | AK69: 0.005330041894 | AL69: 0.005330566598 | AM69: 0.005330566649 | AN69: 0.005331091405
D70: 2040 | E70: 0.5666666667 | F70: 31.74416902 | G70: 17.49818859 | H70: 4.821295978 | I70: 172.6803085 | J70: 44.55975604 | K70: 250.2058569 | L70: 27.10377568 | M70: -0.265323188 | N70: -0.2652307622 | O70: -0.2652307945 | P70: -0.2651376691 | Q70: -0.03793633006 | R70: -0.0379347218 | S70: -0.03793472187 | T70: -0.03793311037 | U70: -0.002709737861 | V70: -0.002709685505 | W70: -0.002709685506 | X70: -0.002709633125 | Y70: -0.1063573577 | Z70: -0.106337976 | AA70: -0.1063379796 | AB70: -0.1063185966 | AC70: 0.2760872827 | AD70: 0.2759812461 | AE70: 0.2759812868 | AF70: 0.2758753819 | AG70: 0.00756839843 | AH70: 0.007568213368 | AI70: 0.007568213373 | AJ70: 0.007568028314 | AK70: 0.00533524211 | AL70: 0.005335767218 | AM70: 0.005335767269 | AN70: 0.005336292429
D71: 2070 | E71: 0.575 | F71: 31.47893836 | G71: 17.46025387 | H71: 4.818586293 | I71: 172.5739705 | J71: 44.83573733 | K71: 250.2134251 | L71: 27.13579028 | M71: -0.2651863546 | N71: -0.2650925014 | O71: -0.2650925348 | P71: -0.2649979661 | Q71: -0.03796760653 | R71: -0.03796598849 | S71: -0.03796598856 | T71: -0.03796436726 | U71: -0.002711971895 | V71: -0.002711919384 | W71: -0.002711919385 | X71: -0.002711866848 | Y71: -0.1063199093 | Z71: -0.1063005242 | AA71: -0.1063005277 | AB71: -0.1062811413 | AC71: 0.2757275428 | AD71: 0.2756218264 | AE71: 0.2756218669 | AF71: 0.2755162816 | AG71: 0.007690276109 | AH71: 0.007690088635 | AI71: 0.00769008864 | AJ71: 0.007689901168 | AK71: 0.00534044159 | AL71: 0.005340967101 | AM71: 0.005340967153 | AN71: 0.005341492716
D72: 2100 | E72: 0.5833333333 | F72: 31.21384596 | G72: 17.42228788 | H72: 4.815874373 | I72: 172.46767 | J72: 45.1113592 | K72: 250.2211152 | L72: 27.16783609 | M72: -0.2650468134 | N72: -0.2649515005 | O72: -0.264951535 | P72: -0.2648554903 | Q72: -0.03799877647 | R72: -0.03799714858 | S72: -0.03799714865 | T72: -0.03799551746 | U72: -0.002714198319 | V72: -0.002714145653 | W72: -0.002714145654 | X72: -0.002714092961 | Y72: -0.1062824741 | Z72: -0.1062630857 | AA72: -0.1062630892 | AB72: -0.1062436994 | AC72: 0.2753661512 | AD72: 0.2752607543 | AE72: 0.2752607947 | AF72: 0.2751555282 | AG72: 0.007811758157 | AH72: 0.007811568298 | AI72: 0.007811568303 | AJ72: 0.007811378448 | AK72: 0.005345640291 | AL72: 0.005346166204 | AM72: 0.005346166256 | AN72: 0.005346692221
D73: 2130 | E73: 0.5916666667 | F73: 30.94889456 | G73: 17.38429073 | H73: 4.813160228 | I73: 172.3614069 | J73: 45.38661999 | K73: 250.2289268 | L73: 27.19991308 | M73: -0.2649044987 | N73: -0.2648076929 | O73: -0.2648077284 | P73: -0.264710174 | Q73: -0.03802983776 | R73: -0.03802819995 | S73: -0.03802820002 | T73: -0.03802655887 | U73: -0.002716416983 | V73: -0.002716364161 | W73: -0.002716364162 | X73: -0.002716311313 | Y73: -0.1062450522 | Z73: -0.1062256603 | AA73: -0.1062256639 | AB73: -0.1062062707 | AC73: 0.2750030504 | AD73: 0.2748979726 | AE73: 0.2748980127 | AF73: 0.2747930645 | AG73: 0.007932845456 | AH73: 0.007932653242 | AI73: 0.007932653247 | AJ73: 0.007932461036 | AK73: 0.005350838166 | AL73: 0.005351364482 | AM73: 0.005351364534 | AN73: 0.005351890901
D74: 2160 | E74: 0.6 | F74: 30.68408698 | G74: 17.34626253 | H74: 4.810443864 | I74: 172.2551812 | J74: 45.66151801 | K74: 250.2368595 | L74: 27.23202127 | M74: -0.2647593428 | N74: -0.2646610097 | O74: -0.2646610464 | P74: -0.2645619475 | Q74: -0.03806078825 | R74: -0.03805914044 | S74: -0.03805914051 | T74: -0.03805748934 | U74: -0.002718627732 | V74: -0.002718574754 | W74: -0.002718574755 | X74: -0.00271852175 | Y74: -0.1062076434 | Z74: -0.1061882481 | AA74: -0.1061882516 | AB74: -0.106168855 | AC74: 0.2746381817 | AD74: 0.2745334223 | AE74: 0.2745334622 | AF74: 0.2744288318 | AG74: 0.008053538863 | AH74: 0.008053344322 | AI74: 0.008053344326 | AJ74: 0.008053149788 | AK74: 0.005356035173 | AL74: 0.005356561889 | AM74: 0.005356561941 | AN74: 0.005357088709
D75: 2190 | E75: 0.6083333333 | F75: 30.41942608 | G75: 17.30820339 | H75: 4.807725289 | I75: 172.148993 | J75: 45.93605147 | K75: 250.2449128 | L75: 27.26416064 | M75: -0.2646112759 | N75: -0.2645113804 | O75: -0.2645114183 | P75: -0.2644107391 | Q75: -0.03809162571 | R75: -0.03808996782 | S75: -0.03808996789 | T75: -0.03808830661 | U75: -0.002720830408 | V75: -0.002720777273 | W75: -0.002720777274 | X75: -0.002720724113 | Y75: -0.1061702475 | Z75: -0.1061508488 | AA75: -0.1061508523 | AB75: -0.1061314523 | AC75: 0.2742714845 | AD75: 0.274167043 | AE75: 0.2741670827 | AF75: 0.2740627695 | AG75: 0.008173839202 | AH75: 0.008173642362 | AI75: 0.008173642367 | AJ75: 0.00817344553 | AK75: 0.005361231263 | AL75: 0.00536175838 | AM75: 0.005361758432 | AN75: 0.005362285601
D76: 2220 | E76: 0.6166666667 | F76: 30.15491481 | G76: 17.27011343 | H76: 4.805004512 | I76: 172.0428421 | J76: 46.21021856 | K76: 250.2530864 | L76: 27.29633119 | M76: -0.2644602263 | N76: -0.264358732 | O76: -0.2643587711 | P76: -0.2642564748 | Q76: -0.03812234784 | R76: -0.0381206798 | S76: -0.03812067987 | T76: -0.03811900841 | U76: -0.002723024846 | V76: -0.002722971554 | W76: -0.002722971555 | X76: -0.002722918237 | Y76: -0.1061328645 | Z76: -0.1061134624 | AA76: -0.1061134659 | AB76: -0.1060940624 | AC76: 0.2739028966 | AD76: 0.2737987725 | AE76: 0.2737988121 | AF76: 0.2736948155 | AG76: 0.008293747271 | AH76: 0.008293548161 | AI76: 0.008293548166 | AJ76: 0.008293349059 | AK76: 0.005366426393 | AL76: 0.00536695391 | AM76: 0.005366953962 | AN76: 0.00536748153
D77: 2250 | E77: 0.625 | F77: 29.89055619 | G77: 17.23199275 | H77: 4.80228154 | I77: 171.9367286 | J77: 46.48401737 | K77: 250.26138 | L77: 27.32853292 | M77: -0.2643061201 | N77: -0.2642029896 | O77: -0.26420303 | P77: -0.2640990786 | Q77: -0.03815295227 | R77: -0.03815127401 | S77: -0.03815127408 | T77: -0.03814959237 | U77: -0.002725210877 | V77: -0.002725157428 | W77: -0.002725157429 | X77: -0.002725103954 | Y77: -0.1060954943 | Z77: -0.1060760887 | AA77: -0.1060760922 | AB77: -0.1060566853 | AC77: 0.2735323541 | AD77: 0.2734285469 | AE77: 0.2734285863 | AF77: 0.273324906 | AG77: 0.008413263836 | AH77: 0.008413062483 | AI77: 0.008413062488 | AJ77: 0.008412861139 | AK77: 0.005371620516 | AL77: 0.005372148432 | AM77: 0.005372148483 | AN77: 0.005372676451
D78: 2280 | E78: 0.6333333333 | F78: 29.62635332 | G78: 17.19384147 | H78: 4.799556383 | I78: 171.8306526 | J78: 46.75744596 | K78: 250.2697931 | L78: 27.36076581 | M78: -0.2641488812 | N78: -0.2640440758 | O78: -0.2640441176 | P78: -0.2639384719 | Q78: -0.03818343658 | R78: -0.03818174802 | S78: -0.03818174809 | T78: -0.03818005605 | U78: -0.002727388327 | V78: -0.002727334722 | W78: -0.002727334723 | X78: -0.002727281091 | Y78: -0.1060581367 | Z78: -0.1060387276 | AA78: -0.1060387312 | AB78: -0.1060193208 | AC78: 0.2731597912 | AD78: 0.2730563004 | AE78: 0.2730563396 | AF78: 0.2729529751 | AG78: 0.008532389632 | AH78: 0.008532186066 | AI78: 0.008532186071 | AJ78: 0.008531982508 | AK78: 0.005376813585 | AL78: 0.005377341899 | AM78: 0.005377341951 | AN78: 0.005377870316
D79: 2310 | E79: 0.6416666667 | F79: 29.36230936 | G79: 17.15565973 | H79: 4.796829048 | I79: 171.7246138 | J79: 47.0305023 | K79: 250.2783252 | L79: 27.39302986 | M79: -0.263988431 | N79: -0.2638819111 | O79: -0.2638819543 | P79: -0.263774574 | Q79: -0.03821379826 | R79: -0.03821209932 | S79: -0.03821209939 | T79: -0.03821039694 | U79: -0.002729557019 | V79: -0.002729503256 | W79: -0.002729503257 | X79: -0.002729449467 | Y79: -0.1060207916 | Z79: -0.1060013791 | AA79: -0.1060013826 | AB79: -0.1059819688 | AC79: 0.27278514 | AD79: 0.2726819653 | AE79: 0.2726820043 | AF79: 0.2725789551 | AG79: 0.008651125365 | AH79: 0.008650919613 | AI79: 0.008650919618 | AJ79: 0.008650713869 | AK79: 0.005382005554 | AL79: 0.005382534265 | AM79: 0.005382534317 | AN79: 0.005383063079
D80: 2340 | E80: 0.65 | F80: 29.09842757 | G80: 17.11744763 | H80: 4.794099545 | I80: 171.6186124 | J80: 47.3031843 | K80: 250.2869762 | L80: 27.42532506 | M80: -0.2638246888 | N80: -0.2637164134 | O80: -0.263716458 | P80: -0.2636073015 | Q80: -0.03824403473 | R80: -0.03824232533 | S80: -0.03824232541 | T80: -0.03824061247 | U80: -0.002731716766 | V80: -0.002731662846 | W80: -0.002731662847 | X80: -0.002731608899 | Y80: -0.1059834589 | Z80: -0.1059640429 | AA80: -0.1059640465 | AB80: -0.1059446292 | AC80: 0.272408331 | AD80: 0.2723054718 | AE80: 0.2723055107 | AF80: 0.2722027765 | AG80: 0.008769471707 | AH80: 0.008769263797 | AI80: 0.008769263802 | AJ80: 0.008769055895 | AK80: 0.005387196374 | AL80: 0.005387725482 | AM80: 0.005387725534 | AN80: 0.005388254693
D81: 2370 | E81: 0.6583333333 | F81: 28.83471128 | G81: 17.0792053 | H81: 4.791367882 | I81: 171.5126484 | J81: 47.57548982 | K81: 250.2957454 | L81: 27.45765142 | M81: -0.2636575713 | N81: -0.263547498 | O81: -0.2635475442 | P81: -0.2634365685 | Q81: -0.03827414332 | R81: -0.03827242339 | S81: -0.03827242347 | T81: -0.03827069997 | U81: -0.00273386738 | V81: -0.002733813302 | W81: -0.002733813303 | X81: -0.002733759197 | Y81: -0.1059461385 | Z81: -0.1059267191 | AA81: -0.1059267226 | AB81: -0.1059073018 | AC81: 0.2720292923 | AD81: 0.2719267484 | AE81: 0.271926787 | AF81: 0.2718243674 | AG81: 0.008887429298 | AH81: 0.008887219258 | AI81: 0.008887219263 | AJ81: 0.008887009226 | AK81: 0.005392386 | AL81: 0.005392915503 | AM81: 0.005392915555 | AN81: 0.00539344511
D82: 2400 | E82: 0.6666666667 | F82: 28.57116391 | G82: 17.04093288 | H82: 4.788634068 | I82: 171.4067217 | J82: 47.8474166 | K82: 250.3046326 | L82: 27.49000891 | M82: -0.2634869925 | N82: -0.2633750779 | O82: -0.2633751256 | P82: -0.2632622866 | Q82: -0.03830412131 | R82: -0.03830239076 | S82: -0.03830239084 | T82: -0.03830065669 | U82: -0.002736008665 | V82: -0.002735954428 | W82: -0.002735954429 | X82: -0.002735900165 | Y82: -0.1059088303 | Z82: -0.1058894074 | AA82: -0.1058894109 | AB82: -0.1058699867 | AC82: 0.2716479501 | AD82: 0.2715457211 | AE82: 0.2715457595 | AF82: 0.2714436542 | AG82: 0.009004998747 | AH82: 0.009004786604 | AI82: 0.009004786609 | AJ82: 0.00900457447 | AK82: 0.005397574381 | AL82: 0.005398104279 | AM82: 0.005398104331 | AN82: 0.005398634282
D83: 2430 | E83: 0.675 | F83: 28.30778896 | G83: 17.00263049 | H83: 4.785898114 | I83: 171.3008323 | J83: 48.11896237 | K83: 250.3136374 | L83: 27.52239754 | M83: -0.2633128639 | N83: -0.2631990629 | O83: -0.2631991123 | P83: -0.2630843642 | Q83: -0.03833396585 | R83: -0.03833222461 | S83: -0.03833222469 | T83: -0.03833047982 | U83: -0.002738140418 | V83: -0.002738086022 | W83: -0.002738086023 | X83: -0.002738031601 | Y83: -0.1058715342 | Z83: -0.1058521078 | AA83: -0.1058521113 | AB83: -0.1058326836 | AC83: 0.2712642282 | AD83: 0.2711623138 | AE83: 0.2711623521 | AF83: 0.2710605606 | AG83: 0.009122180627 | AH83: 0.00912196641 | AI83: 0.009121966415 | AJ83: 0.009121752201 | AK83: 0.005402761471 | AL83: 0.005403291763 | AM83: 0.005403291816 | AN83: 0.00540382216
D84: 2460 | E84: 0.6833333333 | F84: 28.04459004 | G84: 16.96429827 | H84: 4.783160028 | I84: 171.1949802 | J84: 48.39012472 | K84: 250.3227594 | L84: 27.55481729 | M84: -0.2631350941 | N84: -0.2630193605 | O84: -0.2630194116 | P84: -0.2629027074 | Q84: -0.03836367404 | R84: -0.03836192203 | S84: -0.03836192211 | T84: -0.03836016644 | U84: -0.002740262431 | V84: -0.002740207877 | W84: -0.002740207878 | X84: -0.002740153297 | Y84: -0.10583425 | Z84: -0.1058148201 | AA84: -0.1058148237 | AB84: -0.1057953925 | AC84: 0.2708780483 | AD84: 0.2707764482 | AE84: 0.2707764863 | AF84: 0.2706750085 | AG84: 0.009238975477 | AH84: 0.009238759213 | AI84: 0.009238759218 | AJ84: 0.009238542957 | AK84: 0.00540794722 | AL84: 0.005408477906 | AM84: 0.005408477958 | AN84: 0.005409008696
D85: 2490 | E85: 0.6916666667 | F85: 27.78157081 | G85: 16.92593634 | H85: 4.78041982 | I85: 171.0891653 | J85: 48.66090121 | K85: 250.3319982 | L85: 27.58726815 | M85: -0.262953589 | N85: -0.2628358748 | O85: -0.2628359277 | P85: -0.2627172187 | Q85: -0.03839324288 | R85: -0.03839148002 | S85: -0.0383914801 | T85: -0.03838971354 | U85: -0.002742374491 | V85: -0.002742319778 | W85: -0.002742319779 | X85: -0.002742265039 | Y85: -0.1057969777 | Z85: -0.1057775443 | AA85: -0.1057775478 | AB85: -0.1057581131 | AC85: 0.2704893295 | AD85: 0.2703880434 | AE85: 0.2703880814 | AF85: 0.270286917 | AG85: 0.009355383802 | AH85: 0.009355165519 | AI85: 0.009355165524 | AJ85: 0.009354947243 | AK85: 0.00541313158 | AL85: 0.005413662658 | AM85: 0.00541366271 | AN85: 0.005414193841
D86: 2520 | E86: 0.7 | F86: 27.51873508 | G86: 16.88754486 | H86: 4.7776775 | I86: 170.9833878 | J86: 48.93128929 | K86: 250.3413533 | L86: 27.61975013 | M86: -0.2627682512 | N86: -0.262648507 | O86: -0.2626485618 | P86: -0.2625277979 | Q86: -0.03842266926 | R86: -0.03842089547 | S86: -0.03842089555 | T86: -0.03841911803 | U86: -0.002744476376 | V86: -0.002744421504 | W86: -0.002744421505 | X86: -0.002744366605 | Y86: -0.1057597171 | Z86: -0.1057402802 | AA86: -0.1057402838 | AB86: -0.1057208456 | AC86: 0.2700979886 | AD86: 0.2699970164 | AE86: 0.2699970541 | AF86: 0.2698962029 | AG86: 0.009471406072 | AH86: 0.009471185796 | AI86: 0.009471185801 | AJ86: 0.009470965528 | AK86: 0.005418314501 | AL86: 0.00541884597 | AM86: 0.005418846023 | AN86: 0.005419377545
D87: 2550 | E87: 0.7083333333 | F87: 27.25608671 | G87: 16.84912397 | H87: 4.774933079 | I87: 170.8776475 | J87: 49.20128634 | K87: 250.3508245 | L87: 27.65226321 | M87: -0.2625789805 | N87: -0.2624571553 | O87: -0.2624572121 | P87: -0.2623343414 | Q87: -0.03845195 | R87: -0.0384501652 | S87: -0.03845016528 | T87: -0.03844837671 | U87: -0.002746567857 | V87: -0.002746512825 | W87: -0.002746512827 | X87: -0.002746457767 | Y87: -0.1057224681 | Z87: -0.1057030277 | AA87: -0.1057030313 | AB87: -0.1056835896 | AC87: 0.2697039397 | AD87: 0.2696032811 | AE87: 0.2696033187 | AF87: 0.2695027805 | AG87: 0.009587042717 | AH87: 0.009586820476 | AI87: 0.009586820481 | AJ87: 0.009586598243 | AK87: 0.005423495932 | AL87: 0.005424027793 | AM87: 0.005424027845 | AN87: 0.005424559758
D88: 2580 | E88: 0.7166666667 | F88: 26.9936297 | G88: 16.81067381 | H88: 4.772186566 | I88: 170.7719445 | J88: 49.47088966 | K88: 250.3604113 | L88: 27.68480737 | M88: -0.2623856732 | N88: -0.2622617144 | O88: -0.2622617733 | P88: -0.2621367423 | Q88: -0.03848108179 | R88: -0.03847928589 | S88: -0.03847928598 | T88: -0.03847748628 | U88: -0.002748648699 | V88: -0.002748593508 | W88: -0.002748593509 | X88: -0.00274853829 | Y88: -0.1056852307 | Z88: -0.1056657868 | AA88: -0.1056657903 | AB88: -0.1056463451 | AC88: 0.2693070943 | AD88: 0.2692067492 | AE88: 0.2692067866 | AF88: 0.2691065612 | AG88: 0.009702294132 | AH88: 0.009702069954 | AI88: 0.009702069959 | AJ88: 0.009701845783 | AK88: 0.005428675824 | AL88: 0.005429208075 | AM88: 0.005429208127 | AN88: 0.00542974043
D89: 2610 | E89: 0.725 | F89: 26.73136814 | G89: 16.77219452 | H89: 4.769437973 | I89: 170.6662787 | J89: 49.74009645 | K89: 250.3701134 | L89: 27.71738262 | M89: -0.2621882225 | N89: -0.2620620757 | O89: -0.2620621366 | P89: -0.2619348901 | Q89: -0.03851006124 | R89: -0.03850825417 | S89: -0.03850825425 | T89: -0.03850644334 | U89: -0.00275071866 | V89: -0.002750663309 | W89: -0.00275066331 | X89: -0.002750607931 | Y89: -0.1056480046 | Z89: -0.1056285572 | AA89: -0.1056285608 | AB89: -0.1056091121 | AC89: 0.2689073609 | AD89: 0.2688073292 | AE89: 0.2688073664 | AF89: 0.2687074538 | AG89: 0.009817160675 | AH89: 0.009816934586 | AI89: 0.009816934591 | AJ89: 0.009816708505 | AK89: 0.005433854127 | AL89: 0.005434386767 | AM89: 0.005434386819 | AN89: 0.005434919511
D90: 2640 | E90: 0.7333333333 | F90: 26.46930621 | G90: 16.73368627 | H90: 4.766687309 | I90: 170.5606501 | J90: 50.00890382 | K90: 250.3799303 | L90: 27.74998894 | M90: -0.2619865179 | N90: -0.2618581268 | O90: -0.26185819 | P90: -0.2617286708 | Q90: -0.03853888484 | R90: -0.0385370665 | S90: -0.03853706659 | T90: -0.03853524437 | U90: -0.002752777489 | V90: -0.002752721978 | W90: -0.002752721979 | X90: -0.00275266644 | Y90: -0.1056107899 | Z90: -0.105591339 | AA90: -0.1055913425 | AB90: -0.1055718903 | AC90: 0.2685046455 | AD90: 0.2684049271 | AE90: 0.2684049641 | AF90: 0.2683053641 | AG90: 0.009931642662 | AH90: 0.00993141469 | AI90: 0.009931414695 | AJ90: 0.009931186725 | AK90: 0.005439030789 | AL90: 0.005439563817 | AM90: 0.00543956387 | AN90: 0.00544009695
D91: 2670 | E91: 0.7416666667 | F91: 26.20744824 | G91: 16.6951492 | H91: 4.763934587 | I91: 170.4550588 | J91: 50.27730879 | K91: 250.3898617 | L91: 27.78262633 | M91: -0.2617804453 | N91: -0.2616497519 | O91: -0.2616498175 | P91: -0.2615179666 | Q91: -0.03856754896 | R91: -0.03856571927 | S91: -0.03856571936 | T91: -0.03856388577 | U91: -0.002754824926 | V91: -0.002754769254 | W91: -0.002754769255 | X91: -0.002754713556 | Y91: -0.1055735864 | Z91: -0.1055541319 | AA91: -0.1055541355 | AB91: -0.1055346797 | AC91: 0.2680988506 | AD91: 0.2679994454 | AE91: 0.2679994823 | AF91: 0.2679001949 | AG91: 0.01004574037 | AH91: 0.01004551054 | AI91: 0.01004551055 | AJ91: 0.01004528072 | AK91: 0.005444205759 | AL91: 0.005444739175 | AM91: 0.005444739227 | AN91: 0.005445272695
D92: 2700 | E92: 0.75 | F92: 25.94579865 | G92: 16.65658348 | H92: 4.761179818 | I92: 170.3495047 | J92: 50.54530827 | K92: 250.3999073 | L92: 27.81529476 | M92: -0.2615698868 | N92: -0.2614368312 | O92: -0.2614368992 | P92: -0.2613026556 | Q92: -0.03859604986 | R92: -0.03859420874 | S92: -0.03859420883 | T92: -0.03859236377 | U92: -0.002756860704 | V92: -0.002756804872 | W92: -0.002756804873 | X92: -0.002756749013 | Y92: -0.1055363939 | Z92: -0.1055169359 | AA92: -0.1055169395 | AB92: -0.1054974802 | AC92: 0.267689876 | AD92: 0.267590784 | AE92: 0.2675908206 | AF92: 0.2674918458 | AG92: 0.01015945404 | AH92: 0.01015922238 | AI92: 0.01015922238 | AJ92: 0.01015899073 | AK92: 0.005449378986 | AL92: 0.005449912788 | AM92: 0.00544991284 | AN92: 0.005450446695
D93: 2730 | E93: 0.7583333333 | F93: 25.68436198 | G93: 16.61798927 | H93: 4.758423013 | I93: 170.2439877 | J93: 50.81289909 | K93: 250.4100665 | L93: 27.84799424 | M93: -0.2613547207 | N93: -0.2612192408 | O93: -0.2612193113 | P93: -0.261082612 | Q93: -0.03862438367 | R93: -0.03862253104 | S93: -0.03862253113 | T93: -0.03862067451 | U93: -0.002758884548 | V93: -0.002758828555 | W93: -0.002758828557 | X93: -0.002758772536 | Y93: -0.1054992124 | Z93: -0.1054797509 | AA93: -0.1054797545 | AB93: -0.1054602916 | AC93: 0.2672776178 | AD93: 0.267178839 | AE93: 0.2671788755 | AF93: 0.2670802133 | AG93: 0.01027278386 | AH93: 0.01027255039 | AI93: 0.0102725504 | AJ93: 0.01027231694 | AK93: 0.005454550417 | AL93: 0.005455084605 | AM93: 0.005455084657 | AN93: 0.005455618897
D94: 2760 | E94: 0.7666666667 | F94: 25.42314291 | G94: 16.57936674 | H94: 4.755664185 | I94: 170.138508 | J94: 51.08007797 | K94: 250.420339 | L94: 27.88072475 | M94: -0.2611348212 | N94: -0.2609968527 | O94: -0.260996926 | P94: -0.2608577057 | Q94: -0.03865254641 | R94: -0.03865068217 | S94: -0.03865068226 | T94: -0.03864881401 | U94: -0.002760896172 | V94: -0.002760840019 | W94: -0.00276084002 | X94: -0.002760783838 | Y94: -0.1054620418 | Z94: -0.1054425767 | AA94: -0.1054425803 | AB94: -0.1054231139 | AC94: 0.266861969 | AD94: 0.2667635036 | AE94: 0.2667635399 | AF94: 0.2666651903 | AG94: 0.01038572998 | AH94: 0.01038549474 | AI94: 0.01038549474 | AJ94: 0.01038525951 | AK94: 0.00545972 | AL94: 0.005460254572 | AM94: 0.005460254625 | AN94: 0.00546078925
D95: 2790 | E95: 0.775 | F95: 25.16214623 | G95: 16.54071606 | H95: 4.752903345 | I95: 170.0330654 | J95: 51.34684151 | K95: 250.4307245 | L95: 27.91348627 | M95: -0.2609100579 | N95: -0.2607695346 | O95: -0.2607696107 | P95: -0.2606278019 | Q95: -0.03868053394 | R95: -0.03867865802 | S95: -0.03867865811 | T95: -0.03867677813 | U95: -0.002762895282 | V95: -0.002762838967 | W95: -0.002762838968 | X95: -0.002762782625 | Y95: -0.1054248819 | Z95: -0.1054054133 | AA95: -0.1054054169 | AB95: -0.1053859469 | AC95: 0.266442819 | AD95: 0.266344667 | AE95: 0.2663447031 | AF95: 0.2662466663 | AG95: 0.01049829251 | AH95: 0.01049805552 | AI95: 0.01049805552 | AJ95: 0.01049781854 | AK95: 0.005464887682 | AL95: 0.005465422638 | AM95: 0.005465422691 | AN95: 0.005465957699
D96: 2820 | E96: 0.7833333333 | F96: 24.90137687 | G96: 16.5020374 | H96: 4.750140506 | I96: 169.92766 | J96: 51.61318621 | K96: 250.4412226 | L96: 27.94627881 | M96: -0.2606802963 | N96: -0.2605371496 | O96: -0.2605372286 | P96: -0.2603927616 | Q96: -0.03870834201 | R96: -0.03870645431 | S96: -0.0387064544 | T96: -0.03870456261 | U96: -0.002764881572 | V96: -0.002764825097 | W96: -0.002764825098 | X96: -0.002764768594 | Y96: -0.1053877327 | Z96: -0.1053682605 | AA96: -0.1053682641 | AB96: -0.1053487906 | AC96: 0.2660200535 | AD96: 0.2659222149 | AE96: 0.2659222509 | AF96: 0.265824527 | AG96: 0.01061047151 | AH96: 0.0106102328 | AI96: 0.0106102328 | AJ96: 0.01060999409 | AK96: 0.00547005341 | AL96: 0.00547058875 | AM96: 0.005470588802 | AN96: 0.005471124194
D97: 2850 | E97: 0.7916666667 | F97: 24.6408399 | G97: 16.46333095 | H97: 4.74737568 | I97: 169.8222917 | J97: 51.87910847 | K97: 250.4518328 | L97: 27.97910234 | M97: -0.2604453973 | N97: -0.2602995561 | O97: -0.2602996381 | P97: -0.2601524407 | Q97: -0.03873596621 | R97: -0.03873406665 | S97: -0.03873406674 | T97: -0.03873216304 | U97: -0.002766854729 | V97: -0.002766798092 | W97: -0.002766798094 | X97: -0.002766741428 | Y97: -0.1053505941 | Z97: -0.1053311183 | AA97: -0.1053311219 | AB97: -0.1053116448 | AC97: 0.2655935541 | AD97: 0.2654960293 | AE97: 0.2654960651 | AF97: 0.2653986543 | AG97: 0.010722267 | AH97: 0.01072202659 | AI97: 0.01072202659 | AJ97: 0.01072178618 | AK97: 0.005475217131 | AL97: 0.005475752853 | AM97: 0.005475752905 | AN97: 0.005476288679
D98: 2880 | E98: 0.8 | F98: 24.38054053 | G98: 16.42459688 | H98: 4.744608882 | I98: 169.7169606 | J98: 52.14460453 | K98: 250.4625548 | L98: 28.01195686 | M98: -0.2602052167 | N98: -0.2600566075 | O98: -0.2600566928 | P98: -0.25990669 | Q98: -0.03876340198 | R98: -0.03876149046 | S98: -0.03876149056 | T98: -0.03875957487 | U98: -0.002768814427 | V98: -0.002768757629 | W98: -0.00276875763 | X98: -0.002768700803 | Y98: -0.1053134658 | Z98: -0.1052939864 | AA98: -0.10529399 | AB98: -0.1052745094 | AC98: 0.2651631988 | AD98: 0.2650659879 | AE98: 0.2650660235 | AF98: 0.264968926 | AG98: 0.01083367894 | AH98: 0.01083343686 | AI98: 0.01083343686 | AJ98: 0.01083319478 | AK98: 0.005480378792 | AL98: 0.005480914894 | AM98: 0.005480914946 | AN98: 0.005481451101
D99: 2910 | E99: 0.8083333333 | F99: 24.12048411 | G99: 16.38583539 | H99: 4.741840125 | I99: 169.6116666 | J99: 52.40967056 | K99: 250.4733883 | L99: 28.04484235 | M99: -0.2599596054 | N99: -0.2598081521 | O99: -0.2598082408 | P99: -0.2596553554 | Q99: -0.03879064462 | R99: -0.03878872106 | S99: -0.03878872115 | T99: -0.03878679339 | U99: -0.00277076033 | V99: -0.00277070337 | W99: -0.002770703371 | X99: -0.002770646382 | Y99: -0.1052763479 | Z99: -0.105256865 | AA99: -0.1052568686 | AB99: -0.1052373843 | AC99: 0.264728861 | AD99: 0.2646319644 | AE99: 0.2646319999 | AF99: 0.2645352159 | AG99: 0.01094470725 | AH99: 0.01094446352 | AI99: 0.01094446353 | AJ99: 0.0109442198 | AK99: 0.005485538336 | AL99: 0.005486074819 | AM99: 0.005486074871 | AN99: 0.005486611406
D100: 2940 | E100: 0.8166666667 | F100: 23.86067616 | G100: 16.34704667 | H100: 4.739069421 | I100: 169.5064097 | J100: 52.67430256 | K100: 250.4843327 | L100: 28.0777588 | M100: -0.2597084092 | N100: -0.2595540331 | O100: -0.2595541253 | P100: -0.2593982771 | Q100: -0.03881768924 | R100: -0.03881575354 | S100: -0.03881575364 | T100: -0.03881381371 | U100: -0.002772692088 | V100: -0.002772634966 | W100: -0.002772634967 | X100: -0.002772577816 | Y100: -0.1052392402 | Z100: -0.1052197537 | AA100: -0.1052197573 | AB100: -0.1052002695 | AC100: 0.2642904102 | AD100: 0.2641938281 | AE100: 0.2641938634 | AF100: 0.2640973933 | AG100: 0.0110553518 | AH100: 0.01105510646 | AI100: 0.01105510646 | AJ100: 0.01105486112 | AK100: 0.005490695712 | AL100: 0.005491232573 | AM100: 0.005491232626 | AN100: 0.00549176954
D101: 2970 | E101: 0.825 | F101: 23.60112232 | G101: 16.30823092 | H101: 4.736296786 | I101: 169.40119 | J101: 52.93849642 | K101: 250.4953878 | L101: 28.11070619 | M101: -0.2594514682 | N101: -0.2592940876 | O101: -0.2592941836 | P101: -0.2591352895 | Q101: -0.0388445308 | R101: -0.03884258289 | S101: -0.03884258299 | T101: -0.03884063079 | U101: -0.002774609343 | V101: -0.002774552059 | W101: -0.00277455206 | X101: -0.002774494747 | Y101: -0.1052021426 | Z101: -0.1051826525 | AA101: -0.1051826561 | AB101: -0.1051631647 | AC101: 0.2638477109 | AD101: 0.2637514437 | AE101: 0.2637514788 | AF101: 0.263655323 | AG101: 0.01116561241 | AH101: 0.01116536547 | AI101: 0.01116536547 | AJ101: 0.01116511853 | AK101: 0.005495850862 | AL101: 0.005496388102 | AM101: 0.005496388155 | AN101: 0.005496925447
D102: 3000 | E102: 0.8333333333 | F102: 23.34182844 | G102: 16.26938834 | H102: 4.733522234 | I102: 169.2960073 | J102: 53.2022479 | K102: 250.5065532 | L102: 28.14368452 | M102: -0.2591886171 | N102: -0.2590281474 | O102: -0.2590282473 | P102: -0.2588662213 | Q102: -0.03887116409 | R102: -0.03886920386 | S102: -0.03886920396 | T102: -0.03886723942 | U102: -0.002776511721 | V102: -0.002776454275 | W102: -0.002776454276 | X102: -0.002776396801 | Y102: -0.1051650551 | Z102: -0.1051455614 | AA102: -0.105145565 | AB102: -0.10512607 | AC102: 0.2634006231 | AD102: 0.2633046711 | AE102: 0.2633047061 | AF102: 0.263208865 | AG102: 0.01127548883 | AH102: 0.01127524032 | AI102: 0.01127524033 | AJ102: 0.01127499182 | AK102: 0.005501003733 | AL102: 0.00550154135 | AM102: 0.005501541403 | AN102: 0.005502079072
D103: 3030 | E103: 0.8416666667 | F103: 23.0828005 | G103: 16.23051914 | H103: 4.73074578 | I103: 169.1908618 | J103: 53.46555261 | K103: 250.5178285 | L103: 28.17669377 | M103: -0.2589196843 | N103: -0.258756038 | O103: -0.258756142 | P103: -0.2585908948 | Q103: -0.0388975837 | R103: -0.03889561107 | S103: -0.03889561117 | T103: -0.03889363418 | U103: -0.002778398836 | V103: -0.002778341228 | W103: -0.002778341229 | X103: -0.002778283591 | Y103: -0.1051279774 | Z103: -0.1051084801 | AA103: -0.1051084837 | AB103: -0.1050889851 | AC103: 0.2629490017 | AD103: 0.2628533656 | AE103: 0.2628534003 | AF103: 0.2627578743 | AG103: 0.01138498077 | AH103: 0.01138473072 | AI103: 0.01138473073 | AJ103: 0.01138448068 | AK103: 0.005506154269 | AL103: 0.005506692262 | AM103: 0.005506692315 | AN103: 0.005507230361
D104: 3060 | E104: 0.85 | F104: 22.82404468 | G104: 16.19162353 | H104: 4.727967439 | I104: 169.0857533 | J104: 53.72840601 | K104: 250.5292132 | L104: 28.20973393 | M104: -0.2586444923 | N104: -0.2584775785 | O104: -0.2584776868 | P104: -0.2583091261 | Q104: -0.03892378404 | R104: -0.03892179892 | S104: -0.03892179902 | T104: -0.03891980949 | U104: -0.002780270289 | V104: -0.002780212518 | W104: -0.002780212519 | X104: -0.002780154719 | Y104: -0.1050909095 | Z104: -0.1050714086 | AA104: -0.1050714122 | AB104: -0.1050519101 | AC104: 0.2624926967 | AD104: 0.2623973768 | AE104: 0.2623974114 | AF104: 0.262302201 | AG104: 0.01149408789 | AH104: 0.01149383632 | AI104: 0.01149383633 | AJ104: 0.01149358476 | AK104: 0.005511302414 | AL104: 0.005511840782 | AM104: 0.005511840835 | AN104: 0.005512379256
D105: 3090 | E105: 0.8583333333 | F105: 22.56556732 | G105: 16.15270173 | H105: 4.725187226 | I105: 168.9806819 | J105: 53.99080342 | K105: 250.540707 | L105: 28.24280497 | M105: -0.2583628569 | N105: -0.2581925815 | O105: -0.2581926943 | P105: -0.2580207242 | Q105: -0.03894975932 | R105: -0.0389477616 | S105: -0.03894776171 | T105: -0.03894575955 | U105: -0.002782125665 | V105: -0.002782067733 | W105: -0.002782067734 | X105: -0.002782009771 | Y105: -0.1050538514 | Z105: -0.1050343468 | AA105: -0.1050343504 | AB105: -0.1050148447 | AC105: 0.2620315523 | AD105: 0.2619365492 | AE105: 0.2619365836 | AF105: 0.2618416895 | AG105: 0.01160280977 | AH105: 0.01160255671 | AI105: 0.01160255672 | AJ105: 0.01160230366 | AK105: 0.005516448112 | AL105: 0.005516986854 | AM105: 0.005516986907 | AN105: 0.005517525702
D106: 3120 | E106: 0.8666666667 | F106: 22.30737496 | G106: 16.11375397 | H106: 4.722405159 | I106: 168.8756475 | J106: 54.25274001 | K106: 250.5523096 | L106: 28.27590689 | M106: -0.2580745873 | N106: -0.2579008527 | O106: -0.2579009703 | P106: -0.2577254913 | Q106: -0.03897550352 | R106: -0.03897349313 | S106: -0.03897349323 | T106: -0.03897147835 | U106: -0.002783964537 | V106: -0.002783906442 | W106: -0.002783906443 | X106: -0.002783848318 | Y106: -0.1050168028 | Z106: -0.1049972946 | AA106: -0.1049972982 | AB106: -0.1049777888 | AC106: 0.2615654074 | AD106: 0.2614707217 | AE106: 0.261470756 | AF106: 0.2613761787 | AG106: 0.01171114595 | AH106: 0.01171089142 | AI106: 0.01171089143 | AJ106: 0.0117106369 | AK106: 0.005521591306 | AL106: 0.005522130422 | AM106: 0.005522130474 | AN106: 0.005522669643
D107: 3150 | E107: 0.875 | F107: 22.04947434 | G107: 16.07478047 | H107: 4.719621252 | I107: 168.7706502 | J107: 54.51421076 | K107: 250.5640205 | L107: 28.30903967 | M107: -0.2577794855 | N107: -0.2576021904 | O107: -0.257602313 | P107: -0.257423222 | Q107: -0.03900101044 | R107: -0.03899898727 | S107: -0.03899898738 | T107: -0.03899695968 | U107: -0.00278578646 | V107: -0.002785728202 | W107: -0.002785728203 | X107: -0.002785669915 | Y107: -0.1049797636 | Z107: -0.1049602519 | AA107: -0.1049602555 | AB107: -0.1049407425 | AC107: 0.2610940948 | AD107: 0.2609997273 | AE107: 0.2609997614 | AF107: 0.2609055015 | AG107: 0.01181909589 | AH107: 0.01181883992 | AI107: 0.01181883993 | AJ107: 0.01181858396 | AK107: 0.00552673194 | AL107: 0.005527271427 | AM107: 0.00552727148 | AN107: 0.005527811021
D108: 3180 | E108: 0.8833333333 | F108: 21.79187239 | G108: 16.03578149 | H108: 4.716835524 | I108: 168.66569 | J108: 54.77521053 | K108: 250.5758393 | L108: 28.3422033 | M108: -0.2574773464 | N108: -0.2572963856 | O108: -0.2572965135 | P108: -0.2571137034 | Q108: -0.03902627362 | R108: -0.03902423758 | S108: -0.03902423769 | T108: -0.03902219709 | U108: -0.002787590973 | V108: -0.002787532552 | W108: -0.002787532554 | X108: -0.002787474103 | Y108: -0.1049427339 | Z108: -0.1049232185 | AA108: -0.1049232221 | AB108: -0.1049037055 | AC108: 0.2606174413 | AD108: 0.2605233926 | AE108: 0.2605234265 | AF108: 0.2604294849 | AG108: 0.01192665901 | AH108: 0.01192640162 | AI108: 0.01192640163 | AJ108: 0.01192614425 | AK108: 0.005531869956 | AL108: 0.005532409815 | AM108: 0.005532409867 | AN108: 0.005532949779
D109: 3210 | E109: 0.8916666667 | F109: 21.53457625 | G109: 15.99675725 | H109: 4.714047991 | I109: 168.5607668 | J109: 55.03573395 | K109: 250.5877657 | L109: 28.37539776 | M109: -0.2571679568 | N109: -0.2569832213 | O109: -0.2569833548 | P109: -0.2567967145 | Q109: -0.03905128638 | R109: -0.03904923738 | S109: -0.03904923749 | T109: -0.03904718388 | U109: -0.002789377599 | V109: -0.002789319016 | W109: -0.002789319017 | X109: -0.002789260404 | Y109: -0.1049057134 | Z109: -0.1048861944 | AA109: -0.104886198 | AB109: -0.1048666778 | AC109: 0.2601352671 | AD109: 0.260041538 | AE109: 0.2600415718 | AF109: 0.2599479492 | AG109: 0.01203383463 | AH109: 0.01203357586 | AI109: 0.01203357587 | AJ109: 0.01203331709 | AK109: 0.005537005297 | AL109: 0.005537545526 | AM109: 0.005537545579 | AN109: 0.005538085861
D110: 3240 | E110: 0.9 | F110: 21.27759328 | G110: 15.95770801 | H110: 4.711258672 | I110: 168.4558806 | J110: 55.29577553 | K110: 250.5997993 | L110: 28.40862304 | M110: -0.2568510958 | N110: -0.2566624723 | O110: -0.2566626116 | P110: -0.2564720257 | Q110: -0.0390760418 | R110: -0.03907397974 | S110: -0.03907397985 | T110: -0.03907191313 | U110: -0.002791145843 | V110: -0.002791087097 | W110: -0.002791087098 | X110: -0.002791028322 | Y110: -0.1048687021 | Z110: -0.1048491795 | AA110: -0.1048491831 | AB110: -0.1048296592 | AC110: 0.2596473858 | AD110: 0.2595539772 | AE110: 0.2595540108 | AF110: 0.259460708 | AG110: 0.01214062204 | AH110: 0.0121403619 | AI110: 0.01214036191 | AJ110: 0.01214010177 | AK110: 0.005542137906 | AL110: 0.005542678504 | AM110: 0.005542678557 | AN110: 0.005543219208
D111: 3270 | E111: 0.9083333333 | F111: 21.02093106 | G111: 15.91863403 | H111: 4.708467585 | I111: 168.3510314 | J111: 55.55532954 | K111: 250.6119396 | L111: 28.44187911 | M111: -0.2565265338 | N111: -0.2563339047 | O111: -0.2563340502 | P111: -0.2561393989 | Q111: -0.03910053267 | R111: -0.03909845745 | S111: -0.03909845756 | T111: -0.03909637765 | U111: -0.00279289519 | V111: -0.002792836282 | W111: -0.002792836283 | X111: -0.002792777344 | Y111: -0.1048316999 | Z111: -0.1048121736 | AA111: -0.1048121772 | AB111: -0.1047926497 | AC111: 0.2591536039 | AD111: 0.2590605167 | AE111: 0.2590605502 | AF111: 0.2589675681 | AG111: 0.01224702044 | AH111: 0.01224675895 | AI111: 0.01224675896 | AJ111: 0.01224649748 | AK111: 0.005547267724 | AL111: 0.00554780869 | AM111: 0.005547808743 | AN111: 0.005548349762
D112: 3300 | E112: 0.9166666667 | F112: 20.76459742 | G112: 15.87953558 | H112: 4.705674749 | I112: 168.2462192 | J112: 55.81439009 | K112: 250.6241864 | L112: 28.47516596 | M112: -0.2561940325 | N112: -0.2559972757 | O112: -0.2559974277 | P112: -0.2557985865 | Q112: -0.03912475153 | R112: -0.03912266307 | S112: -0.03912266318 | T112: -0.03912056998 | U112: -0.002794625109 | V112: -0.002794566038 | W112: -0.002794566039 | X112: -0.002794506937 | Y112: -0.1047947066 | Z112: -0.1047751766 | AA112: -0.1047751803 | AB112: -0.1047556491 | AC112: 0.2586537206 | AD112: 0.2585609558 | AE112: 0.258560989 | AF112: 0.2584683288 | AG112: 0.01235302894 | AH112: 0.01235276614 | AI112: 0.01235276615 | AJ112: 0.01235250335 | AK112: 0.005552394694 | AL112: 0.005552936027 | AM112: 0.00555293608 | AN112: 0.005553477466
D113: 3330 | E113: 0.925 | F113: 20.50860042 | G113: 15.84041292 | H113: 4.702880183 | I113: 168.141444 | J113: 56.07295108 | K113: 250.6365392 | L113: 28.50848358 | M113: -0.2558533445 | N113: -0.255652333 | O113: -0.2556524918 | P113: -0.2554493314 | Q113: -0.03914869065 | R113: -0.03914658884 | S113: -0.03914658895 | T113: -0.03914448236 | U113: -0.002796335046 | V113: -0.002796275812 | W113: -0.002796275814 | X113: -0.002796216549 | Y113: -0.1047577221 | Z113: -0.1047381885 | AA113: -0.1047381922 | AB113: -0.1047186573 | AC113: 0.2581475273 | AD113: 0.2580550859 | AE113: 0.258055119 | AF113: 0.2579627815 | AG113: 0.01245864661 | AH113: 0.01245838251 | AI113: 0.01245838252 | AJ113: 0.01245811843 | AK113: 0.005557518757 | AL113: 0.005558060456 | AM113: 0.005558060508 | AN113: 0.00555860226
D114: 3360 | E114: 0.9333333333 | F114: 20.25294837 | G114: 15.80126633 | H114: 4.700083907 | I114: 168.0367058 | J114: 56.3310062 | K114: 250.6489976 | L114: 28.54183194 | M114: -0.2555042126 | N114: -0.2552988144 | O114: -0.2552989805 | P114: -0.2550913663 | Q114: -0.03917234198 | R114: -0.03917022672 | S114: -0.03917022684 | T114: -0.03916810676 | U114: -0.002798024427 | V114: -0.00279796503 | W114: -0.002797965032 | X114: -0.002797905604 | Y114: -0.1047207464 | Z114: -0.1047012092 | AA114: -0.1047012128 | AB114: -0.1046816743 | AC114: 0.2576348074 | AD114: 0.2575426906 | AE114: 0.2575427235 | AF114: 0.2574507099 | AG114: 0.01256387241 | AH114: 0.01256360705 | AI114: 0.01256360706 | AJ114: 0.0125633417 | AK114: 0.005562639854 | AL114: 0.005563181917 | AM114: 0.00556318197 | AN114: 0.005563724086
D115: 3390 | E115: 0.9416666667 | F115: 19.99764984 | G115: 15.7620961 | H115: 4.697285942 | I115: 167.9320046 | J115: 56.58854892 | K115: 250.6615612 | L115: 28.57521103 | M115: -0.2551463694 | N115: -0.2549364476 | O115: -0.2549366213 | P115: -0.2547244135 | Q115: -0.03919569717 | R115: -0.03919356837 | S115: -0.03919356849 | T115: -0.03919143482 | U115: -0.002799692655 | V115: -0.002799633096 | W115: -0.002799633097 | X115: -0.002799573507 | Y115: -0.1046837794 | Z115: -0.1046642385 | AA115: -0.1046642421 | AB115: -0.1046447 | AC115: 0.2571153358 | AD115: 0.2570235448 | AE115: 0.2570235775 | AF115: 0.2569318891 | AG115: 0.01266870525 | AH115: 0.01266843864 | AI115: 0.01266843865 | AJ115: 0.01266817205 | AK115: 0.005567757926 | AL115: 0.005568300353 | AM115: 0.005568300406 | AN115: 0.005568842886
D116: 3420 | E116: 0.95 | F116: 19.74271368 | G116: 15.72290253 | H116: 4.694486309 | I116: 167.8273404 | J116: 56.8455725 | K116: 250.6742296 | L116: 28.60862083 | M116: -0.2547795373 | N116: -0.2545649491 | O116: -0.2545651309 | P116: -0.2543481842 | Q116: -0.03921874755 | R116: -0.03921660512 | S116: -0.03921660523 | T116: -0.03921445788 | U116: -0.002801339111 | V116: -0.002801279389 | W116: -0.00280127939 | X116: -0.002801219637 | Y116: -0.1046468208 | Z116: -0.1046272763 | AA116: -0.1046272799 | AB116: -0.1046077341 | AC116: 0.2565888788 | AD116: 0.2564974147 | AE116: 0.2564974473 | AF116: 0.2564060853 | AG116: 0.01277314393 | AH116: 0.0127728761 | AI116: 0.01277287611 | AJ116: 0.01277260828 | AK116: 0.005572872914 | AL116: 0.005573415704 | AM116: 0.005573415757 | AN116: 0.005573958599
D117: 3450 | E117: 0.9583333333 | F117: 19.48814904 | G117: 15.68368593 | H117: 4.69168503 | I117: 167.7227131 | J117: 57.10206995 | K117: 250.6870025 | L117: 28.64206133 | M117: -0.2544034274 | N117: -0.2541840244 | O117: -0.2541842148 | P117: -0.2539623778 | Q117: -0.03924148411 | R117: -0.03923932793 | S117: -0.03923932805 | T117: -0.03923716692 | U117: -0.00280296315 | V117: -0.002802903266 | W117: -0.002802903267 | X117: -0.002802843351 | Y117: -0.1046098708 | Z117: -0.1045903225 | AA117: -0.1045903262 | AB117: -0.1045707767 | AC117: 0.2560551931 | AD117: 0.2559640574 | AE117: 0.2559640898 | AF117: 0.2558730555 | AG117: 0.01287718718 | AH117: 0.01287691815 | AI117: 0.01287691816 | AJ117: 0.01287664914 | AK117: 0.005577984759 | AL117: 0.00557852791 | AM117: 0.005578527963 | AN117: 0.005579071167
D118: 3480 | E118: 0.9666666667 | F118: 19.23396532 | G118: 15.6444466 | H118: 4.688882126 | I118: 167.6181228 | J118: 57.35803404 | K118: 250.6998794 | L118: 28.67553249 | M118: -0.254017739 | N118: -0.2537933671 | O118: -0.2537935664 | P118: -0.2535666817 | Q118: -0.03926389747 | R118: -0.03926172746 | S118: -0.03926172758 | T118: -0.03925955256 | U118: -0.002804564105 | V118: -0.002804504058 | W118: -0.002804504059 | X118: -0.002804443981 | Y118: -0.104572929 | Z118: -0.1045533771 | AA118: -0.1045533807 | AB118: -0.1045338276 | AC118: 0.2555140259 | AD118: 0.25542322 | AE118: 0.2554232523 | AF118: 0.2553325471 | AG118: 0.01298083362 | AH118: 0.01298056343 | AI118: 0.01298056343 | AJ118: 0.01298029324 | AK118: 0.005583093402 | AL118: 0.005583636913 | AM118: 0.005583636966 | AN118: 0.005584180529
D119: 3510 | E119: 0.975 | F119: 18.98017228 | G119: 15.60518488 | H119: 4.686077622 | I119: 167.5135694 | J119: 57.61345729 | K119: 250.71286 | L119: 28.70903432 | M119: -0.2536221597 | N119: -0.253392658 | O119: -0.253392867 | P119: -0.2531607707 | Q119: -0.0392859779 | R119: -0.03928379396 | S119: -0.03928379408 | T119: -0.03928160508 | U119: -0.002806141279 | V119: -0.002806081069 | W119: -0.00280608107 | X119: -0.00280602083 | Y119: -0.1045359954 | Z119: -0.1045164398 | AA119: -0.1045164435 | AB119: -0.1044968867 | AC119: 0.2549651142 | AD119: 0.2548746396 | AE119: 0.2548746717 | AF119: 0.2547842973 | AG119: 0.01308408181 | AH119: 0.01308381047 | AI119: 0.01308381047 | AJ119: 0.01308353913 | AK119: 0.005588198781 | AL119: 0.005588742651 | AM119: 0.005588742704 | AN119: 0.005589286627
D120: 3540 | E120: 0.9833333333 | F120: 18.72677994 | G120: 15.56590108 | H120: 4.683271541 | I120: 167.409053 | J120: 57.86833196 | K120: 250.7259438 | L120: 28.74256677 | M120: -0.253216364 | N120: -0.2529815654 | O120: -0.2529817845 | P120: -0.252744306 | Q120: -0.03930771527 | R120: -0.03930551729 | S120: -0.03930551742 | T120: -0.03930331434 | U120: -0.002807693948 | V120: -0.002807633576 | W120: -0.002807633577 | X120: -0.002807573174 | Y120: -0.10449907 | Z120: -0.1044795107 | AA120: -0.1044795144 | AB120: -0.1044599539 | AC120: 0.2544081844 | AD120: 0.2543180427 | AE120: 0.2543180747 | AF120: 0.2542280325 | AG120: 0.01318693019 | AH120: 0.01318665772 | AI120: 0.01318665773 | AJ120: 0.01318638526 | AK120: 0.005593300839 | AL120: 0.005593845067 | AM120: 0.00559384512 | AN120: 0.0055943894
D121: 3570 | E121: 0.9916666667 | F121: 18.47379872 | G121: 15.52659557 | H121: 4.680463908 | I121: 167.3045735 | J121: 58.12265004 | K121: 250.7391304 | L121: 28.77612984 | M121: -0.2528000132 | N121: -0.2525597435 | O121: -0.2525599733 | P121: -0.2523169349 | Q121: -0.03932909904 | R121: -0.03932688693 | S121: -0.03932688706 | T121: -0.0393246698 | U121: -0.00280922136 | V121: -0.002809160826 | W121: -0.002809160828 | X121: -0.002809100262 | Y121: -0.1044621526 | Z121: -0.1044425897 | AA121: -0.1044425933 | AB121: -0.1044230291 | AC121: 0.2538429516 | AD121: 0.2537531446 | AE121: 0.2537531763 | AF121: 0.2536634681 | AG121: 0.0132893771 | AH121: 0.01328910353 | AI121: 0.01328910353 | AJ121: 0.01328882996 | AK121: 0.005598399513 | AL121: 0.005598944098 | AM121: 0.005598944151 | AN121: 0.005599488789
D122: 3600 | E122: 1 | F122: 18.22123932 | G122: 15.48726868 | H122: 4.677654747 | I122: 167.2001309 | J122: 58.37640322 | K122: 250.7524195 | L122: 28.80972351 | M122: -0.2523727547 | N122: -0.2521268324 | O122: -0.2521270736 | P122: -0.2518782901 | Q122: -0.03935011825 | R122: -0.03934789191 | S122: -0.03934789204 | T122: -0.03934566049 | U122: -0.002810722732 | V122: -0.002810662036 | W122: -0.002810662038 | X122: -0.00281060131 | Y122: -0.1044252431 | Z122: -0.1044056765 | AA122: -0.1044056801 | AB122: -0.1043861122 | AC122: 0.2532691193 | AD122: 0.2531796487 | AE122: 0.2531796802 | AF122: 0.2530903078 | AG122: 0.01339142078 | AH122: 0.01339114613 | AI122: 0.01339114614 | AJ122: 0.01339087149 | AK122: 0.005603494746 | AL122: 0.005604039686 | AM122: 0.005604039739 | AN122: 0.005604584732
D123: 3630 | E123: 1.008333333 | F123: 17.96911284 | G123: 15.44792079 | H123: 4.674844085 | I123: 167.0957252 | J123: 58.6295829 | K123: 250.7658107 | L123: 28.84334775 | M123: -0.2519342209 | N123: -0.2516824571 | O123: -0.2516827103 | P123: -0.2514279887 | Q123: -0.03937076149 | R123: -0.03936852081 | S123: -0.03936852094 | T123: -0.03936627501 | U123: -0.002812197249 | V123: -0.002812136391 | W123: -0.002812136393 | X123: -0.002812075503 | Y123: -0.1043883414 | Z123: -0.1043687711 | AA123: -0.1043687747 | AB123: -0.1043492032 | AC123: 0.2526863787 | AD123: 0.2525972463 | AE123: 0.2525972777 | AF123: 0.2525082429 | AG123: 0.01349305937 | AH123: 0.01349278366 | AI123: 0.01349278367 | AJ123: 0.01349250797 | AK123: 0.005608586475 | AL123: 0.005609131769 | AM123: 0.005609131823 | AN123: 0.00560967717
D124: 3660 | E124: 1.016666667 | F124: 17.71743075 | G124: 15.40855227 | H124: 4.672031949 | I124: 166.9913564 | J124: 58.88218018 | K124: 250.7793035 | L124: 28.87700254 | M124: -0.2514840292 | N124: -0.2512262267 | O124: -0.2512264927 | P124: -0.2509656319 | Q124: -0.03939101686 | R124: -0.03938876175 | S124: -0.03938876188 | T124: -0.03938650147 | U124: -0.002813644061 | V124: -0.002813583042 | W124: -0.002813583043 | X124: -0.002813521992 | Y124: -0.1043514475 | Z124: -0.1043318734 | AA124: -0.1043318771 | AB124: -0.1043123018 | AC124: 0.2520944079 | AD124: 0.2520056158 | AE124: 0.2520056471 | AF124: 0.2519169519 | AG124: 0.01359429088 | AH124: 0.01359401415 | AI124: 0.01359401416 | AJ124: 0.01359373742 | AK124: 0.005613674641 | AL124: 0.005614220289 | AM124: 0.005614220342 | AN124: 0.005614766043
D125: 3690 | E125: 1.025 | F125: 17.4662049 | G125: 15.36916351 | H125: 4.669218366 | I125: 166.8870245 | J125: 59.13418582 | K125: 250.7928975 | L125: 28.91068786 | M125: -0.2510217804 | N125: -0.2507577339 | O125: -0.2507580134 | P125: -0.2504908038 | Q125: -0.03941087199 | R125: -0.03940860235 | S125: -0.03940860248 | T125: -0.03940632749 | U125: -0.002815062285 | V125: -0.002815001104 | W125: -0.002815001105 | X125: -0.002814939893 | Y125: -0.1043145611 | Z125: -0.1042949833 | AA125: -0.104294987 | AB125: -0.104275408 | AC125: 0.2514928718 | AD125: 0.251404422 | AE125: 0.2514044531 | AF125: 0.2513160997 | AG125: 0.01369511324 | AH125: 0.01369483549 | AI125: 0.0136948355 | AJ125: 0.01369455775 | AK125: 0.005618759183 | AL125: 0.005619305183 | AM125: 0.005619305236 | AN125: 0.005619851289
D126: 3720 | E126: 1.033333333 | F126: 17.21544756 | G126: 15.32975491 | H126: 4.666403364 | I126: 166.7827296 | J126: 59.38559028 | K126: 250.8065923 | L126: 28.94440369 | M126: -0.2505470586 | N126: -0.2502765538 | O126: -0.2502768478 | P126: -0.2500030704 | Q126: -0.03943031398 | R126: -0.03942802971 | S126: -0.03942802984 | T126: -0.03942574017 | U126: -0.002816450999 | V126: -0.002816389657 | W126: -0.002816389658 | X126: -0.002816328284 | Y126: -0.1042776822 | Z126: -0.1042581007 | AA126: -0.1042581044 | AB126: -0.1042385217 | AC126: 0.2508814208 | AD126: 0.2507933156 | AE126: 0.2507933466 | AF126: 0.2507053371 | AG126: 0.01379552421 | AH126: 0.01379524548 | AI126: 0.01379524548 | AJ126: 0.01379496675 | AK126: 0.005623840042 | AL126: 0.005624386392 | AM126: 0.005624386445 | AN126: 0.005624932849
D127: 3750 | E127: 1.041666667 | F127: 16.9651714 | G127: 15.29032688 | H127: 4.663586975 | I127: 166.6784714 | J127: 59.63638362 | K127: 250.8203876 | L127: 28.97815001 | M127: -0.2500594301 | N127: -0.2497822435 | O127: -0.2497825528 | P127: -0.2495019795 | Q127: -0.0394493294 | R127: -0.0394470304 | S127: -0.03944703053 | T127: -0.03944472607 | U127: -0.002817809243 | V127: -0.002817747741 | W127: -0.002817747742 | X127: -0.002817686207 | Y127: -0.1042408107 | Z127: -0.1042212255 | AA127: -0.1042212292 | AB127: -0.1042016428 | AC127: 0.2502596905 | AD127: 0.2501719322 | AE127: 0.250171963 | AF127: 0.2500842998 | AG127: 0.01389552145 | AH127: 0.01389524176 | AI127: 0.01389524176 | AJ127: 0.01389496207 | AK127: 0.005628917156 | AL127: 0.005629463856 | AM127: 0.005629463909 | AN127: 0.005630010662
D128: 3780 | E128: 1.05 | F128: 16.71538957 | G128: 15.25087985 | H128: 4.660769227 | I128: 166.5742502 | J128: 59.88655559 | K128: 250.8342828 | L128: 29.01192679 | M128: -0.2495584424 | N128: -0.2492743407 | O128: -0.2492746663 | P128: -0.2489870588 | Q128: -0.03946790424 | R128: -0.0394655904 | S128: -0.03946559053 | T128: -0.03946327119 | U128: -0.002819136017 | V128: -0.002819074354 | W128: -0.002819074355 | X128: -0.00281901266 | Y128: -0.1042039465 | Z128: -0.1041843575 | AA128: -0.1041843612 | AB128: -0.1041647711 | AC128: 0.2496273008 | AD128: 0.2495398919 | AE128: 0.2495399225 | AF128: 0.2494526079 | AG128: 0.0139951025 | AH128: 0.01399482187 | AI128: 0.01399482187 | AJ128: 0.01399454124 | AK128: 0.005633990465 | AL128: 0.005634537513 | AM128: 0.005634537566 | AN128: 0.005635084668
D129: 3810 | E129: 1.058333333 | F129: 16.46611565 | G129: 15.21141426 | H129: 4.657950153 | I129: 166.4700659 | J129: 60.13609551 | K129: 250.8482776 | L129: 29.04573402 | M129: -0.2490436232 | N129: -0.248752363 | O129: -0.248752706 | P129: -0.2484578156 | Q129: -0.03948602388 | R129: -0.03948369511 | S129: -0.03948369524 | T129: -0.03948136092 | U129: -0.002820430277 | V129: -0.002820368454 | W129: -0.002820368455 | X129: -0.0028203066 | Y129: -0.1041670894 | Z129: -0.1041474968 | AA129: -0.1041475005 | AB129: -0.1041279066 | AC129: 0.2489838551 | AD129: 0.2488967981 | AE129: 0.2488968285 | AF129: 0.2488098653 | AG129: 0.01409426475 | AH129: 0.0140939832 | AI129: 0.0140939832 | AJ129: 0.01409370165 | AK129: 0.005639059909 | AL129: 0.005639607304 | AM129: 0.005639607357 | AN129: 0.005640154806
D130: 3840 | E130: 1.066666667 | F130: 16.21736372 | G130: 15.17193056 | H130: 4.655129784 | I130: 166.3659184 | J130: 60.38499234 | K130: 250.8623716 | L130: 29.07957166 | M130: -0.2485144797 | N130: -0.2482158069 | O130: -0.2482161683 | P130: -0.2479137354 | Q130: -0.03950367309 | R130: -0.03950132928 | S130: -0.03950132942 | T130: -0.03949898001 | U130: -0.002821690935 | V130: -0.002821628952 | W130: -0.002821628953 | X130: -0.002821566938 | Y130: -0.1041302394 | Z130: -0.1041106431 | AA130: -0.1041106468 | AB130: -0.1040910492 | AC130: 0.2483289396 | AD130: 0.2482422372 | AE130: 0.2482422674 | AF130: 0.2481556581 | AG130: 0.01419300544 | AH130: 0.01419272299 | AI130: 0.014192723 | AJ130: 0.01419244054 | AK130: 0.005644125427 | AL130: 0.005644673168 | AM130: 0.005644673222 | AN130: 0.005645221016
D131: 3870 | E131: 1.075 | F131: 15.96914836 | G131: 15.13242924 | H131: 4.652308155 | I131: 166.2618077 | J131: 60.63323461 | K131: 250.8765643 | L131: 29.1134397 | M131: -0.2479704975 | N131: -0.2476641465 | O131: -0.2476645276 | P131: -0.2473542808 | Q131: -0.03952083597 | R131: -0.03951847702 | S131: -0.03951847716 | T131: -0.03951611257 | U131: -0.002822916855 | V131: -0.002822854712 | W131: -0.002822854714 | X131: -0.002822792538 | Y131: -0.1040933964 | Z131: -0.1040737964 | AA131: -0.1040738 | AB131: -0.1040541988 | AC131: 0.247662122 | AD131: 0.2475757771 | AE131: 0.2475758072 | AF131: 0.2474895547 | AG131: 0.01429132168 | AH131: 0.01429103836 | AI131: 0.01429103836 | AJ131: 0.01429075503 | AK131: 0.00564918696 | AL131: 0.005649735046 | AM131: 0.005649735099 | AN131: 0.005650283238
D132: =D131+$B$1 -> 3900 | E132: =D132/3600 -> 1.083333333 | F132: =F131+(M131+2*N131+2*O131+P131)/6 -> 15.72148467 | G132: =G131+(Q131+2*R131+2*S131+T131)/6 -> 15.09291076 | H132: =H131+(U131+2*V131+2*W131+X131)/6 -> 4.649485301 | I132: =I131+(Y131+2*Z131+2*AA131+AB131)/6 -> 166.1577339 | J132: =J131+(AC131+2*AD131+2*AE131+AF131)/6 -> 60.88081041 | K132: =K131+(AG131+2*AH131+2*AI131+AJ131)/6 -> 250.8908554 | L132: =L131+(AK131+2*AL131+2*AM131+AN131) -> 29.14733811 | M132: =dS_Sdt(F132,I132,K132)*$B$1 -> -0.2474111391 | N132: =dS_Sdt(F132+0.5*M132,I132,K132)*$B$1 -> -0.2470968326 | O132: =dS_Sdt(F132+0.5*N132,I132,K132)*$B$1 -> -0.2470972347 | P132: =dS_Sdt(F132+O132,I132,K132)*$B$1 -> -0.2467788906 | Q132: =dS_NHdt(G132,F132,H132,I132,J132,K132,L132)*$B$1 -> -0.03953749592 | R132: =dS_NHdt(G132+0.5*Q132,F132,H132,I132,J132,K132,L132)*$B$1 -> -0.03953512174 | S132: =dS_NHdt(G132+0.5*R132,F132,H132,I132,J132,K132,L132)*$B$1 -> -0.03953512188 | T132: =dS_NHdt(G132+S132,F132,H132,I132,J132,K132,L132)*$B$1 -> -0.039532742 | U132: =dS_ALKdt(H132,F132,G132,I132,J132,K132,L132)*$B$1 -> -0.002824106851 | V132: =dS_ALKdt(H132+0.5*U132,F132,G132,I132,J132,K132,L132)*$B$1 -> -0.002824044549 | W132: =dS_ALKdt(H132+0.5*V132,F132,G132,I132,J132,K132,L132)*$B$1 -> -0.002824044551 | X132: =dS_ALKdt(H132+W132,F132,G132,I132,J132,K132,L132)*$B$1 -> -0.002823982216 | Y132: =dX_Sdt(I132,K132)*$B$1 -> -0.1040565603 | Z132: =dX_Sdt(I132+0.5*Y132,K132)*$B$1 -> -0.1040369565 | AA132: =dX_Sdt(I132+0.5*Z132,K132)*$B$1 -> -0.1040369602 | AB132: =dX_Sdt(I132+AA132,K132)*$B$1 -> -0.1040173552 | AC132: =dX_STOdt(J132,F132,G132,H132,K132)*$B$1 -> 0.2469829513 | AD132: =dX_STOdt(J132+0.5*AC132,F132,G132,H132,K132)*$B$1 -> 0.2468969668 | AE132: =dX_STOdt(J132+0.5*AD132,F132,G132,H132,K132)*$B$1 -> 0.2468969967 | AF132: =dX_STOdt(J132+AE132,F132,G132,H132,K132)*$B$1 -> 0.246811104 | AG132: =dX_Hdt(K132,G132,H132,J132)*$B$1 -> 0.01438921042 | AH132: =dX_Hdt(K132+0.5*AG132,G132,H132,J132)*$B$1 -> 0.01438892624 | AI132: =dX_Hdt(K132+0.5*AH132,G132,H132,J132)*$B$1 -> 0.01438892624 | AJ132: =dX_Hdt(K132+AI132,G132,H132,J132)*$B$1 -> 0.01438864206 | AK132: =dX_Adt(L132,G132,H132)*$B$1 -> 0.005654244448 | AL132: =dX_Adt(L132+0.5*AK132,G132,H132)*$B$1 -> 0.005654792877 | AM132: =dX_Adt(L132+0.5*AL132,G132,H132)*$B$1 -> 0.00565479293 | AN132: =dX_Adt(L132+AM132,G132,H132)*$B$1 -> 0.005655341412
D133: 3930 | E133: 1.091666667 | F133: 15.47438831 | G133: 15.05337564 | H133: 4.646661256 | I133: 166.053697 | J133: 61.12770741 | K133: 250.9052443 | L133: 29.18126687 | M133: -0.2468358431 | N133: -0.2465132914 | O133: -0.2465137159 | P133: -0.2461869782 | Q133: -0.03955363561 | R133: -0.0395512461 | S133: -0.03955124625 | T133: -0.03954885098 | U133: -0.002825259686 | V133: -0.002825197226 | W133: -0.002825197228 | X133: -0.002825134734 | Y133: -0.1040197309 | Z133: -0.1040001234 | AA133: -0.1040001271 | AB133: -0.1039805183 | AC133: 0.2462909562 | AD133: 0.2462053352 | AE133: 0.2462053649 | AF133: 0.2461198351 | AG133: 0.01448666843 | AH133: 0.01448638342 | AI133: 0.01448638343 | AJ133: 0.01448609841 | AK133: 0.00565929783 | AL133: 0.005659846601 | AM133: 0.005659846654 | AN133: 0.005660395478
D134: 3960 | E134: 1.1 | F134: 15.2278755 | G134: 15.01382439 | H134: 4.643836059 | I134: 165.9496968 | J134: 61.37391278 | K134: 250.9197307 | L134: 29.21522595 | M134: -0.2462440231 | N134: -0.2459129232 | O134: -0.2459133716 | P134: -0.2455779307 | Q134: -0.03956923696 | R134: -0.03956683202 | S134: -0.03956683217 | T134: -0.03956442141 | U134: -0.002826374069 | V134: -0.00282631145 | W134: -0.002826311452 | X134: -0.0028262488 | Y134: -0.1039829082 | Z134: -0.1039632969 | AA134: -0.1039633006 | AB134: -0.1039436881 | AC134: 0.245585644 | AD134: 0.2455003899 | AE134: 0.2455004195 | AF134: 0.2454152558 | AG134: 0.01458369235 | AH134: 0.01458340653 | AI134: 0.01458340653 | AJ134: 0.01458312071 | AK134: 0.005664347047 | AL134: 0.005664896159 | AM134: 0.005664896212 | AN134: 0.005665445377
D135: 3990 | E135: 1.108333333 | F135: 14.98196308 | G135: 14.97425756 | H135: 4.641009747 | I135: 165.8457335 | J135: 61.6194132 | K135: 250.9343141 | L135: 29.24921533 | M135: -0.2456350659 | N135: -0.2452951009 | O135: -0.2452955749 | P135: -0.2449511069 | Q135: -0.03958428107 | R135: -0.03958186059 | S135: -0.03958186074 | T135: -0.03957943441 | U135: -0.002827448648 | V135: -0.002827385872 | W135: -0.002827385873 | X135: -0.002827323064 | Y135: -0.103946092 | Z135: -0.103926477 | AA135: -0.1039264807 | AB135: -0.1039068645 | AC135: 0.2448665002 | AD135: 0.2447816164 | AE135: 0.2447816458 | AF135: 0.2446968517 | AG135: 0.01468027861 | AH135: 0.014679992 | AI135: 0.01467999201 | AJ135: 0.0146797054 | AK135: 0.005669392041 | AL135: 0.005669941491 | AM135: 0.005669941545 | AN135: 0.005670491049
D136: 4020 | E136: 1.116666667 | F136: 14.73666849 | G136: 14.9346757 | H136: 4.638182362 | I136: 165.7418071 | J136: 61.86419484 | K136: 250.9489941 | L136: 29.28323498 | M136: -0.2450083304 | N136: -0.2446591693 | O136: -0.2446596705 | P136: -0.2443058368 | Q136: -0.03959874818 | R136: -0.03959631208 | S136: -0.03959631223 | T136: -0.03959387021 | U136: -0.002828482013 | V136: -0.00282841908 | W136: -0.002828419081 | X136: -0.002828356115 | Y136: -0.1039092823 | Z136: -0.1038896635 | AA136: -0.1038896672 | AB136: -0.1038700472 | AC136: 0.2441329867 | AD136: 0.2440484767 | AE136: 0.2440485059 | AF136: 0.243964085 | AG136: 0.01477642348 | AH136: 0.01477613611 | AI136: 0.01477613611 | AJ136: 0.01477584874 | AK136: 0.005674432751 | AL136: 0.00567498254 | AM136: 0.005674982593 | AN136: 0.005675532435
D137: 4050 | E137: 1.125 | F137: 14.49200985 | G137: 14.89507939 | H137: 4.635353942 | I137: 165.6379174 | J137: 62.10824335 | K137: 250.9637702 | L137: 29.31728487 | M137: -0.2443631464 | N137: -0.2440044425 | O137: -0.244004973 | P137: -0.243641419 | Q137: -0.03961261766 | R137: -0.03961016583 | S137: -0.03961016598 | T137: -0.03960770819 | U137: -0.00282947269 | V137: -0.0028294096 | W137: -0.002829409602 | X137: -0.002829346479 | Y137: -0.1038724789 | Z137: -0.1038528564 | AA137: -0.1038528601 | AB137: -0.1038332363 | AC137: 0.2433845407 | AD137: 0.2433004084 | AE137: 0.2433004374 | AF137: 0.2432163935 | AG137: 0.01487212303 | AH137: 0.01487183492 | AI137: 0.01487183492 | AJ137: 0.0148715468 | AK137: 0.00567946912 | AL137: 0.005680019246 | AM137: 0.005680019299 | AN137: 0.005680569478
D138: 4080 | E138: 1.133333333 | F138: 14.24800595 | G138: 14.85546923 | H138: 4.632524533 | I138: 165.5340645 | J138: 62.35154379 | K138: 250.978642 | L138: 29.35136499 | M138: -0.2436988127 | N138: -0.2433302033 | O138: -0.2433307651 | P138: -0.24295712 | Q138: -0.03962586793 | R138: -0.03962340028 | S138: -0.03962340043 | T138: -0.03962092676 | U138: -0.002830419138 | V138: -0.002830355892 | W138: -0.002830355894 | X138: -0.002830292615 | Y138: -0.1038356817 | Z138: -0.1038160554 | AA138: -0.1038160591 | AB138: -0.1037964316 | AC138: 0.2426205737 | AD138: 0.242536823 | AE138: 0.2425368519 | AF138: 0.2424531889 | AG138: 0.01496737314 | AH138: 0.0149670843 | AI138: 0.0149670843 | AJ138: 0.01496679546 | AK138: 0.00568450109 | AL138: 0.005685051551 | AM138: 0.005685051604 | AN138: 0.005685602118
D139: 4110 | E139: 1.141666667 | F139: 14.00467631 | G139: 14.81584583 | H139: 4.629694177 | I139: 165.4302485 | J139: 62.59408064 | K139: 250.9936091 | L139: 29.3854753 | M139: -0.2430145955 | N139: -0.2426357012 | O139: -0.2426362965 | P139: -0.2422521721 | Q139: -0.03963847642 | R139: -0.03963599286 | S139: -0.03963599301 | T139: -0.03963350337 | U139: -0.002831319744 | V139: -0.002831256344 | W139: -0.002831256346 | X139: -0.002831192912 | Y139: -0.1037988907 | Z139: -0.1037792606 | AA139: -0.1037792643 | AB139: -0.1037596331 | AC139: 0.2418404698 | AD139: 0.2417571048 | AE139: 0.2417571336 | AF139: 0.2416738557 | AG139: 0.01506216947 | AH139: 0.01506187992 | AI139: 0.01506187993 | AJ139: 0.01506159038 | AK139: 0.005689528602 | AL139: 0.005690079397 | AM139: 0.00569007945 | AN139: 0.005690630299
D140: 4140 | E140: 1.15 | F140: 13.76204118 | G140: 14.77620984 | H140: 4.626862921 | I140: 165.3264692 | J140: 62.83583777 | K140: 251.008671 | L140: 29.41961577 | M140: -0.242309727 | N140: -0.2419201504 | O140: -0.2419207816 | P140: -0.2415257714 | Q140: -0.03965041954 | R140: -0.03964791996 | S140: -0.03964792012 | T140: -0.0396454144 | U140: -0.002832172824 | V140: -0.00283210927 | W140: -0.002832109271 | X140: -0.002832045683 | Y140: -0.1037621056 | Z140: -0.1037424718 | AA140: -0.1037424755 | AB140: -0.1037228405 | AC140: 0.2410435845 | AD140: 0.2409606098 | AE140: 0.2409606383 | AF140: 0.2408777499 | AG140: 0.01515650746 | AH140: 0.01515621723 | AI140: 0.01515621724 | AJ140: 0.015155927 | AK140: 0.005694551601 | AL140: 0.005695102728 | AM140: 0.005695102781 | AN140: 0.005695653962
D141: 4170 | E141: 1.158333333 | F141: 13.52012162 | G141: 14.73656192 | H141: 4.624030811 | I141: 165.2227267 | J141: 63.07679841 | K141: 251.0238272 | L141: 29.45378639 | M141: -0.2415834035 | N141: -0.2411827285 | O141: -0.2411833982 | P141: -0.2407770765 | Q141: -0.03966167258 | R141: -0.0396591569 | S141: -0.03965915706 | T141: -0.03965663518 | U141: -0.002832976613 | V141: -0.002832912905 | W141: -0.002832912906 | X141: -0.002832849164 | Y141: -0.1037253265 | Z141: -0.1037056889 | AA141: -0.1037056926 | AB141: -0.1036860538 | AC141: 0.2402292433 | AD141: 0.2401466633 | AE141: 0.2401466917 | AF141: 0.2400641973 | AG141: 0.01525038235 | AH141: 0.01525009145 | AI141: 0.01525009146 | AJ141: 0.01524980056 | AK141: 0.005699570029 | AL141: 0.005700121487 | AM141: 0.005700121541 | AN141: 0.005700673053
D142: 4200 | E142: 1.166666667 | F142: 13.2789395 | G142: 14.69690276 | H142: 4.621197898 | I142: 165.1190211 | J142: 63.3169451 | K142: 251.0390773 | L142: 29.48798712 | M142: -0.2408347833 | N142: -0.2404225741 | O142: -0.2404232853 | P142: -0.2400052061 | Q142: -0.03967220972 | R142: -0.03966967784 | S142: -0.039669678 | T142: -0.03966713987 | U142: -0.002833729266 | V142: -0.002833665405 | W142: -0.002833665406 | X142: -0.002833601511 | Y142: -0.1036885531 | Z142: -0.1036689118 | AA142: -0.1036689155 | AB142: -0.1036492729 | AC142: 0.2393967398 | AD142: 0.2393145593 | AE142: 0.2393145875 | AF142: 0.2392324919 | AG142: 0.01534378911 | AH142: 0.01534349757 | AI142: 0.01534349758 | AJ142: 0.01534320604 | AK142: 0.005704583831 | AL142: 0.005705135619 | AM142: 0.005705135673 | AN142: 0.005705687515
D143: 4230 | E143: 1.175 | F143: 13.03851755 | G143: 14.65723308 | H143: 4.618364233 | I143: 165.0153521 | J143: 63.55625969 | K143: 251.0544208 | L143: 29.52221793 | M143: -0.240062985 | N143: -0.2396387852 | O143: -0.2396395408 | P143: -0.2392092371 | Q143: -0.03968200389 | R143: -0.03967945572 | S143: -0.03967945588 | T143: -0.0396769014 | U143: -0.002834428849 | V143: -0.002834364836 | W143: -0.002834364838 | X143: -0.002834300791 | Y143: -0.1036517854 | Z143: -0.1036321403 | AA143: -0.103632144 | AB143: -0.1036124977 | AC143: 0.2385453343 | AD143: 0.2384635583 | AE143: 0.2384635864 | AF143: 0.2383818946 | AG143: 0.01543672248 | AH143: 0.01543643032 | AI143: 0.01543643032 | AJ143: 0.01543613816 | AK143: 0.005709592951 | AL143: 0.005710145069 | AM143: 0.005710145122 | AN143: 0.005710697293
D144: 4260 | E144: 1.183333333 | F144: 12.7988794 | G144: 14.61755363 | H144: 4.615529868 | I144: 164.91172 | J144: 63.79472328 | K144: 251.0698572 | L144: 29.5564788 | M144: -0.2392670855 | N144: -0.2388304168 | O144: -0.2388312202 | P144: -0.2383882023 | Q144: -0.03969102678 | R144: -0.03968846223 | S144: -0.0396884624 | T144: -0.03968589148 | U144: -0.002835073341 | V144: -0.002835009178 | W144: -0.002835009179 | X144: -0.002834944981 | Y144: -0.1036150234 | Z144: -0.1035953744 | AA144: -0.1035953782 | AB144: -0.1035757281 | AC144: 0.237674252 | AD144: 0.2375928858 | AE144: 0.2375929137 | AF144: 0.2375116309 | AG144: 0.01552917693 | AH144: 0.01552888417 | AI144: 0.01552888418 | AJ144: 0.01552859142 | AK144: 0.005714597337 | AL144: 0.005715149782 | AM144: 0.005715149835 | AN144: 0.005715702333
D145: 4290 | E145: 1.191666667 | F145: 12.56004964 | G145: 14.57786517 | H145: 4.612694859 | I145: 164.8081246 | J145: 64.03231619 | K145: 251.0853861 | L145: 29.5907697 | M145: -0.2384461176 | N145: -0.2379964786 | O145: -0.2379973335 | P145: -0.2375410885 | Q145: -0.03969924874 | R145: -0.03969666772 | S145: -0.03969666789 | T145: -0.03969408044 | U145: -0.002835660624 | V145: -0.00283559631 | W145: -0.002835596312 | X145: -0.002835531964 | Y145: -0.1035782667 | Z145: -0.103558614 | AA145: -0.1035586178 | AB145: -0.1035389639 | AC145: 0.2367826812 | AD145: 0.2367017303 | AE145: 0.2367017579 | AF145: 0.2366208898 | AG145: 0.01562114668 | AH145: 0.01562085334 | AI145: 0.01562085335 | AJ145: 0.01562056 | AK145: 0.005719596935 | AL145: 0.005720149705 | AM145: 0.005720149758 | AN145: 0.005720702582
D146: 4320 | E146: 1.2 | F146: 12.32205383 | G146: 14.5381685 | H146: 4.609859263 | I146: 164.704566 | J146: 64.26901795 | K146: 251.101007 | L146: 29.6250906 | M146: -0.2375990678 | N146: -0.2371359333 | O146: -0.2371368436 | P146: -0.2366668336 | Q146: -0.0397066387 | R146: -0.03970404113 | S146: -0.0397040413 | T146: -0.03970143725 | U146: -0.002836188479 | V146: -0.002836124016 | W146: -0.002836124018 | X146: -0.002836059521 | Y146: -0.1035415154 | Z146: -0.103521859 | AA146: -0.1035218627 | AB146: -0.1035022051 | AC146: 0.2358697713 | AD146: 0.2357892415 | AE146: 0.235789269 | AF146: 0.2357088212 | AG146: 0.01571262564 | AH146: 0.01571233174 | AI146: 0.01571233174 | AJ146: 0.01571203784 | AK146: 0.005724591692 | AL146: 0.005725144786 | AM146: 0.00572514484 | AN146: 0.005725697988
D147: 4350 | E147: 1.208333333 | F147: 12.08491859 | G147: 14.49846446 | H147: 4.607023139 | I147: 164.6010441 | J147: 64.50480722 | K147: 251.1167193 | L147: 29.65944147 | M147: -0.2367248742 | N147: -0.2362476934 | O147: -0.2362486634 | P147: -0.2357643248 | Q147: -0.03971316415 | R147: -0.03971054994 | S147: -0.03971055011 | T147: -0.03970792936 | U147: -0.002836654582 | V147: -0.002836589972 | W147: -0.002836589973 | X147: -0.002836525328 | Y147: -0.1035047694 | Z147: -0.1034851091 | AA147: -0.1034851129 | AB147: -0.1034654515 | AC147: 0.2349346311 | AD147: 0.2348545284 | AE147: 0.2348545557 | AF147: 0.2347745343 | AG147: 0.01580360744 | AH147: 0.01580331299 | AI147: 0.015803313 | AJ147: 0.01580301855 | AK147: 0.005729581558 | AL147: 0.005730134975 | AM147: 0.005730135029 | AN147: 0.005730688499
D148: 4380 | E148: 1.216666667 | F148: 11.84867161 | G148: 14.45875391 | H148: 4.604186549 | I148: 164.497559 | J148: 64.73966177 | K148: 251.1325226 | L148: 29.69382228 | M148: -0.2358224236 | N148: -0.2353306191 | O148: -0.2353316535 | P148: -0.2348323952 | Q148: -0.03971879099 | R148: -0.03971616006 | S148: -0.03971616023 | T148: -0.0397135227 | U148: -0.002837056499 | V148: -0.002836991742 | W148: -0.002836991744 | X148: -0.002836926952 | Y148: -0.1034680285 | Z148: -0.1034483644 | AA148: -0.1034483682 | AB148: -0.103428703 | AC148: 0.2339763263 | AD148: 0.2338966571 | AE148: 0.2338966842 | AF148: 0.2338170955 | AG148: 0.01589408538 | AH148: 0.01589379041 | AI148: 0.01589379042 | AJ148: 0.01589349544 | AK148: 0.005734566482 | AL148: 0.005735120221 | AM148: 0.005735120275 | AN148: 0.005735674067
D149: 4410 | E149: 1.225 | F149: 11.61334171 | G149: 14.41903775 | H149: 4.601349557 | I149: 164.3941107 | J149: 64.97355846 | K149: 251.1484164 | L149: 29.728233 | M149: -0.2348905492 | N149: -0.2343835157 | O149: -0.2343846197 | P149: -0.233869822 | Q149: -0.03972348353 | R149: -0.03972083579 | S149: -0.03972083597 | T149: -0.03971818157 | U149: -0.002837391681 | V149: -0.002837326778 | W149: -0.00283732678 | X149: -0.002837261842 | Y149: -0.1034312926 | Z149: -0.1034116248 | AA149: -0.1034116285 | AB149: -0.1033919595 | AC149: 0.2329938778 | AD149: 0.2329146487 | AE149: 0.2329146756 | AF149: 0.2328355263 | AG149: 0.01598405245 | AH149: 0.01598375698 | AI149: 0.01598375698 | AJ149: 0.0159834615 | AK149: 0.005739546417 | AL149: 0.005740100476 | AM149: 0.00574010053 | AN149: 0.005740654642
D150: 4440 | E150: 1.233333333 | F150: 11.37895894 | G150: 14.37931692 | H150: 4.59851223 | I150: 164.290699 | J150: 65.20647313 | K150: 251.1644002 | L150: 29.7626736 | M150: -0.2339280279 | N150: -0.2334051307 | O150: -0.2334063098 | P150: -0.232875323 | Q150: -0.03972720434 | R150: -0.03972453972 | S150: -0.0397245399 | T150: -0.03972186857 | U150: -0.002837657453 | V150: -0.002837592406 | W150: -0.002837592408 | X150: -0.002837527326 | Y150: -0.1033945616 | Z150: -0.10337489 | AA150: -0.1033748937 | AB150: -0.1033552209 | AC150: 0.2319862591 | AD150: 0.231907477 | AE150: 0.2319075038 | AF150: 0.2318288008 | AG150: 0.01607350129 | AH150: 0.01607320533 | AI150: 0.01607320534 | AJ150: 0.01607290937 | AK150: 0.005744521315 | AL150: 0.005745075693 | AM150: 0.005745075746 | AN150: 0.005745630178
D151: 4470 | E151: 1.241666667 | F151: 11.14555457 | G151: 14.33959238 | H151: 4.595674638 | I151: 164.1873242 | J151: 65.43838064 | K151: 251.1804734 | L151: 29.79714406 | M151: -0.2329335776 | N151: -0.2323941513 | O151: -0.2323954116 | P151: -0.2318475544 | Q151: -0.03972991422 | R151: -0.03972723265 | S151: -0.03972723283 | T151: -0.03972454448 | U151: -0.002837851016 | V151: -0.002837785827 | W151: -0.002837785828 | X151: -0.002837720604 | Y151: -0.1033578354 | Z151: -0.10333816 | AA151: -0.1033381637 | AB151: -0.1033184871 | AC151: 0.2309523942 | AD151: 0.2308740664 | AE151: 0.230874093 | AF151: 0.2307958436 | AG151: 0.01616242419 | AH151: 0.01616212777 | AI151: 0.01616212777 | AJ151: 0.01616183134 | AK151: 0.005749491131 | AL151: 0.005750045826 | AM151: 0.005750045879 | AN151: 0.005750600628
D152: 4500 | E152: 1.25 | F152: 10.91316119 | G152: 14.29986515 | H152: 4.592836852 | I152: 164.083986 | J152: 65.66925473 | K152: 251.1966355 | L152: 29.83164433 | M152: -0.2319058543 | N152: -0.2313492009 | O152: -0.2313505491 | P152: -0.2307851071 | Q152: -0.03973157209 | R152: -0.0397288735 | S152: -0.03972887368 | T152: -0.03972616824 | U152: -0.002837969435 | V152: -0.002837904105 | W152: -0.002837904106 | X152: -0.002837838741 | Y152: -0.1033211139 | Z152: -0.1033014346 | AA152: -0.1033014384 | AB152: -0.103281758 | AC152: 0.2298911549 | AD152: 0.2298132892 | AE152: 0.2298133156 | AF152: 0.2297355273 | AG152: 0.01625081306 | AH152: 0.01625051618 | AI152: 0.01625051619 | AJ152: 0.0162502193 | AK152: 0.005754455821 | AL152: 0.005755010831 | AM152: 0.005755010885 | AN152: 0.005755565949
D153: 4530 | E153: 1.258333333 | F153: 10.68181278 | G153: 14.26013628 | H153: 4.589998948 | I153: 163.9806846 | J153: 65.89906804 | K153: 251.212886 | L153: 29.8661744 | M153: -0.2308434488 | N153: -0.2302688368 | O153: -0.2302702802 | P153: -0.2296865045 | Q153: -0.0397321349 | R153: -0.03972941921 | S153: -0.03972941939 | T153: -0.0397266968 | U153: -0.002838009636 | V153: -0.002837944166 | W153: -0.002837944168 | X153: -0.002837878663 | Y153: -0.1032843969 | Z153: -0.1032647138 | AA153: -0.1032647176 | AB153: -0.1032450334 | AC153: 0.2288013589 | AD153: 0.2287239632 | AE153: 0.2287239894 | AF153: 0.2286466703 | AG153: 0.0163386594 | AH153: 0.01633836209 | AI153: 0.0163383621 | AJ153: 0.01633806479 | AK153: 0.005759415342 | AL153: 0.005759970667 | AM153: 0.005759970721 | AN153: 0.005760526099
D154: 4560 | E154: 1.266666667 | F154: 10.45154475 | G154: 14.22040686 | H154: 4.587161004 | I154: 163.8774198 | J154: 66.12779203 | K154: 251.2292244 | L154: 29.90073422 | M154: -0.2297448843 | N154: -0.2291515467 | O154: -0.2291530933 | P154: -0.2285501988 | Q154: -0.03973155755 | R154: -0.03972882469 | S154: -0.03972882488 | T154: -0.03972608506 | U154: -0.002837968396 | V154: -0.002837902788 | W154: -0.00283790279 | X154: -0.002837837147 | Y154: -0.1032476843 | Z154: -0.1032279975 | AA154: -0.1032280012 | AB154: -0.1032083132 | AC154: 0.2276817666 | AD154: 0.2276048493 | AE154: 0.2276048753 | AF154: 0.2275280338 | AG154: 0.01642595432 | AH154: 0.0164256566 | AI154: 0.01642565661 | AJ154: 0.01642535889 | AK154: 0.005764369655 | AL154: 0.005764925293 | AM154: 0.005764925347 | AN154: 0.005765481038
D155: 4590 | E155: 1.275 | F155: 10.22239402 | G155: 14.18067803 | H155: 4.584323101 | I155: 163.7741918 | J155: 66.35539691 | K155: 251.24565 | L155: 29.93532377 | M155: -0.228608613 | N155: -0.2279957458 | O155: -0.2279974043 | P155: -0.2273745683 | Q155: -0.03972979276 | R155: -0.03972704268 | S155: -0.03972704287 | T155: -0.03972428576 | U155: -0.00283784234 | V155: -0.002837776596 | W155: -0.002837776598 | X155: -0.002837710818 | Y155: -0.1032109761 | Z155: -0.1031912854 | AA155: -0.1031912892 | AB155: -0.1031715974 | AC155: 0.226531079 | AD155: 0.2264546489 | AE155: 0.2264546746 | AF155: 0.2263783196 | AG155: 0.0165126885 | AH155: 0.01651239039 | AI155: 0.01651239039 | AJ155: 0.01651209227 | AK155: 0.005769318722 | AL155: 0.005769874671 | AM155: 0.005769874725 | AN155: 0.005770430728
D156: 4620 | E156: 1.283333333 | F156: 9.994399108 | G156: 14.14095099 | H156: 4.581485324 | I156: 163.6710006 | J156: 66.58185158 | K156: 251.2621624 | L156: 29.96994302 | M156: -0.2274330128 | N156: -0.2267997735 | O156: -0.2268015535 | P156: -0.2261579137 | Q156: -0.03972679105 | R156: -0.03972402368 | S156: -0.03972402388 | T156: -0.03972124942 | U156: -0.002837627932 | V156: -0.002837562054 | W156: -0.002837562055 | X156: -0.002837496141 | Y156: -0.103174272 | Z156: -0.1031545776 | AA156: -0.1031545813 | AB156: -0.1031348857 | AC156: 0.2253479349 | AD156: 0.2252720011 | AE156: 0.2252720267 | AF156: 0.2251961672 | AG156: 0.01659885215 | AH156: 0.01659855366 | AI156: 0.01659855366 | AJ156: 0.01659825517 | AK156: 0.005774262507 | AL156: 0.005774818766 | AM156: 0.00577481882 | AN156: 0.005775375132
D157: 4650 | E157: 1.291666667 | F157: 9.767600178 | G157: 14.10122697 | H157: 4.578647762 | I157: 163.567846 | J157: 66.80712361 | K157: 251.278761 | L157: 30.00459194 | M157: -0.2262163846 | N157: -0.2255618905 | O157: -0.2255638025 | P157: -0.2248984557 | Q157: -0.03972250056 | R157: -0.03971971586 | S157: -0.03971971606 | T157: -0.0397169242 | U157: -0.002837321469 | V157: -0.002837255458 | W157: -0.00283725546 | X157: -0.002837189413 | Y157: -0.1031375721 | Z157: -0.1031178738 | AA157: -0.1031178776 | AB157: -0.1030981782 | AC157: 0.2241309081 | AD157: 0.2240554804 | AE157: 0.2240555057 | AF157: 0.2239801514 | AG157: 0.01668443501 | AH157: 0.01668413617 | AI157: 0.01668413617 | AJ157: 0.01668383732 | AK157: 0.005779200976 | AL157: 0.005779757544 | AM157: 0.005779757598 | AN157: 0.005780314219
D158: 4680 | E158: 1.3 | F158: 9.54203914 | G158: 14.06150725 | H158: 4.575810507 | I158: 163.4647281 | J158: 67.03117911 | K158: 251.2954451 | L158: 30.03927048 | M158: -0.2249569488 | N158: -0.2242802754 | O158: -0.2242823308 | P158: -0.2235943315 | Q158: -0.03971686703 | R158: -0.03971406494 | S158: -0.03971406513 | T158: -0.03971125583 | U158: -0.002836919073 | V158: -0.002836852932 | W158: -0.002836852934 | X158: -0.002836786757 | Y158: -0.1031008761 | Z158: -0.103081174 | AA158: -0.1030811777 | AB158: -0.1030614745 | AC158: 0.2228785053 | AD158: 0.2228035937 | AE158: 0.2228036188 | AF158: 0.2227287798 | AG158: 0.01676942635 | AH158: 0.01676912716 | AI158: 0.01676912716 | AJ158: 0.01676882797 | AK158: 0.0057841341 | AL158: 0.005784690974 | AM158: 0.005784691028 | AN158: 0.005785247956
D159: 4710 | E159: 1.308333333 | F159: 9.317759725 | G159: 14.02179319 | H159: 4.572973654 | I159: 163.3616469 | J159: 67.25398273 | K159: 251.3122142 | L159: 30.07397863 | M159: -0.2236528423 | N159: -0.2229530218 | O159: -0.2229552334 | P159: -0.2222435916 | Q159: -0.03970983363 | R159: -0.03970701411 | S159: -0.03970701431 | T159: -0.03970418752 | U159: -0.002836416688 | V159: -0.002836350419 | W159: -0.00283635042 | X159: -0.002836284115 | Y159: -0.1030641839 | Z159: -0.103044478 | AA159: -0.1030444817 | AB159: -0.1030247747 | AC159: 0.2215891628 | AD159: 0.2215147779 | AE159: 0.2215148029 | AF159: 0.2214404898 | AG159: 0.01685381488 | AH159: 0.01685351536 | AI159: 0.01685351537 | AJ159: 0.01685321585 | AK159: 0.005789061848 | AL159: 0.005789619028 | AM159: 0.005789619082 | AN159: 0.005790176316
D160: 4740 | E160: 1.316666667 | F160: 9.094807567 | G160: 13.98208618 | H160: 4.570137304 | I160: 163.2586024 | J160: 67.47549753 | K160: 251.3290678 | L160: 30.10871634 | M160: -0.2223021157 | N160: -0.2215781354 | O160: -0.221580517 | P160: -0.2208441974 | Q160: -0.03970134096 | R160: -0.03969850396 | S160: -0.03969850416 | T160: -0.03969565984 | U160: -0.002835810068 | V160: -0.002835743673 | W160: -0.002835743675 | X160: -0.002835677243 | Y160: -0.1030274954 | Z160: -0.1030077857 | AA160: -0.1030077894 | AB160: -0.1029880786 | AC160: 0.2202612447 | AD160: 0.2201873977 | AE160: 0.2201874224 | AF160: 0.2201136462 | AG160: 0.01693758879 | AH160: 0.01693728897 | AI160: 0.01693728898 | AJ160: 0.01693698915 | AK160: 0.005793984198 | AL160: 0.005794541682 | AM160: 0.005794541736 | AN160: 0.005795099273
D161: 4770 | E161: 1.325 | F161: 8.873230298 | G161: 13.94238767 | H161: 4.56730156 | I161: 163.1555947 | J161: 67.69568496 | K161: 251.3460051 | L161: 30.14348359 | M161: -0.2209027301 | N161: -0.2201535311 | O161: -0.220156098 | P161: -0.2193940183 | Q161: -0.03969132686 | R161: -0.03968847236 | S161: -0.03968847257 | T161: -0.03968561067 | U161: -0.002835094776 | V161: -0.002835028257 | W161: -0.002835028259 | X161: -0.002834961704 | Y161: -0.1029908105 | Z161: -0.1029710969 | AA161: -0.1029711007 | AB161: -0.102951386 | AC161: 0.21889304 | AD161: 0.2188197424 | AE161: 0.2188197669 | AF161: 0.2187465393 | AG161: 0.01702073572 | AH161: 0.0170204356 | AI161: 0.01702043561 | AJ161: 0.01702013549 | AK161: 0.005798901127 | AL161: 0.005799458913 | AM161: 0.005799458967 | AN161: 0.005800016807
D162: 4800 | E162: 1.333333333 | F162: 8.65307763 | G162: 13.9026992 | H162: 4.564466532 | I162: 163.0526236 | J162: 67.91450472 | K162: 251.3630255 | L162: 30.17828035 | M162: -0.2194525547 | N162: -0.2186770304 | O162: -0.2186797995 | P162: -0.2178908292 | Q162: -0.03967972644 | R162: -0.0396768544 | S162: -0.03967685461 | T162: -0.03967397511 | U162: -0.002834266174 | V162: -0.002834199534 | W162: -0.002834199536 | X162: -0.00283413286 | Y162: -0.102954129 | Z162: -0.1029344117 | AA162: -0.1029344154 | AB162: -0.1029146969 | AC162: 0.2174827606 | AD162: 0.2174100246 | AE162: 0.2174100489 | AF162: 0.2173373819 | AG162: 0.01710324267 | AH162: 0.01710294228 | AI162: 0.01710294228 | AJ162: 0.01710264189 | AK162: 0.005803812616 | AL162: 0.005804370703 | AM162: 0.005804370757 | AN162: 0.005804928898
D163: 4830 | E163: 1.341666667 | F163: 8.434401456 | G163: 13.86302235 | H163: 4.561632332 | I163: 162.9496891 | J163: 68.13191477 | K163: 251.3801284 | L163: 30.21310657 | M163: -0.2179493643 | N163: -0.2171463595 | O163: -0.2171493492 | P163: -0.2163323087 | Q163: -0.03966647189 | R163: -0.0396635823 | S163: -0.03966358251 | T163: -0.0396606854 | U163: -0.002833319421 | V163: -0.002833252663 | W163: -0.002833252664 | X163: -0.00283318587 | Y163: -0.1029174509 | Z163: -0.1028977297 | AA163: -0.1028977335 | AB163: -0.1028780112 | AC163: 0.2160285392 | AD163: 0.2159563775 | AE163: 0.2159564016 | AF163: 0.2158843081 | AG163: 0.01718509605 | AH163: 0.01718479541 | AI163: 0.01718479541 | AJ163: 0.01718449476 | AK163: 0.00580871865 | AL163: 0.005809277037 | AM163: 0.005809277091 | AN163: 0.005809835531
D164: 4860 | E164: 1.35 | F164: 8.217255941 | G164: 13.82335877 | H164: 4.558799079 | I164: 162.8467914 | J164: 68.34787117 | K164: 251.3973132 | L164: 30.24796223 | M164: -0.2163908373 | N164: -0.2155591472 | O164: -0.2155623778 | P164: -0.2147160375 | Q164: -0.03965149254 | R164: -0.03964858537 | S164: -0.03964858559 | T164: -0.03964567084 | U164: -0.002832249467 | V164: -0.002832182593 | W164: -0.002832182595 | X164: -0.002832115685 | Y164: -0.1028807759 | Z164: -0.1028610509 | AA164: -0.1028610547 | AB164: -0.1028413285 | AC164: 0.2145284278 | AD164: 0.2144568538 | AE164: 0.2144568776 | AF164: 0.2143853709 | AG164: 0.01726628163 | AH164: 0.01726598074 | AI164: 0.01726598075 | AJ164: 0.01726567985 | AK164: 0.005813619219 | AL164: 0.005814177904 | AM164: 0.005814177958 | AN164: 0.005814736696
D165: 4890 | E165: 1.358333333 | F165: 8.00169762 | G165: 13.78371019 | H165: 4.555966897 | I165: 162.7439304 | J165: 68.56232805 | K165: 251.4145792 | L165: 30.2828473 | M165: -0.2147745542 | N165: -0.2139129235 | O165: -0.2139164175 | P165: -0.2130394972 | Q165: -0.0396347147 | R165: -0.03963178995 | S165: -0.03963179017 | T165: -0.03962885778 | U165: -0.00283105105 | V165: -0.002830984064 | W165: -0.002830984065 | X165: -0.002830917043 | Y165: -0.102844104 | Z165: -0.1028243752 | AA165: -0.1028243789 | AB165: -0.102804649 | AC165: 0.2129803963 | AD165: 0.2129094239 | AE165: 0.2129094476 | AF165: 0.2128385415 | AG165: 0.01734678449 | AH165: 0.01734648337 | AI165: 0.01734648338 | AJ165: 0.01734618225 | AK165: 0.005818514315 | AL165: 0.005819073297 | AM165: 0.005819073351 | AN165: 0.005819632386
D166: 4920 | E166: 1.366666667 | F166: 7.787785498 | G166: 13.7440784 | H166: 4.553135913 | I166: 162.641106 | J166: 68.77523749 | K166: 251.4319257 | L166: 30.31776174 | M166: -0.2130979964 | N166: -0.2122051194 | O166: -0.2122089015 | P166: -0.2113000706 | Q166: -0.03961606171 | R166: -0.03961311938 | S166: -0.0396131196 | T166: -0.03961016957 | U166: -0.002829718694 | V166: -0.002829651598 | W166: -0.002829651599 | X166: -0.002829584467 | Y166: -0.102807435 | Z166: -0.1027877023 | AA166: -0.1027877061 | AB166: -0.1027679723 | AC166: 0.2113823318 | AD166: 0.2113119756 | AE166: 0.211311999 | AF166: 0.2112417083 | AG166: 0.017426589 | AH166: 0.01742628767 | AI166: 0.01742628768 | AJ166: 0.01742598634 | AK166: 0.005823403937 | AL166: 0.005823963213 | AM166: 0.005823963267 | AN166: 0.005824522597
D167: 4950 | E167: 1.375 | F167: 7.575581147 | G167: 13.70446528 | H167: 4.550306261 | I167: 162.5383183 | J167: 68.98654949 | K167: 251.449352 | L167: 30.35270552 | M167: -0.2113585464 | N167: -0.2104330668 | O167: -0.2104371642 | P167: -0.2094950417 | Q167: -0.0395954539 | R167: -0.039592494 | S167: -0.03959249422 | T167: -0.03958952655 | U167: -0.002828246707 | V167: -0.002828179505 | W167: -0.002828179507 | X167: -0.002828112268 | Y167: -0.1027707688 | Z167: -0.1027510323 | AA167: -0.1027510361 | AB167: -0.1027312985 | AC167: 0.2097320383 | AD167: 0.2096623137 | AE167: 0.2096623369 | AF167: 0.2095926767 | AG167: 0.01750567882 | AH167: 0.01750537729 | AI167: 0.0175053773 | AJ167: 0.01750507576 | AK167: 0.005828288085 | AL167: 0.005828847655 | AM167: 0.005828847709 | AN167: 0.005829407333
D168: 4980 | E168: 1.383333333 | F168: 7.365148805 | G168: 13.66487279 | H168: 4.547478082 | I168: 162.4355672 | J168: 69.19621183 | K168: 251.4668574 | L168: 30.38767861 | M168: -0.2095534882 | N168: -0.208594 | O168: -0.2085984427 | P168: -0.2076215983 | Q168: -0.03957280861 | R168: -0.03956983115 | S168: -0.03956983137 | T168: -0.03956684608 | U168: -0.002826629186 | V168: -0.002826561881 | W168: -0.002826561883 | X168: -0.002826494542 | Y168: -0.1027341052 | Z168: -0.1027143649 | AA168: -0.1027143687 | AB168: -0.1026946272 | AC168: 0.2080272378 | AD168: 0.2079581607 | AE168: 0.2079581836 | AF168: 0.2078891699 | AG168: 0.01758403684 | AH168: 0.01758373512 | AI168: 0.01758373513 | AJ168: 0.01758343341 | AK168: 0.005833166766 | AL168: 0.005833726629 | AM168: 0.005833726682 | AN168: 0.005834286599
D169: 5010 | E169: 1.391666667 | F169: 7.156555476 | G169: 13.62530296 | H169: 4.54465152 | I169: 162.3328529 | J169: 69.40417001 | K169: 251.4844411 | L169: 30.42268097 | M169: -0.2076800094 | N169: -0.2066850578 | O169: -0.2066898788 | P169: -0.2056768347 | Q169: -0.03954804025 | R169: -0.03954504526 | S169: -0.03954504549 | T169: -0.0395420426 | U169: -0.002824860018 | V169: -0.002824792614 | W169: -0.002824792616 | X169: -0.002824725175 | Y169: -0.1026974441 | Z169: -0.1026777 | AA169: -0.1026777038 | AB169: -0.1026579585 | AC169: 0.2062655713 | AD169: 0.2061971584 | AE169: 0.2061971811 | AF169: 0.2061288306 | AG169: 0.01766164514 | AH169: 0.01766134326 | AI169: 0.01766134327 | AJ169: 0.01766104138 | AK169: 0.005838039993 | AL169: 0.005838600146 | AM169: 0.0058386002 | AN169: 0.005839160407
D170: 5040 | E170: 1.4 | F170: 6.949871023 | G170: 13.58575791 | H170: 4.541826727 | I170: 162.2301752 | J170: 69.61036719 | K170: 251.5021024 | L170: 30.45771257 | M170: -0.2057352039 | N170: -0.2047032878 | O170: -0.2047085235 | P170: -0.2036577566 | Q170: -0.03952106041 | R170: -0.03951804791 | S170: -0.03951804814 | T170: -0.0395150277 | U170: -0.002822932886 | V170: -0.002822865387 | W170: -0.002822865388 | X170: -0.002822797853 | Y170: -0.1026607854 | Z170: -0.1026410374 | AA170: -0.1026410412 | AB170: -0.1026212921 | AC170: 0.2044446021 | AD170: 0.2043768708 | AE170: 0.2043768933 | AF170: 0.2043092234 | AG170: 0.01773848504 | AH170: 0.017738183 | AI170: 0.01773818301 | AJ170: 0.01773788096 | AK170: 0.005842907783 | AL170: 0.005843468226 | AM170: 0.005843468279 | AN170: 0.005844028775
D171: 5070 | E171: 1.408333333 | F171: 6.745168259 | G171: 13.54623986 | H171: 4.539003862 | I171: 162.1275341 | J171: 69.81474408 | K171: 251.5198406 | L171: 30.49277338 | M171: -0.2037160773 | N171: -0.2026456519 | O171: -0.2026513423 | P171: -0.2015612878 | Q171: -0.03949177796 | R171: -0.03948874801 | S171: -0.03948874824 | T171: -0.03948571028 | U171: -0.002820841283 | V171: -0.002820773692 | W171: -0.002820773694 | X171: -0.002820706066 | Y171: -0.1026241289 | Z171: -0.102604377 | AA171: -0.1026043808 | AB171: -0.1025846279 | AC171: 0.2025618195 | AD171: 0.2024947881 | AE171: 0.2024948103 | AF171: 0.2024278393 | AG171: 0.01781453696 | AH171: 0.01781423478 | AI171: 0.01781423478 | AJ171: 0.0178139326 | AK171: 0.005847770159 | AL171: 0.005848330889 | AM171: 0.005848330943 | AN171: 0.005848891727
D172: 5100 | E172: 1.416666667 | F172: 6.542523034 | G172: 13.50675112 | H172: 4.536183088 | I172: 162.0249298 | J172: 70.01723889 | K172: 251.5376548 | L172: 30.52786336 | M172: -0.2016195532 | N172: -0.2005090341 | O172: -0.2005152235 | P172: -0.1993842794 | Q172: -0.0394600993 | R172: -0.03945705195 | S172: -0.03945705219 | T172: -0.03945399676 | U172: -0.002818578522 | V172: -0.002818510843 | W172: -0.002818510845 | X172: -0.002818443131 | Y172: -0.1025874744 | Z172: -0.1025677187 | AA172: -0.1025677225 | AB172: -0.1025479657 | AC172: 0.200614645 | AD172: 0.2005483325 | AE172: 0.2005483544 | AF172: 0.2004821012 | AG172: 0.01788978049 | AH172: 0.01788947818 | AI172: 0.01788947819 | AJ172: 0.01788917587 | AK172: 0.00585262715 | AL172: 0.005853188166 | AM172: 0.00585318822 | AN172: 0.00585374929
D173: 5130 | E173: 1.425 | F173: 6.342014309 | G173: 13.46729407 | H173: 4.533364577 | I173: 161.922362 | J173: 70.21778725 | K173: 251.5555443 | L173: 30.56298249 | M173: -0.1994424825 | N173: -0.1982902511 | O173: -0.1982969879 | P173: -0.1971235211 | Q173: -0.03942592861 | R173: -0.03942286392 | S173: -0.03942286416 | T173: -0.03941979134 | U173: -0.002816137758 | V173: -0.002816069997 | W173: -0.002816069998 | X173: -0.002816002201 | Y173: -0.1025508218 | Z173: -0.1025310623 | AA173: -0.1025310661 | AB173: -0.1025113055 | AC173: 0.1986004395 | AD173: 0.1985348657 | AE173: 0.1985348874 | AF173: 0.1984693717 | AG173: 0.01796419432 | AH173: 0.0179638919 | AI173: 0.0179638919 | AJ173: 0.01796358947 | AK173: 0.005857478791 | AL173: 0.005858040092 | AM173: 0.005858040145 | AN173: 0.0058586015
D174: 5160 | E174: 1.433333333 | F174: 6.143724229 | G174: 13.4278712 | H174: 4.530548507 | I174: 161.819831 | J174: 70.41632213 | K174: 251.5735082 | L174: 30.59813073 | M174: -0.1971816548 | N174: -0.1959860649 | O174: -0.1959934025 | P174: -0.1947757564 | Q174: -0.03938916819 | R174: -0.03938608624 | S174: -0.03938608648 | T174: -0.03938299634 | U174: -0.002813512013 | V174: -0.002813444174 | W174: -0.002813444176 | X174: -0.0028133763 | Y174: -0.102514171 | Z174: -0.1024944076 | AA174: -0.1024944114 | AB174: -0.1024746469 | AC174: 0.1965165137 | AD174: 0.1964516992 | AE174: 0.1964517206 | AF174: 0.1963869632 | AG174: 0.01803775623 | AH174: 0.01803745371 | AI174: 0.01803745371 | AJ174: 0.01803715118 | AK174: 0.005862325123 | AL174: 0.005862886707 | AM174: 0.005862886761 | AN174: 0.005863448399
D175: 5190 | E175: 1.441666667 | F175: 5.947738171 | G175: 13.38848512 | H175: 4.527735063 | I175: 161.7173366 | J175: 70.61277385 | K175: 251.5915457 | L175: 30.63330805 | M175: -0.1948338133 | N175: -0.1935931998 | O175: -0.1936011968 | P175: -0.1923377006 | Q175: -0.0393497189 | R175: -0.03934661979 | S175: -0.03934662003 | T175: -0.03934351266 | U175: -0.002810694207 | V175: -0.002810626294 | W175: -0.002810626296 | X175: -0.002810558347 | Y175: -0.1024775218 | Z175: -0.1024577545 | AA175: -0.1024577583 | AB175: -0.10243799 | AC175: 0.1943601404 | AD175: 0.1942961067 | AE175: 0.1942961278 | AF175: 0.1942321501 | AG175: 0.01811044309 | AH175: 0.01811014047 | AI175: 0.01811014048 | AJ175: 0.01810983786 | AK175: 0.005867166196 | AL175: 0.005867728062 | AM175: 0.005867728116 | AN175: 0.005868290036
D176: 5220 | E176: 1.45 | F176: 5.754144787 | G176: 13.3491385 | H176: 4.524924437 | I176: 161.6148788 | J176: 70.80706998 | K176: 251.6096558 | L176: 30.66851442 | M176: -0.1923956732 | N176: -0.1911083622 | O176: -0.191117083 | P176: -0.1898060633 | Q176: -0.03930748075 | R176: -0.03930436457 | S176: -0.03930436481 | T176: -0.03930124032 | U176: -0.002807677197 | V176: -0.002807609215 | W176: -0.002807609217 | X176: -0.002807541199 | Y176: -0.1024408739 | Z176: -0.1024211029 | AA176: -0.1024211067 | AB176: -0.1024013345 | AC176: 0.1921285702 | AD176: 0.1920653396 | AE176: 0.1920653604 | AF176: 0.1920021845 | AG176: 0.01818223081 | AH176: 0.01818192812 | AI176: 0.01818192813 | AJ176: 0.01818162543 | AK176: 0.005872002065 | AL176: 0.005872564211 | AM176: 0.005872564265 | AN176: 0.005873126466
D177: 5250 | E177: 1.458333333 | F177: 5.563036016 | G177: 13.30983414 | H177: 4.522116828 | I177: 161.5124577 | J177: 70.99913534 | K177: 251.6278377 | L177: 30.70374981 | M177: -0.1898639438 | N177: -0.1885282658 | O177: -0.1885377808 | P177: -0.1871775755 | Q177: -0.03926235353 | R177: -0.03925922039 | S177: -0.03925922064 | T177: -0.03925607912 | U177: -0.002804453824 | V177: -0.002804385779 | W177: -0.00280438578 | X177: -0.002804317699 | Y177: -0.1024042274 | Z177: -0.1023844525 | AA177: -0.1023844563 | AB177: -0.1023646803 | AC177: 0.1898190505 | AD177: 0.1897566461 | AE177: 0.1897566666 | AF177: 0.1896943158 | AG177: 0.01825309438 | AH177: 0.01825279163 | AI177: 0.01825279163 | AJ177: 0.01825248886 | AK177: 0.005876832792 | AL177: 0.005877395218 | AM177: 0.005877395272 | AN177: 0.005877957751
D178: 5280 | E178: 1.466666667 | F178: 5.37450708 | G178: 13.27057492 | H178: 4.519312442 | I178: 161.4100732 | J178: 71.188892 | K178: 251.6460905 | L178: 30.73901418 | M178: -0.1872353561 | N178: -0.1858496608 | O178: -0.185860047 | P178: -0.184449022 | Q178: -0.03921423763 | R178: -0.03921108766 | S178: -0.03921108791 | T178: -0.03920792951 | U178: -0.002801016974 | V178: -0.002800948871 | W178: -0.002800948872 | X178: -0.002800880733 | Y178: -0.1023675819 | Z178: -0.1023478031 | AA178: -0.102347807 | AB178: -0.1023280271 | AC178: 0.1874288486 | AD178: 0.1873672943 | AE178: 0.1873673146 | AF178: 0.1873058127 | AG178: 0.01832300784 | AH178: 0.01832270503 | AI178: 0.01832270504 | AJ178: 0.01832240221 | AK178: 0.005881658449 | AL178: 0.005882221152 | AM178: 0.005882221206 | AN178: 0.005882783963
D179: 5310 | E179: 1.475 | F179: 5.188656448 | G179: 13.23136383 | H179: 4.516511493 | I179: 161.3077254 | J179: 71.37625932 | K179: 251.6644132 | L179: 30.7743075 | M179: -0.1845066948 | N179: -0.1830693695 | O179: -0.1830807109 | P179: -0.1816172795 | Q179: -0.03916303504 | R179: -0.03915986837 | S179: -0.03915986863 | T179: -0.03915669348 | U179: -0.002797359646 | V179: -0.00279729149 | W179: -0.002797291492 | X179: -0.0027972233 | Y179: -0.1023309374 | Z179: -0.1023111547 | AA179: -0.1023111586 | AB179: -0.1022913749 | AC179: 0.1849552793 | AD179: 0.1848945999 | AE179: 0.1848946198 | AF179: 0.1848339917 | AG179: 0.0183919443 | AH179: 0.01839164144 | AI179: 0.01839164145 | AJ179: 0.01839133858 | AK179: 0.005886479112 | AL179: 0.005887042092 | AM179: 0.005887042146 | AN179: 0.00588760518
D180: 5340 | E180: 1.483333333 | F180: 5.005585759 | G180: 13.19220396 | H180: 4.513714202 | I180: 161.2054143 | J180: 71.56115394 | K180: 251.6828049 | L180: 30.80962976 | M180: -0.1816748366 | N180: -0.1801843275 | O180: -0.1801967154 | P180: -0.1786793617 | Q180: -0.03910865046 | R180: -0.03910546725 | S180: -0.03910546751 | T180: -0.03910227576 | U180: -0.002793475033 | V180: -0.00279340683 | W180: -0.002793406832 | X180: -0.002793338593 | Y180: -0.1022942935 | Z180: -0.1022745071 | AA180: -0.1022745109 | AB180: -0.1022547234 | AC180: 0.182395737 | AD180: 0.1823359581 | AE180: 0.1823359777 | AF180: 0.1822762488 | AG180: 0.01845987595 | AH180: 0.01845957306 | AI180: 0.01845957307 | AJ180: 0.01845927017 | AK180: 0.005891294868 | AL180: 0.005891858123 | AM180: 0.005891858177 | AN180: 0.005892421486
D181: 5370 | E181: 1.491666667 | F181: 4.825399711 | G181: 13.1530985 | H181: 4.510920795 | I181: 161.1031398 | J181: 71.74348991 | K181: 251.7012645 | L181: 30.84498091 | M181: -0.1787367949 | N181: -0.1771916319 | O181: -0.1772051653 | P181: -0.1756324705 | Q181: -0.03905099267 | R181: -0.03904779309 | S181: -0.03904779335 | T181: -0.03904458518 | U181: -0.002789356619 | V181: -0.002789288376 | W181: -0.002789288378 | X181: -0.002789220099 | Y181: -0.1022576503 | Z181: -0.10223786 | AA181: -0.1022378638 | AB181: -0.1022180725 | AC181: 0.1797477342 | AD181: 0.179688882 | AE181: 0.1796889013 | AF181: 0.1796300979 | AG181: 0.01852677411 | AH181: 0.01852647119 | AI181: 0.0185264712 | AJ181: 0.01852616827 | AK181: 0.005896105811 | AL181: 0.00589666934 | AM181: 0.005896669394 | AN181: 0.005897232976
D182: 5400 | E182: 1.5 | F182: 4.648205901 | G182: 13.11405071 | H182: 4.508131506 | I182: 161.0009019 | J182: 71.92317881 | K182: 251.7197909 | L182: 30.88036092 | M182: -0.1756897717 | N182: -0.1740885968 | O182: -0.174103383 | P182: -0.1724740559 | Q182: -0.0389899761 | R182: -0.03898676032 | S182: -0.03898676058 | T182: -0.03898353616 | U182: -0.002784998293 | V182: -0.002784930015 | W182: -0.002784930017 | X182: -0.002784861703 | Y182: -0.1022210074 | Z182: -0.1022012133 | AA182: -0.1022012171 | AB182: -0.1021814219 | AC182: 0.1770089448 | AD182: 0.1769510464 | AE182: 0.1769510653 | AF182: 0.1768932144 | AG182: 0.01859260924 | AH182: 0.01859230631 | AI182: 0.01859230632 | AJ182: 0.01859200338 | AK182: 0.005900912041 | AL182: 0.005901475842 | AM182: 0.005901475896 | AN182: 0.005902039751
D183: 5430 | E183: 1.508333333 | F183: 4.474114604 | G183: 13.07506395 | H183: 4.505346576 | I183: 160.8987007 | J183: 72.10012987 | K183: 251.7383832 | L183: 30.91576978 | M183: -0.1725312171 | N183: -0.1708728173 | O183: -0.1708889713 | P183: -0.1692018831 | Q183: -0.03892552256 | R183: -0.03892229078 | S183: -0.03892229105 | T183: -0.03891905057 | U183: -0.002780394469 | V183: -0.002780326163 | W183: -0.002780326165 | X183: -0.002780257823 | Y183: -0.1021843648 | Z183: -0.1021645668 | AA183: -0.1021645706 | AB183: -0.1021447716 | AC183: 0.1741772551 | AD183: 0.1741203381 | AE183: 0.1741203567 | AF183: 0.1740634858 | AG183: 0.01865735106 | AH183: 0.01865704812 | AI183: 0.01865704813 | AJ183: 0.01865674518 | AK183: 0.005905713668 | AL183: 0.00590627774 | AM183: 0.005906277794 | AN183: 0.00590684192
D184: 5460 | E184: 1.516666667 | F184: 4.303238491 | G184: 13.03614166 | H184: 4.50256625 | I184: 160.7965361 | J184: 72.27425023 | K184: 251.7570403 | L184: 30.95120744 | M184: -0.1692588962 | N184: -0.1675422403 | O184: -0.1675598854 | P184: -0.1658141085 | Q184: -0.03885756334 | R184: -0.03885431576 | S184: -0.03885431603 | T184: -0.0388510597 | U184: -0.002775540239 | V184: -0.002775471912 | W184: -0.002775471914 | X184: -0.00277540355 | Y184: -0.1021477221 | Z184: -0.1021279203 | AA184: -0.1021279241 | AB184: -0.1021081212 | AC184: 0.1712508207 | AD184: 0.1711949132 | AE184: 0.1711949315 | AF184: 0.1711390688 | AG184: 0.01872096854 | AH184: 0.01872066561 | AI184: 0.01872066561 | AJ184: 0.01872036267 | AK184: 0.005910510807 | AL184: 0.00591107515 | AM184: 0.005911075203 | AN184: 0.005911639599
D185: 5490 | E185: 1.525 | F185: 4.135692281 | G185: 12.99728734 | H185: 4.499790778 | I185: 160.6944082 | J185: 72.44544516 | K185: 251.7757609 | L185: 30.9866739 | M185: -0.1658709659 | N185: -0.1640952453 | O185: -0.1641145128 | P185: -0.162309364 | Q185: -0.03878604144 | R185: -0.03878277827 | S185: -0.03878277855 | T185: -0.03877950659 | U185: -0.002770431532 | V185: -0.00277036319 | W185: -0.002770363192 | X185: -0.002770294814 | Y185: -0.1021110793 | Z185: -0.1020912736 | AA185: -0.1020912774 | AB185: -0.1020714707 | AC185: 0.1682281309 | AD185: 0.1681732614 | AE185: 0.1681732793 | AF185: 0.1681184534 | AG185: 0.01878343008 | AH185: 0.01878312716 | AI185: 0.01878312717 | AJ185: 0.01878282424 | AK185: 0.005915303584 | AL185: 0.005915868195 | AM185: 0.005915868249 | AN185: 0.005916432914
D186: 5520 | E186: 1.533333333 | F186: 3.971592307 | G186: 12.95850457 | H186: 4.497020415 | I186: 160.5923169 | J186: 72.61361844 | K186: 251.7945441 | L186: 31.02216911 | M186: -0.1623660579 | N186: -0.1605307325 | O186: -0.160551761 | P186: -0.1586868489 | Q186: -0.03871091412 | R186: -0.03870763559 | S186: -0.03870763587 | T186: -0.0387043485 | U186: -0.002765065294 | V186: -0.002764996945 | W186: -0.002764996946 | X186: -0.00276492856 | Y186: -0.102074436 | Z186: -0.1020546265 | AA186: -0.1020546303 | AB186: -0.1020348197 | AC186: 0.1651080795 | AD186: 0.1650542771 | AE186: 0.1650542946 | AF186: 0.1650005343 | AG186: 0.0188447036 | AH186: 0.0188444007 | AI186: 0.01884440071 | AJ186: 0.01884409779 | AK186: 0.005920092129 | AL186: 0.005920657007 | AM186: 0.005920657061 | AN186: 0.005921221993
D187: 5550 | E187: 1.541666667 | F187: 3.811055991 | G187: 12.91979693 | H187: 4.494255418 | I187: 160.4902623 | J187: 72.77867273 | K187: 251.8133885 | L187: 31.05769305 | M187: -0.158743372 | N187: -0.1568482192 | O187: -0.1568711539 | P187: -0.1549464298 | Q187: -0.03863215566 | R187: -0.03862886201 | S187: -0.03862886229 | T187: -0.03862555975 | U187: -0.00275943969 | V187: -0.002759371339 | W187: -0.002759371341 | X187: -0.002759302954 | Y187: -0.1020377922 | Z187: -0.1020179788 | AA187: -0.1020179826 | AB187: -0.1019981682 | AC187: 0.161890044 | AD187: 0.1618373375 | AE187: 0.1618373547 | AF187: 0.1617846891 | AG187: 0.01890475667 | AH187: 0.01890445379 | AI187: 0.0189044538 | AJ187: 0.01890415091 | AK187: 0.005924876578 | AL187: 0.005925441722 | AM187: 0.005925441776 | AN187: 0.005926006974
D188: 5580 | E188: 1.55 | F188: 3.654201233 | G188: 12.88116807 | H188: 4.491496047 | I188: 160.3882443 | J188: 72.94051008 | K188: 251.8322929 | L188: 31.0932457 | M188: -0.155002775 | N188: -0.1530479428 | O188: -0.1530729346 | P188: -0.1510887471 | Q188: -0.03854976039 | R188: -0.03854645186 | S188: -0.03854645214 | T188: -0.03854313468 | U188: -0.002753554314 | V188: -0.002753485969 | W188: -0.00275348597 | X188: -0.002753417589 | Y188: -0.1020011475 | Z188: -0.1019813303 | AA188: -0.1019813342 | AB188: -0.1019615159 | AC188: 0.1585739691 | AD188: 0.1585223876 | AE188: 0.1585224044 | AF188: 0.1584708624 | AG188: 0.0189635567 | AH188: 0.01896325385 | AI188: 0.01896325386 | AJ188: 0.018962951 | AK188: 0.005929657074 | AL188: 0.005930222483 | AM188: 0.005930222537 | AN188: 0.005930788
D189: 5610 | E189: 1.558333333 | F189: 3.501145687 | G189: 12.84262162 | H189: 4.488742561 | I189: 160.286263 | J189: 73.09903249 | K189: 251.8512562 | L189: 31.12882703 | M189: -0.1511449077 | N189: -0.1491309702 | O189: -0.1491581737 | P189: -0.1471153251 | Q189: -0.03846374586 | R189: -0.0384604227 | S189: -0.03846042299 | T189: -0.03845709086 | U189: -0.002747410419 | V189: -0.002747342087 | W189: -0.002747342088 | X189: -0.00274727372 | Y189: -0.1019645019 | Z189: -0.1019446808 | AA189: -0.1019446846 | AB189: -0.1019248625 | AC189: 0.1551604571 | AD189: 0.1551100294 | AE189: 0.1551100457 | AF189: 0.1550596561 | AG189: 0.01902107113 | AH189: 0.01902076832 | AI189: 0.01902076833 | AJ189: 0.01902046551 | AK189: 0.005934433763 | AL189: 0.005934999437 | AM189: 0.005934999491 | AN189: 0.005935565218
D190: 5640 | E190: 1.566666667 | F190: 3.352005934 | G190: 12.8041612 | H190: 4.485995219 | I190: 160.1843183 | J190: 73.25414253 | K190: 251.8702769 | L190: 31.16443703 | M190: -0.147171295 | N190: -0.1450993099 | O190: -0.1451288817 | P190: -0.1430286855 | Q190: -0.03837415619 | R190: -0.03837081866 | S190: -0.03837081895 | T190: -0.03836747241 | U190: -0.002741011157 | V190: -0.002740942844 | W190: -0.002740942846 | X190: -0.002740874498 | Y190: -0.101927855 | Z190: -0.10190803 | AA190: -0.1019080339 | AB190: -0.1018882079 | AC190: 0.1516508615 | AD190: 0.1516016158 | AE190: 0.1516016317 | AF190: 0.1515524227 | AG190: 0.01907726771 | AH190: 0.01907696494 | AI190: 0.01907696495 | AJ190: 0.01907666217 | AK190: 0.005939206797 | AL190: 0.005939772733 | AM190: 0.005939772787 | AN190: 0.005940338777
D191: 5670 | E191: 1.575 | F191: 3.20689654 | G191: 12.76579038 | H191: 4.483254276 | I191: 160.0824103 | J191: 73.40574416 | K191: 251.8893539 | L191: 31.20007567 | M191: -0.143084459 | N191: -0.1409560257 | O191: -0.1409881213 | P191: -0.1388324597 | Q191: -0.03828106547 | R191: -0.03827771382 | S191: -0.03827771411 | T191: -0.03827435341 | U191: -0.002734361819 | V191: -0.002734293534 | W191: -0.002734293535 | X191: -0.002734225214 | Y191: -0.1018912066 | Z191: -0.1018713779 | AA191: -0.1018713817 | AB191: -0.1018515519 | AC191: 0.1480473825 | AD191: 0.1479993464 | AE191: 0.1479993619 | AF191: 0.1479513611 | AG191: 0.01913211469 | AH191: 0.01913181198 | AI191: 0.01913181199 | AJ191: 0.01913150926 | AK191: 0.005943976327 | AL191: 0.005944542525 | AM191: 0.005944542579 | AN191: 0.005945108831
D192: 5700 | E192: 1.583333333 | F192: 3.065929004 | G192: 12.72751267 | H192: 4.480519982 | I192: 159.9805389 | J192: 73.55374352 | K192: 251.9084857 | L192: 31.23574292 | M192: -0.1388880317 | N192: -0.1367053467 | O192: -0.1367401176 | P192: -0.1345314956 | Q192: -0.03818458112 | R192: -0.03818121561 | S192: -0.0381812159 | T192: -0.0381778413 | U192: -0.00272747008 | V192: -0.002727401828 | W192: -0.00272740183 | X192: -0.002727333542 | Y192: -0.1018545566 | Z192: -0.101834724 | AA192: -0.1018347278 | AB192: -0.1018148942 | AC192: 0.1443531621 | AD192: 0.144306362 | AE192: 0.1443063772 | AF192: 0.144259611 | AG192: 0.01918558122 | AH192: 0.01918527856 | AI192: 0.01918527856 | AJ192: 0.01918497589 | AK192: 0.005948742506 | AL192: 0.005949308965 | AM192: 0.005949309019 | AN192: 0.005949875532
D193: 5730 | E193: 1.591666667 | F193: 2.929210595 | G193: 12.68933146 | H193: 4.477792581 | I193: 159.8787042 | J193: 73.69804989 | K193: 251.927671 | L193: 31.27143878 | M193: -0.1345868615 | N193: -0.1323527711 | O193: -0.1323903608 | P193: -0.1301319554 | Q193: -0.03808484716 | R193: -0.03808146803 | S193: -0.03808146833 | T193: -0.03807808008 | U193: -0.002720346226 | V193: -0.002720278014 | W193: -0.002720278015 | X193: -0.002720209768 | Y193: -0.1018179046 | Z193: -0.1017980682 | AA193: -0.101798072 | AB193: -0.1017782345 | AC193: 0.1405723743 | AD193: 0.1405268354 | AE193: 0.1405268502 | AF193: 0.1404813438 | AG193: 0.01923763758 | AH193: 0.01923733498 | AI193: 0.01923733498 | AJ193: 0.01923703237 | AK193: 0.005953505487 | AL193: 0.005954072205 | AM193: 0.005954072259 | AN193: 0.005954639032
D194: 5760 | E194: 1.6 | F194: 2.796843082 | G194: 12.65124999 | H194: 4.475072303 | I194: 159.7769061 | J194: 73.83857674 | K194: 251.9469083 | L194: 31.30716321 | M194: -0.1301871114 | N194: -0.1279051574 | O194: -0.1279456965 | P194: -0.1256413985 | Q194: -0.03798204712 | R194: -0.03797865462 | S194: -0.03797865492 | T194: -0.03797525326 | U194: -0.002713003366 | V194: -0.0027129352 | W194: -0.002712935202 | X194: -0.002712867 | Y194: -0.1017812505 | Z194: -0.1017614102 | AA194: -0.1017614141 | AB194: -0.1017415728 | AC194: 0.1367103077 | AD194: 0.1366660535 | AE194: 0.1366660678 | AF194: 0.1366218446 | AG194: 0.01928825564 | AH194: 0.0192879531 | AI194: 0.0192879531 | AJ194: 0.01928765054 | AK194: 0.005958265416 | AL194: 0.005958832393 | AM194: 0.005958832447 | AN194: 0.005959399479
D195: 5790 | E195: 1.608333333 | F195: 2.668921379 | G195: 12.61327134 | H195: 4.472359367 | I195: 159.6751447 | J195: 73.97524281 | K195: 251.9661963 | L195: 31.3429162 | M195: -0.1256963413 | N195: -0.1233707969 | O195: -0.1234143985 | P195: -0.1210688422 | Q195: -0.03787640657 | R195: -0.03787300092 | S195: -0.03787300123 | T195: -0.03786958638 | U195: -0.002705457612 | V195: -0.002705389498 | W195: -0.0027053895 | X195: -0.002705321351 | Y195: -0.1017445941 | Z195: -0.1017247499 | AA195: -0.1017247538 | AB195: -0.1017049086 | AC195: 0.1327734349 | AD195: 0.1327304866 | AE195: 0.1327305005 | AF195: 0.1326875818 | AG195: 0.01933740918 | AH195: 0.0193371067 | AI195: 0.01933710671 | AJ195: 0.01933680422 | AK195: 0.005963022436 | AL195: 0.005963589672 | AM195: 0.005963589726 | AN195: 0.005964157015
D196: =D195+$B$1 -> 5820 | E196: =D196/3600 -> 1.616666667 | F196: =F195+(M195+2*N195+2*O195+P195)/6 -> 2.545532116 | G196: =G195+(Q195+2*R195+2*S195+T195)/6 -> 12.57539834 | H196: =H195+(U195+2*V195+2*W195+X195)/6 -> 4.469653978 | I196: =I195+(Y195+2*Z195+2*AA195+AB195)/6 -> 159.5734199 | J196: =J195+(AC195+2*AD195+2*AE195+AF195)/6 -> 74.10797331 | K196: =K195+(AG195+2*AH195+2*AI195+AJ195)/6 -> 251.9855334 | L196: =L195+(AK195+2*AL195+2*AM195+AN195) -> 31.37869774 | M196: =dS_Sdt(F196,I196,K196)*$B$1 -> -0.1211235692 | N196: =dS_Sdt(F196+0.5*M196,I196,K196)*$B$1 -> -0.1187594624 | O196: =dS_Sdt(F196+0.5*N196,I196,K196)*$B$1 -> -0.1188062161 | P196: =dS_Sdt(F196+O196,I196,K196)*$B$1 -> -0.1164247954 | Q196: =dS_NHdt(G196,F196,H196,I196,J196,K196,L196)*$B$1 -> -0.03776819493 | R196: =dS_NHdt(G196+0.5*Q196,F196,H196,I196,J196,K196,L196)*$B$1 -> -0.03776477634 | S196: =dS_NHdt(G196+0.5*R196,F196,H196,I196,J196,K196,L196)*$B$1 -> -0.03776477665 | T196: =dS_NHdt(G196+S196,F196,H196,I196,J196,K196,L196)*$B$1 -> -0.03776134884 | U196: =dS_ALKdt(H196,F196,G196,I196,J196,K196,L196)*$B$1 -> -0.002697728209 | V196: =dS_ALKdt(H196+0.5*U196,F196,G196,I196,J196,K196,L196)*$B$1 -> -0.002697660153 | W196: =dS_ALKdt(H196+0.5*V196,F196,G196,I196,J196,K196,L196)*$B$1 -> -0.002697660155 | X196: =dS_ALKdt(H196+W196,F196,G196,I196,J196,K196,L196)*$B$1 -> -0.002697592063 | Y196: =dX_Sdt(I196,K196)*$B$1 -> -0.101707935 | Z196: =dX_Sdt(I196+0.5*Y196,K196)*$B$1 -> -0.101688087 | AA196: =dX_Sdt(I196+0.5*Z196,K196)*$B$1 -> -0.1016880909 | AB196: =dX_Sdt(I196+AA196,K196)*$B$1 -> -0.1016682419 | AC196: =dX_STOdt(J196,F196,G196,H196,K196)*$B$1 -> 0.1287694636 | AD196: =dX_STOdt(J196+0.5*AC196,F196,G196,H196,K196)*$B$1 -> 0.1287278401 | AE196: =dX_STOdt(J196+0.5*AD196,F196,G196,H196,K196)*$B$1 -> 0.1287278535 | AF196: =dX_STOdt(J196+AE196,F196,G196,H196,K196)*$B$1 -> 0.1286862583 | AG196: =dX_Hdt(K196,G196,H196,J196)*$B$1 -> 0.01938507438 | AH196: =dX_Hdt(K196+0.5*AG196,G196,H196,J196)*$B$1 -> 0.01938477197 | AI196: =dX_Hdt(K196+0.5*AH196,G196,H196,J196)*$B$1 -> 0.01938477197 | AJ196: =dX_Hdt(K196+AI196,G196,H196,J196)*$B$1 -> 0.01938446954 | AK196: =dX_Adt(L196,G196,H196)*$B$1 -> 0.005967776682 | AL196: =dX_Adt(L196+0.5*AK196,G196,H196)*$B$1 -> 0.005968344174 | AM196: =dX_Adt(L196+0.5*AL196,G196,H196)*$B$1 -> 0.005968344228 | AN196: =dX_Adt(L196+AM196,G196,H196)*$B$1 -> 0.005968911775
D197: 5850 | E197: 1.625 | F197: 2.426752163 | G197: 12.53763356 | H197: 4.466956318 | I197: 159.4717319 | J197: 74.23670116 | K197: 252.0049182 | L197: 31.41450781 | M197: -0.1164793045 | N197: -0.1140824254 | O197: -0.1141323916 | P197: -0.111721258 | Q197: -0.03765772653 | R197: -0.0376542952 | S197: -0.03765429551 | T197: -0.03765085492 | U197: -0.002689837609 | V197: -0.002689769615 | W197: -0.002689769617 | X197: -0.002689701588 | Y197: -0.101671273 | Z197: -0.1016514212 | AA197: -0.1016514251 | AB197: -0.1016315722 | AC197: 0.1247073644 | AD197: 0.1246670817 | AE197: 0.1246670947 | AF197: 0.1246268389 | AG197: 0.01943123019 | AH197: 0.01943092784 | AI197: 0.01943092785 | AJ197: 0.01943062549 | AK197: 0.005972528277 | AL197: 0.005973096025 | AM197: 0.005973096079 | AN197: 0.005973663882
D198: 5880 | E198: 1.633333333 | F198: 2.31264713 | G198: 12.49997927 | H198: 4.464266548 | I198: 159.3700804 | J198: 74.36136825 | K198: 252.0243491 | L198: 31.45034638 | M198: -0.1117755476 | N198: -0.109352436 | O198: -0.1094056396 | P198: -0.1069716795 | Q198: -0.03754536059 | R198: -0.03754191667 | S198: -0.03754191699 | T198: -0.03753846377 | U198: -0.002681811471 | V198: -0.002681743543 | W198: -0.002681743545 | X198: -0.002681675582 | Y198: -0.101634608 | Z198: -0.1016147523 | AA198: -0.1016147562 | AB198: -0.1015948995 | AC198: 0.1205973695 | AD198: 0.1205584403 | AE198: 0.1205584529 | AF198: 0.1205195493 | AG198: 0.01947585882 | AH198: 0.01947555654 | AI198: 0.01947555655 | AJ198: 0.01947525426 | AK198: 0.00597727733 | AL198: 0.005977845334 | AM198: 0.005977845388 | AN198: 0.005978413446
D199: 5910 | E199: 1.641666667 | F199: 2.2032699 | G199: 12.46243735 | H199: 4.461584805 | I199: 159.2684657 | J199: 74.4819267 | K199: 252.0438247 | L199: 31.48621346 | M199: -0.1070257483 | N199: -0.1045836591 | O199: -0.1046400841 | P199: -0.1021908728 | Q199: -0.03743150001 | R199: -0.03742804363 | S199: -0.03742804395 | T199: -0.03742457824 | U199: -0.002673678572 | V199: -0.002673610715 | W199: -0.002673610717 | X199: -0.002673542824 | Y199: -0.1015979395 | Z199: -0.10157808 | AA199: -0.1015780839 | AB199: -0.1015582234 | AC199: 0.1164509365 | AD199: 0.11641337 | AE199: 0.1164133822 | AF199: 0.1163758399 | AG199: 0.01951894618 | AH199: 0.01951864397 | AI199: 0.01951864398 | AJ199: 0.01951834176 | AK199: 0.005982023934 | AL199: 0.005982592192 | AM199: 0.005982592246 | AN199: 0.005983160559
D200: 5940 | E200: 1.65 | F200: 2.098659216 | G200: 12.42500931 | H200: 4.458911194 | I200: 159.1668876 | J200: 74.59834008 | K200: 252.0633433 | L200: 31.52210901 | M200: -0.1022447197 | N200: -0.09979156411 | O200: -0.09985114798 | P200: -0.09739487854 | Q200: -0.03731658878 | R200: -0.03731312003 | S200: -0.03731312035 | T200: -0.03730964225 | U200: -0.002665470627 | V200: -0.002665402843 | W200: -0.002665402845 | X200: -0.002665335025 | Y200: -0.1015612675 | Z200: -0.1015414042 | AA200: -0.1015414081 | AB200: -0.1015215437 | AC200: 0.1122806748 | AD200: 0.112244476 | AE200: 0.1122444877 | AF200: 0.1122083118 | AG200: 0.01956048228 | AH200: 0.01956018015 | AI200: 0.01956018015 | AJ200: 0.019559878 | AK200: 0.005986768163 | AL200: 0.005987336675 | AM200: 0.005987336729 | AN200: 0.005987905295
... 1242 more rows
